Workbook

Sheet Simulator
D1: Group count | E1: Scenario | F1: Group | G1: avg | H1: length | K1: Run | L1: APW | M1: API | N1: OT | O1: Under | P1: cost flow | Q1: cost flex | R1: total cost
B2: Group | D2: 6 | E2: a,b,c,d,e,f | F2: a | G2: =B45 -> 13.8 | H2: =G2+$B$52 -> 17.8 | K2: 1 | L2: 7.2 | M2: 5.6 | N2: 12.6 | O2: 107 | P2: 121.0 | Q2: 17.8 | R2: 138.8
B3: 6 | D3: 6 | E3: a,b,c,d,e,f | F3: b | G3: 16.2 | H3: =G3+$B$52 -> 20.2 | K3: 2 | L3: 6.4 | M3: 3.6 | N3: 12.8 | O3: 89 | P3: 97.5 | Q3: 14.8 | R3: 112.3
D4: 6 | E4: a,b,c,d,e,f | F4: c | G4: 18.0 | H4: 22.0 | K4: 3 | L4: 7.2 | M4: 1.6 | N4: 0.8 | O4: 64 | P4: 57.4 | Q4: 10.7 | R4: 68.1
B5: No show | D5: 6 | E5: a,b,c,d,e,f | F5: d | G5: 18.7 | H5: 22.7 | K5: 4 | L5: 14.2 | M5: 1.1 | N5: 3.5 | O5: 103 | P5: 76.9 | Q5: 17.1 | R5: 94.0
B6: 0.104 | D6: 6 | E6: a,b,c,d,e,f | F6: e | G6: 20.5 | H6: 24.5 | K6: 5 | L6: 37.2 | M6: 0.0 | N6: 84.6 | O6: 104 | P6: 242.1 | Q6: 17.4 | R6: 259.5
D7: 6 | E7: a,b,c,d,e,f | F7: f | G7: 25.0 | H7: 29.0 | K7: 6 | L7: 9.4 | M7: 2.1 | N7: 21.2 | O7: 87 | P7: 93.4 | Q7: 14.6 | R7: 107.9
K8: 7 | L8: 9.1 | M8: 0.9 | N8: 25.1 | O8: 90 | P8: 78.4 | Q8: 14.9 | R8: 93.4
A9: Patient # | B9: Type | C9: Actual Treatment time | D9: Scheduled Treatment Time | E9: Scheduled Starting Time | F9: Actual Starting Time | G9: Finsh Time | H9: Patient Wait Time | I9: Physician Idle Time | K9: 8 | L9: 10.3 | M9: 3.6 | N9: 12.0 | O9: 36 | P9: 104.9 | Q9: 5.9 | R9: 110.9
A10: 1 | B10: OV | C10: 15 | D10: =IF(B10="WCC",$H$2,IF(B10="OV",$H$3,IF(B10="FU",$H$4,IF(B10="ER/UC",$H$5,IF(B10="PE",$H$6,IF(B10="NP",$H$7)))))) -> 20.2 | E10: 0 | F10: 0 | G10: =F10+C10 -> 15 | H10: =IF(F10-E10>0,F10-E10,0) -> 0 | I10: 0 | K10: 9 | L10: 1.7 | M10: 5.0 | N10: 0.5 | O10: 69 | P10: 90.5 | Q10: 11.5 | R10: 102.0
A11: 2 | B11: WCC | C11: 11 | D11: =IF(B11="WCC",$H$2,IF(B11="OV",$H$3,IF(B11="FU",$H$4,IF(B11="ER/UC",$H$5,IF(B11="PE",$H$6,IF(B11="NP",$H$7)))))) -> 17.8 | E11: =E10+D10 -> 20 | F11: =IF(E11>G10,E11,G10) -> 20 | G11: =F11+C11 -> 31 | H11: =IF(F11-E11>0,F11-E11,0) -> 0 | I11: =IF(G10>E11,0,E11-G10) -> 5 | K11: 10 | L11: 4.4 | M11: 5.6 | N11: 6.2 | O11: 45 | P11: 104.7 | Q11: 7.6 | R11: 112.3
A12: 3 | B12: OV | C12: 0 | D12: 20.2 | E12: =E11+D11 -> 38 | F12: =IF(E12>G11,E12,G11) -> 38 | G12: =F12+C12 -> 38 | H12: =IF(F12-E12>0,F12-E12,0) -> 0 | I12: =IF(G11>E12,0,E12-G11) -> 7 | K12: 11 | L12: 5.7 | M12: 1.4 | N12: 13.7 | O12: 64 | P12: 63.0 | Q12: 10.7 | R12: 73.7
A13: 4 | B13: FU | C13: 31 | D13: 22.0 | E13: =E12+D12 -> 58 | F13: 58 | G13: 89 | H13: 0 | I13: 20 | K13: 12 | L13: 7.3 | M13: 3.3 | N13: 4.2 | O13: 83 | P13: 85.3 | Q13: 13.9 | R13: 99.2
A14: 5 | B14: OV | C14: 0 | D14: 20.2 | E14: =E13+D13 -> 80 | F14: 89 | G14: 89 | H14: 9 | I14: 0 | K14: 13 | L14: 9.0 | M14: 1.7 | N14: 23.8 | O14: 83 | P14: 90.4 | Q14: 13.8 | R14: 104.2
A15: 6 | B15: NP | C15: 22 | D15: 29.0 | E15: 100 | F15: 100 | G15: 122 | H15: 0 | I15: 11 | K15: 14 | L15: 9.3 | M15: 2.4 | N15: 0.0 | O15: 66 | P15: 63.6 | Q15: 11.0 | R15: 74.6
A16: 7 | B16: OV | C16: 11 | D16: 20.2 | E16: 129 | F16: 129 | G16: 140 | H16: 0 | I16: 7 | K16: 15 | L16: 5.8 | M16: 1.1 | N16: 0.0 | O16: 99 | P16: 37.2 | Q16: 16.4 | R16: 53.6
A17: 8 | B17: FU | C17: 6 | D17: 22.0 | E17: 150 | F17: 150 | G17: 156 | H17: 0 | I17: 9 | K17: 16 | L17: 3.4 | M17: 5.0 | N17: 19.7 | O17: 86 | P17: 114.2 | Q17: 14.4 | R17: 128.6
A18: 9 | B18: OV | C18: 25 | D18: 20.2 | E18: =E17+D17 -> 172 | F18: 172 | G18: 196 | H18: 0 | I18: 16 | K18: 17 | L18: 8.6 | M18: 4.0 | N18: 0.0 | O18: 101 | P18: 90.0 | Q18: 16.8 | R18: 106.9
A19: 10 | B19: PE | C19: 14 | D19: 24.5 | E19: 192 | F19: 196 | G19: 211 | H19: 4 | I19: 0 | K19: 18 | L19: 3.3 | M19: 3.0 | N19: 0.0 | O19: 67 | P19: 60.9 | Q19: 11.1 | R19: 72.0
A20: 11 | B20: OV | C20: 21 | D20: 20.2 | E20: 216 | F20: 216 | G20: =F20+C20 -> 237 | H20: =IF(F20-E20>0,F20-E20,0) -> 0 | I20: =IF(G19>E20,0,E20-G19) -> 6 | K20: 19 | L20: 10.5 | M20: 2.0 | N20: 6.8 | O20: 66 | P20: 73.0 | Q20: 10.9 | R20: 84.0
A21: 12 | B21: OV | C21: 15 | D21: 20.2 | E21: 300 | F21: =IF(E21>G20,E21,G20) -> 300 | G21: =F21+C21 -> 315 | H21: =IF(F21-E21>0,F21-E21,0) -> 0 | I21: 0 | K21: 20 | L21: 3.2 | M21: 6.0 | N21: 9.5 | O21: 112 | P21: 116.5 | Q21: 18.7 | R21: 135.2
A22: 13 | B22: WCC | C22: 24 | D22: 17.8 | E22: =E21+D21 -> 320 | F22: =IF(E22>G21,E22,G21) -> 320 | G22: =F22+C22 -> 344 | H22: =IF(F22-E22>0,F22-E22,0) -> 0 | I22: =IF(G21>E22,0,E22-G21) -> 5 | K22: 21 | L22: 6.5 | M22: 2.8 | N22: 0.0 | O22: 74 | P22: 64.2 | Q22: 12.4 | R22: 76.6
A23: 14 | B23: OV | C23: 33 | D23: 20.2 | E23: 338 | F23: =IF(E23>G22,E23,G22) -> 344 | G23: =F23+C23 -> 378 | H23: =IF(F23-E23>0,F23-E23,0) -> 6 | I23: =IF(G22>E23,0,E23-G22) -> 0 | K23: 22 | L23: 8.9 | M23: 2.5 | N23: 0.0 | O23: 96 | P23: 68.5 | Q23: 16.0 | R23: 84.5
A24: 15 | B24: FU | C24: 21 | D24: 22.0 | E24: 358 | F24: 378 | G24: 398 | H24: 20 | I24: 0 | K24: 23 | L24: 4.6 | M24: 1.8 | N24: 0.0 | O24: 67 | P24: 43.5 | Q24: 11.1 | R24: 54.6
A25: 16 | B25: OV | C25: 10 | D25: 20.2 | E25: 380 | F25: 398 | G25: 409 | H25: 18 | I25: 0 | K25: 24 | L25: 8.6 | M25: 2.4 | N25: 24.7 | O25: 104 | P25: 98.6 | Q25: 17.3 | R25: 115.9
A26: 17 | B26: NP | C26: 23 | D26: 29.0 | E26: 400 | F26: 409 | G26: 432 | H26: 8 | I26: 0 | K26: 25 | L26: 7.9 | M26: 2.1 | N26: 28.4 | O26: 65 | P26: 94.2 | Q26: 10.8 | R26: 105.0
A27: 18 | B27: OV | C27: 15 | D27: 20.2 | E27: 429 | F27: 432 | G27: 447 | H27: 2 | I27: 0 | K27: 26 | L27: 1.6 | M27: 3.2 | N27: 0.0 | O27: 64 | P27: 62.4 | Q27: 10.7 | R27: 73.1
A28: 19 | B28: ER/UC | C28: 19 | D28: 22.7 | E28: 450 | F28: 450 | G28: 469 | H28: 0 | I28: 3 | K28: 27 | L28: 11.8 | M28: 1.8 | N28: 0.3 | O28: 79 | P28: 72.9 | Q28: 13.1 | R28: 86.0
A29: 20 | B29: OV | C29: 17 | D29: 20.2 | E29: 472 | F29: 472 | G29: 490 | H29: 0 | I29: 4 | K29: 28 | L29: 1.2 | M29: 6.5 | N29: 2.9 | O29: 49 | P29: 115.7 | Q29: 8.2 | R29: 123.9
A30: 21 | B30: PE | C30: 18 | D30: 24.5 | E30: 493 | F30: 493 | G30: 510 | H30: 0 | I30: 3 | K30: 29 | L30: 4.5 | M30: 9.8 | N30: 0.0 | O30: 89 | P30: 133.8 | Q30: 14.9 | R30: 148.7
A31: 22 | B31: OV | C31: 18 | D31: 20.2 | E31: 517 | F31: 517 | G31: =F31+C31 -> 535 | H31: 0 | I31: 7 | K31: 30 | L31: 7.9 | M31: 0.4 | N31: 20.1 | O31: 42 | P31: 59.5 | Q31: 7.0 | R31: 66.5
A32: 540 | G32: sum | H32: =SUM(H10:H31) -> 68 | I32: =SUM(I10:I31) -> 102 | K32: 31 | L32: 8.7 | M32: 3.0 | N32: 0.0 | O32: 134 | P32: 79.3 | Q32: 22.4 | R32: 101.6
G33: average | H33: =H32/($A$31-COUNTIF($C$10:$C$31,0)) -> 3.4 | I33: =I32/($A$31-COUNTIF($C$10:$C$31,0)) -> 5.1 | K33: 32 | L33: 18.8 | M33: 0.2 | N33: 0.0 | O33: 88 | P33: 65.5 | Q33: 14.7 | R33: 80.2
G34: Overtime | H34: =IF(G31>A32,G31-A32,0) -> 0 | K34: 33 | L34: 4.4 | M34: 4.3 | N34: 13.2 | O34: 84 | P34: 103.1 | Q34: 14.1 | R34: 117.1
K35: 34 | L35: 21.2 | M35: 1.3 | N35: 13.1 | O35: 29 | P35: 109.3 | Q35: 4.8 | R35: 114.2
A36: Cost | C36: hour | D36: min | E36: Cost | G36: count | H36: time | I36: cost | K36: 35 | L36: 4.9 | M36: 3.0 | N36: 0.0 | O36: 65 | P36: 67.0 | Q36: 10.8 | R36: 77.9
A37: Ratio | B37: Cw | C37: 10 | D37: =C37/60 -> 0.167 | E37: =D37*H32 -> 11 | F37: Under | G37: 4 | H37: 95.5 | I37: =D37*H37 -> 16 | K37: 36 | L37: 2.1 | M37: 4.2 | N37: 0.0 | O37: 83 | P37: 77.7 | Q37: 13.9 | R37: 91.6
A38: 5 | B38: Cp | C38: =C37*A38 -> 50 | D38: =C38/60 -> 0.833 | E38: =D38*I32 -> 85 | K38: 37 | L38: 18.6 | M38: 0.2 | N38: 51.5 | O38: 65 | P38: 135.5 | Q38: 10.8 | R38: 146.3
B39: Co | C39: =C38*1.5 -> 75 | D39: =C39/60 -> 1.250 | E39: =IF(G31>A32,D39*(G31-A32),0) -> 0 | K39: 38 | L39: 8.4 | M39: 3.7 | N39: 0.0 | O39: 98 | P39: 89.5 | Q39: 16.4 | R39: 105.9
D40: Cost_Flow | E40: =SUM(E37:E39) -> 97 | H40: Cost_Flex | I40: =I37 -> 16 | K40: 39 | L40: 4.3 | M40: 2.0 | N40: 0.0 | O40: 64 | P40: 46.8 | Q40: 10.7 | R40: 57.5
F41: Total Cost | G41: =E40+I40 -> 113 | K41: 40 | L41: 4.4 | M41: 3.5 | N41: 0.0 | O41: 58 | P41: 72.9 | Q41: 9.6 | R41: 82.5
K42: 41 | L42: 2.7 | M42: 4.3 | N42: 0.0 | O42: 94 | P42: 80.7 | Q42: 15.7 | R42: 96.4
D43: Gamma | K43: 42 | L43: 40.0 | M43: 2.4 | N43: 89.1 | O43: 85 | P43: 285.1 | Q43: 14.2 | R43: 299.3
A44: Physician1 STT(Scheduled Treatment Time) | B44: Average | C44: SD | D44: alpha | E44: beta | F44: Distribution % | G44: Cummulative% | H44: Group | I44: count | K44: 43 | L44: 5.8 | M44: 1.3 | N44: 0.0 | O44: 44 | P44: 45.7 | Q44: 7.3 | R44: 53.1
A45: WCC | B45: 13.8 | C45: 6 | D45: =(B45/C45)^2 -> 5.29 | E45: =C45^2/B45 -> 2.61 | F45: 0.06840390879 | G45: =F45 -> 0.06840390879 | H45: a | I45: 2 | K45: 44 | L45: 5.8 | M45: 3.0 | N45: 0.0 | O45: 20 | P45: 70.1 | Q45: 3.4 | R45: 73.5
A46: OV | B46: 16.2 | C46: 7 | D46: 5.06 | E46: 3.20 | F46: 0.5570032573 | G46: =G45+F46 -> 0.6254071661 | H46: b | I46: 12 | K46: 45 | L46: 9.3 | M46: 2.2 | N46: 16.6 | O46: 88 | P46: 91.8 | Q46: 14.7 | R46: 106.5
A47: FU | B47: 18 | C47: 12 | D47: 2.11 | E47: 8.54 | F47: 0.1563517915 | G47: =G46+F47 -> 0.7817589577 | H47: c | I47: 3 | K47: 46 | L47: 6.6 | M47: 4.0 | N47: 0.0 | O47: 83 | P47: 83.8 | Q47: 13.9 | R47: 97.7
A48: ER/UC | B48: 18.7 | C48: 5 | D48: 12.93 | E48: 1.45 | F48: 0.05211726384 | G48: 0.8338762215 | H48: d | I48: 1 | K48: 47 | L48: 4.5 | M48: 2.6 | N48: 0.0 | O48: 61 | P48: 59.0 | Q48: 10.1 | R48: 69.1
A49: PE | B49: 20.5 | C49: 5 | D49: 14.41 | E49: 1.42 | F49: 0.07166123779 | G49: 0.9055374593 | H49: e | I49: 2 | K49: 48 | L49: 3.9 | M49: 3.4 | N49: 8.4 | O49: 84 | P49: 79.5 | Q49: 14.1 | R49: 93.6
A50: NP | B50: 25 | C50: 8 | D50: 9.07 | E50: 2.76 | F50: 0.09446254072 | G50: 1 | H50: f | I50: 2 | K50: 49 | L50: 3.7 | M50: 4.2 | N50: 0.0 | O50: 139 | P50: 78.8 | Q50: 23.1 | R50: 101.9
K51: 50 | L51: 4.4 | M51: 3.3 | N51: 0.0 | O51: 149 | P51: 69.7 | Q51: 24.8 | R51: 94.5
A52: Charting time | B52: 4 | K52: 51 | L52: 8.4 | M52: 2.0 | N52: 26.7 | O52: 47 | P52: 94.3 | Q52: 7.8 | R52: 102.1
K53: 52 | L53: 6.3 | M53: 2.9 | N53: 6.1 | O53: 71 | P53: 76.9 | Q53: 11.8 | R53: 88.7
K54: 53 | L54: 12.2 | M54: 0.9 | N54: 66.6 | O54: 105 | P54: 138.7 | Q54: 17.5 | R54: 156.2
K55: 54 | L55: 6.5 | M55: 1.9 | N55: 0.0 | O55: 103 | P55: 53.5 | Q55: 17.2 | R55: 70.8
K56: 55 | L56: 6.9 | M56: 1.9 | N56: 0.0 | O56: 90 | P56: 53.9 | Q56: 14.9 | R56: 68.8
K57: 56 | L57: 1.7 | M57: 5.1 | N57: 4.3 | O57: 79 | P57: 90.8 | Q57: 13.1 | R57: 103.9
K58: 57 | L58: 31.7 | M58: 5.1 | N58: 29.3 | O58: 64 | P58: 208.1 | Q58: 10.7 | R58: 218.8
K59: 58 | L59: 5.0 | M59: 3.2 | N59: 0.0 | O59: 67 | P59: 66.3 | Q59: 11.2 | R59: 77.5
K60: 59 | L60: 3.2 | M60: 4.6 | N60: 4.6 | O60: 168 | P60: 93.4 | Q60: 28.0 | R60: 121.4
K61: 60 | L61: 1.8 | M61: 5.1 | N61: 0.0 | O61: 83 | P61: 91.1 | Q61: 13.8 | R61: 104.8
K62: 61 | L62: 7.3 | M62: 2.7 | N62: 8.0 | O62: 110 | P62: 82.9 | Q62: 18.3 | R62: 101.2
K63: 62 | L63: 2.7 | M63: 4.3 | N63: 8.3 | O63: 90 | P63: 91.5 | Q63: 14.9 | R63: 106.5
K64: 63 | L64: 8.0 | M64: 3.0 | N64: 0.0 | O64: 104 | P64: 73.7 | Q64: 17.3 | R64: 90.9
K65: 64 | L65: 2.2 | M65: 4.8 | N65: 2.9 | O65: 66 | P65: 86.6 | Q65: 11.0 | R65: 97.6
K66: 65 | L66: 3.3 | M66: 3.9 | N66: 0.0 | O66: 81 | P66: 76.4 | Q66: 13.5 | R66: 89.9
K67: 66 | L67: 3.5 | M67: 3.6 | N67: 0.0 | O67: 38 | P67: 68.6 | Q67: 6.3 | R67: 74.9
K68: 67 | L68: 9.1 | M68: 1.1 | N68: 28.1 | O68: 74 | P68: 85.5 | Q68: 12.3 | R68: 97.8
K69: 68 | L69: 15.0 | M69: 1.2 | N69: 0.0 | O69: 88 | P69: 74.2 | Q69: 14.7 | R69: 88.9
K70: 69 | L70: 5.8 | M70: 2.2 | N70: 0.0 | O70: 87 | P70: 52.7 | Q70: 14.5 | R70: 67.2
K71: 70 | L71: 16.3 | M71: 1.2 | N71: 5.6 | O71: 63 | P71: 86.0 | Q71: 10.5 | R71: 96.5
K72: 71 | L72: 10.1 | M72: 5.2 | N72: 3.2 | O72: 87 | P72: 117.8 | Q72: 14.5 | R72: 132.3
K73: 72 | L73: 13.3 | M73: 2.1 | N73: 0.0 | O73: 62 | P73: 79.6 | Q73: 10.4 | R73: 90.0
K74: 73 | L74: 9.9 | M74: 2.1 | N74: 0.0 | O74: 86 | P74: 68.5 | Q74: 14.4 | R74: 82.8
K75: 74 | L75: 2.9 | M75: 5.2 | N75: 0.0 | O75: 45 | P75: 90.9 | Q75: 7.6 | R75: 98.5
K76: 75 | L76: 5.4 | M76: 2.4 | N76: 0.0 | O76: 83 | P76: 57.2 | Q76: 13.8 | R76: 71.0
K77: 76 | L77: 6.5 | M77: 1.9 | N77: 34.1 | O77: 69 | P77: 100.8 | Q77: 11.6 | R77: 112.3
K78: 77 | L78: 5.5 | M78: 1.8 | N78: 0.0 | O78: 45 | P78: 50.3 | Q78: 7.5 | R78: 57.8
K79: 78 | L79: 2.7 | M79: 5.0 | N79: 5.7 | O79: 69 | P79: 98.8 | Q79: 11.5 | R79: 110.2
K80: 79 | L80: 7.3 | M80: 2.1 | N80: 0.0 | O80: 76 | P80: 58.7 | Q80: 12.6 | R80: 71.4
K81: 80 | L81: 15.5 | M81: 0.3 | N81: 19.6 | O81: 25 | P81: 86.8 | Q81: 4.1 | R81: 90.9
K82: 81 | L82: 10.9 | M82: 6.3 | N82: 10.4 | O82: 171 | P82: 139.8 | Q82: 28.4 | R82: 168.2
K83: 82 | L83: 13.3 | M83: 2.5 | N83: 0.0 | O83: 110 | P83: 90.3 | Q83: 18.3 | R83: 108.6
K84: 83 | L84: 9.8 | M84: 5.4 | N84: 0.0 | O84: 86 | P84: 104.1 | Q84: 14.4 | R84: 118.5
K85: 84 | L85: 10.5 | M85: 1.9 | N85: 3.2 | O85: 112 | P85: 71.4 | Q85: 18.7 | R85: 90.1
K86: 85 | L86: 16.7 | M86: 0.9 | N86: 23.0 | O86: 76 | P86: 103.0 | Q86: 12.6 | R86: 115.6
K87: 86 | L87: 25.9 | M87: 0.0 | N87: 19.2 | O87: 72 | P87: 119.5 | Q87: 12.0 | R87: 131.5
K88: 87 | L88: 8.8 | M88: 3.9 | N88: 0.0 | O88: 96 | P88: 85.5 | Q88: 16.0 | R88: 101.4
K89: 88 | L89: 3.6 | M89: 1.8 | N89: 12.7 | O89: 45 | P89: 61.6 | Q89: 7.5 | R89: 69.0
K90: 89 | L90: 5.9 | M90: 3.6 | N90: 0.0 | O90: 85 | P90: 88.3 | Q90: 14.1 | R90: 102.5
K91: 90 | L91: 34.5 | M91: 0.3 | N91: 15.6 | O91: 88 | P91: 146.2 | Q91: 14.7 | R91: 160.9
K92: 91 | L92: 4.5 | M92: 5.6 | N92: 14.5 | O92: 129 | P92: 115.6 | Q92: 21.4 | R92: 137.1
K93: 92 | L93: 6.0 | M93: 3.1 | N93: 5.0 | O93: 105 | P93: 70.0 | Q93: 17.4 | R93: 87.5
K94: 93 | L94: 3.0 | M94: 5.4 | N94: 20.4 | O94: 89 | P94: 120.6 | Q94: 14.9 | R94: 135.5
K95: 94 | L95: 4.9 | M95: 2.6 | N95: 11.6 | O95: 69 | P95: 73.8 | Q95: 11.5 | R95: 85.3
K96: 95 | L96: 17.5 | M96: 1.5 | N96: 2.5 | O96: 81 | P96: 86.1 | Q96: 13.5 | R96: 99.6
K97: 96 | L97: 7.5 | M97: 3.0 | N97: 4.4 | O97: 61 | P97: 80.8 | Q97: 10.1 | R97: 90.9
K98: 97 | L98: 20.7 | M98: 1.9 | N98: 0.0 | O98: 61 | P98: 100.4 | Q98: 10.1 | R98: 110.5
K99: 98 | L99: 9.2 | M99: 0.7 | N99: 0.0 | O99: 69 | P99: 42.7 | Q99: 11.6 | R99: 54.2
K100: 99 | L100: 9.0 | M100: 2.4 | N100: 1.3 | O100: 61 | P100: 74.3 | Q100: 10.1 | R100: 84.4
K101: 100 | L101: 3.4 | M101: 5.1 | N101: 0.0 | O101: 96 | P101: 96.7 | Q101: 15.9 | R101: 112.6
K102: Average | L102: =AVERAGE(L2:L101) -> 8.8 | M102: 2.9 | N102: 9.2 | O102: 80.5 | P102: =AVERAGE(P2:P101) -> 88.9 | Q102: 13.4 | R102: =AVERAGE(R2:R101) -> 102.3
A105: Time | B105: 1 | C105: 2 | D105: 3 | E105: 4 | F105: 5 | G105: 6 | H105: 7 | I105: 8 | J105: 9 | K105: 10 | L105: 11 | M105: 12 | N105: 13 | O105: 14 | P105: 15 | Q105: 16 | R105: 17 | S105: 18 | T105: 19 | U105: 20 | V105: 21 | W105: 22 | X105: 23 | Y105: 24 | Z105: 25 | AA105: 26 | AB105: 27 | AC105: 28 | AD105: 29 | AE105: 30 | AF105: 31 | AG105: 32 | AH105: 33 | AI105: 34 | AJ105: 35 | AK105: 36 | AL105: 37 | AM105: 38 | AN105: 39 | AO105: 40 | AP105: 41 | AQ105: 42 | AR105: 43 | AS105: 44 | AT105: 45 | AU105: 46 | AV105: 47 | AW105: 48 | AX105: 49 | AY105: 50 | AZ105: 51 | BA105: 52 | BB105: 53 | BC105: 54 | BD105: 55 | BE105: 56 | BF105: 57 | BG105: 58 | BH105: 59 | BI105: 60 | BJ105: 61 | BK105: 62 | BL105: 63 | BM105: 64 | BN105: 65 | BO105: 66 | BP105: 67 | BQ105: 68 | BR105: 69 | BS105: 70 | BT105: 71 | BU105: 72 | BV105: 73 | BW105: 74 | BX105: 75 | BY105: 76 | BZ105: 77 | CA105: 78 | CB105: 79 | CC105: 80 | CD105: 81 | CE105: 82 | CF105: 83 | CG105: 84 | CH105: 85 | CI105: 86 | CJ105: 87 | CK105: 88 | CL105: 89 | CM105: 90 | CN105: 91 | CO105: 92 | CP105: 93 | CQ105: 94 | CR105: 95 | CS105: 96 | CT105: 97 | CU105: 98 | CV105: 99 | CW105: 100
A106: 1 | B106: =IF(B254=1,IF(B154=$A$45,GAMMAINV(B130,$D$45,$E$45)+$B$52,IF(B154=$A$46,GAMMAINV(B130,$D$46,$E$46)+$B$52,IF(B154=$A$47,GAMMAINV(B130,$D$47,$E$47)+$B$52,IF(B154=$A$48,GAMMAINV(B130,$D$48,$E$48)+$B$52,IF(B154=$A$49,GAMMAINV(B130,$D$49,$E$49)+$B$52,GAMMAINV(B130,$D$50,$E$50)+$B$52))))),0) -> 32 | C106: =IF(C254=1,IF(C154=$A$45,GAMMAINV(C130,$D$45,$E$45)+$B$52,IF(C154=$A$46,GAMMAINV(C130,$D$46,$E$46)+$B$52,IF(C154=$A$47,GAMMAINV(C130,$D$47,$E$47)+$B$52,IF(C154=$A$48,GAMMAINV(C130,$D$48,$E$48)+$B$52,IF(C154=$A$49,GAMMAINV(C130,$D$49,$E$49)+$B$52,GAMMAINV(C130,$D$50,$E$50)+$B$52))))),0) -> 34 | D106: 30 | E106: 21 | F106: 28 | G106: 24 | H106: 15 | I106: 15 | J106: 32 | K106: 30 | L106: 11 | M106: 0 | N106: 16 | O106: 19 | P106: 24 | Q106: 14 | R106: 27 | S106: 17 | T106: 22 | U106: 0 | V106: 0 | W106: 21 | X106: 26 | Y106: 30 | Z106: 28 | AA106: 9 | AB106: 21 | AC106: 17 | AD106: 24 | AE106: 22 | AF106: 32 | AG106: 29 | AH106: =IF(AH254=1,IF(AH154=$A$45,GAMMAINV(AH130,$D$45,$E$45)+$B$52,IF(AH154=$A$46,GAMMAINV(AH130,$D$46,$E$46)+$B$52,IF(AH154=$A$47,GAMMAINV(AH130,$D$47,$E$47)+$B$52,IF(AH154=$A$48,GAMMAINV(AH130,$D$48,$E$48)+$B$52,IF(AH154=$A$49,GAMMAINV(AH130,$D$49,$E$49)+$B$52,GAMMAINV(AH130,$D$50,$E$50)+$B$52))))),0) -> 0 | AI106: 0 | AJ106: 19 | AK106: 18 | AL106: 19 | AM106: 31 | AN106: 21 | AO106: 18 | AP106: 17 | AQ106: 10 | AR106: 19 | AS106: 0 | AT106: 14 | AU106: 9 | AV106: 20 | AW106: 21 | AX106: 20 | AY106: 14 | AZ106: 17 | BA106: 10 | BB106: 22 | BC106: 22 | BD106: 17 | BE106: 0 | BF106: 0 | BG106: 27 | BH106: 13 | BI106: 0 | BJ106: 10 | BK106: 8 | BL106: 31 | BM106: 0 | BN106: =IF(BN254=1,IF(BN154=$A$45,GAMMAINV(BN130,$D$45,$E$45)+$B$52,IF(BN154=$A$46,GAMMAINV(BN130,$D$46,$E$46)+$B$52,IF(BN154=$A$47,GAMMAINV(BN130,$D$47,$E$47)+$B$52,IF(BN154=$A$48,GAMMAINV(BN130,$D$48,$E$48)+$B$52,IF(BN154=$A$49,GAMMAINV(BN130,$D$49,$E$49)+$B$52,GAMMAINV(BN130,$D$50,$E$50)+$B$52))))),0) -> 13 | BO106: 30 | BP106: 41 | BQ106: 22 | BR106: 28 | BS106: 14 | BT106: 16 | BU106: 25 | BV106: 14 | BW106: 17 | BX106: 30 | BY106: 28 | BZ106: 8 | CA106: 10 | CB106: 15 | CC106: 22 | CD106: 0 | CE106: 22 | CF106: 14 | CG106: 11 | CH106: 19 | CI106: 20 | CJ106: 31 | CK106: 11 | CL106: 16 | CM106: 16 | CN106: 33 | CO106: 20 | CP106: 7 | CQ106: 22 | CR106: 29 | CS106: 15 | CT106: 40 | CU106: 19 | CV106: 14 | CW106: 15
A107: 2 | B107: =IF(B255=1,IF(B155=$A$45,GAMMAINV(B131,$D$45,$E$45)+$B$52,IF(B155=$A$46,GAMMAINV(B131,$D$46,$E$46)+$B$52,IF(B155=$A$47,GAMMAINV(B131,$D$47,$E$47)+$B$52,IF(B155=$A$48,GAMMAINV(B131,$D$48,$E$48)+$B$52,IF(B155=$A$49,GAMMAINV(B131,$D$49,$E$49)+$B$52,GAMMAINV(B131,$D$50,$E$50)+$B$52))))),0) -> 21 | C107: 29 | D107: 28 | E107: 22 | F107: 26 | G107: 0 | H107: 17 | I107: 21 | J107: 19 | K107: 14 | L107: 13 | M107: 16 | N107: 13 | O107: 12 | P107: 22 | Q107: 20 | R107: 28 | S107: 17 | T107: 9 | U107: 31 | V107: 21 | W107: 15 | X107: 14 | Y107: 36 | Z107: 17 | AA107: 21 | AB107: 14 | AC107: 0 | AD107: 0 | AE107: 17 | AF107: 19 | AG107: 21 | AH107: =IF(AH255=1,IF(AH155=$A$45,GAMMAINV(AH131,$D$45,$E$45)+$B$52,IF(AH155=$A$46,GAMMAINV(AH131,$D$46,$E$46)+$B$52,IF(AH155=$A$47,GAMMAINV(AH131,$D$47,$E$47)+$B$52,IF(AH155=$A$48,GAMMAINV(AH131,$D$48,$E$48)+$B$52,IF(AH155=$A$49,GAMMAINV(AH131,$D$49,$E$49)+$B$52,GAMMAINV(AH131,$D$50,$E$50)+$B$52))))),0) -> 17 | AI107: 11 | AJ107: 15 | AK107: 16 | AL107: 22 | AM107: 29 | AN107: 23 | AO107: 16 | AP107: 10 | AQ107: 19 | AR107: 11 | AS107: 12 | AT107: 19 | AU107: 22 | AV107: 18 | AW107: 8 | AX107: 25 | AY107: 0 | AZ107: 0 | BA107: 0 | BB107: 17 | BC107: 24 | BD107: 32 | BE107: 22 | BF107: 12 | BG107: 13 | BH107: 0 | BI107: 22 | BJ107: 13 | BK107: 11 | BL107: 0 | BM107: 16 | BN107: =IF(BN255=1,IF(BN155=$A$45,GAMMAINV(BN131,$D$45,$E$45)+$B$52,IF(BN155=$A$46,GAMMAINV(BN131,$D$46,$E$46)+$B$52,IF(BN155=$A$47,GAMMAINV(BN131,$D$47,$E$47)+$B$52,IF(BN155=$A$48,GAMMAINV(BN131,$D$48,$E$48)+$B$52,IF(BN155=$A$49,GAMMAINV(BN131,$D$49,$E$49)+$B$52,GAMMAINV(BN131,$D$50,$E$50)+$B$52))))),0) -> 20 | BO107: 24 | BP107: 15 | BQ107: 30 | BR107: 0 | BS107: 12 | BT107: 23 | BU107: 20 | BV107: 25 | BW107: 22 | BX107: 0 | BY107: 7 | BZ107: 19 | CA107: 10 | CB107: 18 | CC107: 10 | CD107: 11 | CE107: 14 | CF107: 13 | CG107: 15 | CH107: 20 | CI107: 31 | CJ107: 20 | CK107: 19 | CL107: 14 | CM107: 18 | CN107: 12 | CO107: 30 | CP107: 0 | CQ107: 13 | CR107: 18 | CS107: 12 | CT107: 26 | CU107: 21 | CV107: 15 | CW107: 11
A108: 3 | B108: =IF(B256=1,IF(B156=$A$45,GAMMAINV(B132,$D$45,$E$45)+$B$52,IF(B156=$A$46,GAMMAINV(B132,$D$46,$E$46)+$B$52,IF(B156=$A$47,GAMMAINV(B132,$D$47,$E$47)+$B$52,IF(B156=$A$48,GAMMAINV(B132,$D$48,$E$48)+$B$52,IF(B156=$A$49,GAMMAINV(B132,$D$49,$E$49)+$B$52,GAMMAINV(B132,$D$50,$E$50)+$B$52))))),0) -> 16 | C108: 19 | D108: 9 | E108: 17 | F108: 16 | G108: 0 | H108: 39 | I108: 11 | J108: 0 | K108: 20 | L108: 23 | M108: 46 | N108: 17 | O108: 24 | P108: 27 | Q108: 14 | R108: 25 | S108: 31 | T108: 0 | U108: 13 | V108: 16 | W108: 22 | X108: 32 | Y108: 27 | Z108: 15 | AA108: 26 | AB108: 49 | AC108: 7 | AD108: 18 | AE108: 39 | AF108: 19 | AG108: 30 | AH108: =IF(AH256=1,IF(AH156=$A$45,GAMMAINV(AH132,$D$45,$E$45)+$B$52,IF(AH156=$A$46,GAMMAINV(AH132,$D$46,$E$46)+$B$52,IF(AH156=$A$47,GAMMAINV(AH132,$D$47,$E$47)+$B$52,IF(AH156=$A$48,GAMMAINV(AH132,$D$48,$E$48)+$B$52,IF(AH156=$A$49,GAMMAINV(AH132,$D$49,$E$49)+$B$52,GAMMAINV(AH132,$D$50,$E$50)+$B$52))))),0) -> 0 | AI108: 37 | AJ108: 20 | AK108: 28 | AL108: 24 | AM108: 31 | AN108: 20 | AO108: 30 | AP108: 21 | AQ108: 15 | AR108: 12 | AS108: 16 | AT108: 12 | AU108: 11 | AV108: 17 | AW108: 21 | AX108: 28 | AY108: 27 | AZ108: 21 | BA108: 20 | BB108: 10 | BC108: 10 | BD108: 28 | BE108: 15 | BF108: 0 | BG108: 11 | BH108: 15 | BI108: 16 | BJ108: 10 | BK108: 17 | BL108: 12 | BM108: 12 | BN108: =IF(BN256=1,IF(BN156=$A$45,GAMMAINV(BN132,$D$45,$E$45)+$B$52,IF(BN156=$A$46,GAMMAINV(BN132,$D$46,$E$46)+$B$52,IF(BN156=$A$47,GAMMAINV(BN132,$D$47,$E$47)+$B$52,IF(BN156=$A$48,GAMMAINV(BN132,$D$48,$E$48)+$B$52,IF(BN156=$A$49,GAMMAINV(BN132,$D$49,$E$49)+$B$52,GAMMAINV(BN132,$D$50,$E$50)+$B$52))))),0) -> 18 | BO108: 15 | BP108: 24 | BQ108: 19 | BR108: 34 | BS108: 33 | BT108: 26 | BU108: 16 | BV108: 16 | BW108: 20 | BX108: 29 | BY108: 17 | BZ108: 29 | CA108: 24 | CB108: 16 | CC108: 25 | CD108: 0 | CE108: 35 | CF108: 21 | CG108: 27 | CH108: 20 | CI108: 28 | CJ108: 19 | CK108: 29 | CL108: 12 | CM108: 26 | CN108: 24 | CO108: 11 | CP108: 19 | CQ108: 19 | CR108: 23 | CS108: 0 | CT108: 21 | CU108: 18 | CV108: 23 | CW108: 0
A109: 4 | B109: =IF(B257=1,IF(B157=$A$45,GAMMAINV(B133,$D$45,$E$45)+$B$52,IF(B157=$A$46,GAMMAINV(B133,$D$46,$E$46)+$B$52,IF(B157=$A$47,GAMMAINV(B133,$D$47,$E$47)+$B$52,IF(B157=$A$48,GAMMAINV(B133,$D$48,$E$48)+$B$52,IF(B157=$A$49,GAMMAINV(B133,$D$49,$E$49)+$B$52,GAMMAINV(B133,$D$50,$E$50)+$B$52))))),0) -> 20 | C109: 0 | D109: 30 | E109: 49 | F109: 36 | G109: 30 | H109: 23 | I109: 0 | J109: 16 | K109: 0 | L109: 17 | M109: 21 | N109: 0 | O109: 44 | P109: 42 | Q109: 27 | R109: 17 | S109: 14 | T109: 15 | U109: 14 | V109: 28 | W109: 32 | X109: 24 | Y109: 0 | Z109: 18 | AA109: 20 | AB109: 32 | AC109: 12 | AD109: 34 | AE109: 12 | AF109: 38 | AG109: 38 | AH109: =IF(AH257=1,IF(AH157=$A$45,GAMMAINV(AH133,$D$45,$E$45)+$B$52,IF(AH157=$A$46,GAMMAINV(AH133,$D$46,$E$46)+$B$52,IF(AH157=$A$47,GAMMAINV(AH133,$D$47,$E$47)+$B$52,IF(AH157=$A$48,GAMMAINV(AH133,$D$48,$E$48)+$B$52,IF(AH157=$A$49,GAMMAINV(AH133,$D$49,$E$49)+$B$52,GAMMAINV(AH133,$D$50,$E$50)+$B$52))))),0) -> 37 | AI109: 40 | AJ109: 13 | AK109: 15 | AL109: 43 | AM109: 18 | AN109: 16 | AO109: 32 | AP109: 8 | AQ109: 11 | AR109: 29 | AS109: 42 | AT109: 14 | AU109: 25 | AV109: 16 | AW109: 11 | AX109: 10 | AY109: 20 | AZ109: 28 | BA109: 11 | BB109: 26 | BC109: 39 | BD109: 19 | BE109: 23 | BF109: 72 | BG109: 23 | BH109: 29 | BI109: 30 | BJ109: 47 | BK109: 18 | BL109: 20 | BM109: 11 | BN109: =IF(BN257=1,IF(BN157=$A$45,GAMMAINV(BN133,$D$45,$E$45)+$B$52,IF(BN157=$A$46,GAMMAINV(BN133,$D$46,$E$46)+$B$52,IF(BN157=$A$47,GAMMAINV(BN133,$D$47,$E$47)+$B$52,IF(BN157=$A$48,GAMMAINV(BN133,$D$48,$E$48)+$B$52,IF(BN157=$A$49,GAMMAINV(BN133,$D$49,$E$49)+$B$52,GAMMAINV(BN133,$D$50,$E$50)+$B$52))))),0) -> 26 | BO109: 0 | BP109: 18 | BQ109: 4 | BR109: 15 | BS109: 22 | BT109: 26 | BU109: 17 | BV109: 29 | BW109: 10 | BX109: 26 | BY109: 15 | BZ109: 12 | CA109: 14 | CB109: 0 | CC109: 31 | CD109: 52 | CE109: 29 | CF109: 11 | CG109: 16 | CH109: 48 | CI109: 39 | CJ109: 14 | CK109: 26 | CL109: 14 | CM109: 41 | CN109: 19 | CO109: 11 | CP109: 13 | CQ109: 14 | CR109: 45 | CS109: 23 | CT109: 33 | CU109: 40 | CV109: 11 | CW109: 31
A110: 5 | B110: =IF(B258=1,IF(B158=$A$45,GAMMAINV(B134,$D$45,$E$45)+$B$52,IF(B158=$A$46,GAMMAINV(B134,$D$46,$E$46)+$B$52,IF(B158=$A$47,GAMMAINV(B134,$D$47,$E$47)+$B$52,IF(B158=$A$48,GAMMAINV(B134,$D$48,$E$48)+$B$52,IF(B158=$A$49,GAMMAINV(B134,$D$49,$E$49)+$B$52,GAMMAINV(B134,$D$50,$E$50)+$B$52))))),0) -> 14 | C110: 36 | D110: 9 | E110: 32 | F110: 20 | G110: 15 | H110: 25 | I110: 29 | J110: 19 | K110: 24 | L110: 11 | M110: 19 | N110: 27 | O110: 22 | P110: 14 | Q110: 0 | R110: 15 | S110: 18 | T110: 28 | U110: 18 | V110: 17 | W110: 17 | X110: 0 | Y110: 18 | Z110: 27 | AA110: 15 | AB110: 18 | AC110: 19 | AD110: 28 | AE110: 29 | AF110: 9 | AG110: 35 | AH110: =IF(AH258=1,IF(AH158=$A$45,GAMMAINV(AH134,$D$45,$E$45)+$B$52,IF(AH158=$A$46,GAMMAINV(AH134,$D$46,$E$46)+$B$52,IF(AH158=$A$47,GAMMAINV(AH134,$D$47,$E$47)+$B$52,IF(AH158=$A$48,GAMMAINV(AH134,$D$48,$E$48)+$B$52,IF(AH158=$A$49,GAMMAINV(AH134,$D$49,$E$49)+$B$52,GAMMAINV(AH134,$D$50,$E$50)+$B$52))))),0) -> 15 | AI110: 14 | AJ110: 30 | AK110: 20 | AL110: 10 | AM110: 12 | AN110: 24 | AO110: 20 | AP110: 22 | AQ110: 27 | AR110: 27 | AS110: 14 | AT110: 20 | AU110: 0 | AV110: 0 | AW110: 0 | AX110: 22 | AY110: 13 | AZ110: 23 | BA110: 13 | BB110: 18 | BC110: 17 | BD110: 0 | BE110: 0 | BF110: 34 | BG110: 25 | BH110: 16 | BI110: 19 | BJ110: 15 | BK110: 19 | BL110: 22 | BM110: 18 | BN110: =IF(BN258=1,IF(BN158=$A$45,GAMMAINV(BN134,$D$45,$E$45)+$B$52,IF(BN158=$A$46,GAMMAINV(BN134,$D$46,$E$46)+$B$52,IF(BN158=$A$47,GAMMAINV(BN134,$D$47,$E$47)+$B$52,IF(BN158=$A$48,GAMMAINV(BN134,$D$48,$E$48)+$B$52,IF(BN158=$A$49,GAMMAINV(BN134,$D$49,$E$49)+$B$52,GAMMAINV(BN134,$D$50,$E$50)+$B$52))))),0) -> 25 | BO110: 14 | BP110: 19 | BQ110: 0 | BR110: 26 | BS110: 33 | BT110: 21 | BU110: 27 | BV110: 23 | BW110: 15 | BX110: 12 | BY110: 16 | BZ110: 24 | CA110: 23 | CB110: 18 | CC110: 26 | CD110: 15 | CE110: 25 | CF110: 0 | CG110: 13 | CH110: 17 | CI110: 16 | CJ110: 24 | CK110: 15 | CL110: 15 | CM110: 60 | CN110: 22 | CO110: 48 | CP110: 13 | CQ110: 11 | CR110: 23 | CS110: 26 | CT110: 20 | CU110: 21 | CV110: 20 | CW110: 0
A111: 6 | B111: =IF(B259=1,IF(B159=$A$45,GAMMAINV(B135,$D$45,$E$45)+$B$52,IF(B159=$A$46,GAMMAINV(B135,$D$46,$E$46)+$B$52,IF(B159=$A$47,GAMMAINV(B135,$D$47,$E$47)+$B$52,IF(B159=$A$48,GAMMAINV(B135,$D$48,$E$48)+$B$52,IF(B159=$A$49,GAMMAINV(B135,$D$49,$E$49)+$B$52,GAMMAINV(B135,$D$50,$E$50)+$B$52))))),0) -> 22 | C111: 16 | D111: 31 | E111: 32 | F111: 36 | G111: 30 | H111: 25 | I111: 30 | J111: 19 | K111: 0 | L111: 44 | M111: 0 | N111: 27 | O111: 26 | P111: 0 | Q111: 25 | R111: 30 | S111: 34 | T111: 25 | U111: 18 | V111: 41 | W111: 31 | X111: 33 | Y111: 22 | Z111: 42 | AA111: 23 | AB111: 29 | AC111: 16 | AD111: 16 | AE111: 36 | AF111: 26 | AG111: 26 | AH111: =IF(AH259=1,IF(AH159=$A$45,GAMMAINV(AH135,$D$45,$E$45)+$B$52,IF(AH159=$A$46,GAMMAINV(AH135,$D$46,$E$46)+$B$52,IF(AH159=$A$47,GAMMAINV(AH135,$D$47,$E$47)+$B$52,IF(AH159=$A$48,GAMMAINV(AH135,$D$48,$E$48)+$B$52,IF(AH159=$A$49,GAMMAINV(AH135,$D$49,$E$49)+$B$52,GAMMAINV(AH135,$D$50,$E$50)+$B$52))))),0) -> 28 | AI111: 41 | AJ111: 29 | AK111: 18 | AL111: 21 | AM111: 33 | AN111: 21 | AO111: 26 | AP111: 31 | AQ111: 32 | AR111: 13 | AS111: 26 | AT111: 17 | AU111: 18 | AV111: 47 | AW111: 27 | AX111: 19 | AY111: 38 | AZ111: 25 | BA111: 49 | BB111: 30 | BC111: 29 | BD111: 37 | BE111: 33 | BF111: 36 | BG111: 38 | BH111: 17 | BI111: 30 | BJ111: 26 | BK111: 19 | BL111: 27 | BM111: 36 | BN111: =IF(BN259=1,IF(BN159=$A$45,GAMMAINV(BN135,$D$45,$E$45)+$B$52,IF(BN159=$A$46,GAMMAINV(BN135,$D$46,$E$46)+$B$52,IF(BN159=$A$47,GAMMAINV(BN135,$D$47,$E$47)+$B$52,IF(BN159=$A$48,GAMMAINV(BN135,$D$48,$E$48)+$B$52,IF(BN159=$A$49,GAMMAINV(BN135,$D$49,$E$49)+$B$52,GAMMAINV(BN135,$D$50,$E$50)+$B$52))))),0) -> 21 | BO111: 16 | BP111: 25 | BQ111: 40 | BR111: 30 | BS111: 46 | BT111: 37 | BU111: 42 | BV111: 47 | BW111: 25 | BX111: 0 | BY111: 31 | BZ111: 42 | CA111: 0 | CB111: 34 | CC111: 35 | CD111: 25 | CE111: 43 | CF111: 33 | CG111: 40 | CH111: 34 | CI111: 28 | CJ111: 21 | CK111: 24 | CL111: 19 | CM111: 24 | CN111: 0 | CO111: 0 | CP111: 23 | CQ111: 36 | CR111: 0 | CS111: 20 | CT111: 27 | CU111: 41 | CV111: 33 | CW111: 22
A112: 7 | B112: =IF(B260=1,IF(B160=$A$45,GAMMAINV(B136,$D$45,$E$45)+$B$52,IF(B160=$A$46,GAMMAINV(B136,$D$46,$E$46)+$B$52,IF(B160=$A$47,GAMMAINV(B136,$D$47,$E$47)+$B$52,IF(B160=$A$48,GAMMAINV(B136,$D$48,$E$48)+$B$52,IF(B160=$A$49,GAMMAINV(B136,$D$49,$E$49)+$B$52,GAMMAINV(B136,$D$50,$E$50)+$B$52))))),0) -> 9 | C112: 11 | D112: 22 | E112: 15 | F112: 14 | G112: 19 | H112: 24 | I112: 21 | J112: 21 | K112: 20 | L112: 18 | M112: 12 | N112: 31 | O112: 17 | P112: 17 | Q112: 22 | R112: 12 | S112: 13 | T112: 18 | U112: 12 | V112: 22 | W112: 21 | X112: 28 | Y112: 20 | Z112: 14 | AA112: 13 | AB112: 10 | AC112: 20 | AD112: 0 | AE112: 0 | AF112: 26 | AG112: 29 | AH112: =IF(AH260=1,IF(AH160=$A$45,GAMMAINV(AH136,$D$45,$E$45)+$B$52,IF(AH160=$A$46,GAMMAINV(AH136,$D$46,$E$46)+$B$52,IF(AH160=$A$47,GAMMAINV(AH136,$D$47,$E$47)+$B$52,IF(AH160=$A$48,GAMMAINV(AH136,$D$48,$E$48)+$B$52,IF(AH160=$A$49,GAMMAINV(AH136,$D$49,$E$49)+$B$52,GAMMAINV(AH136,$D$50,$E$50)+$B$52))))),0) -> 18 | AI112: 20 | AJ112: 31 | AK112: 24 | AL112: 21 | AM112: 6 | AN112: 28 | AO112: 18 | AP112: 17 | AQ112: 22 | AR112: 30 | AS112: 19 | AT112: 21 | AU112: 23 | AV112: 15 | AW112: 17 | AX112: 40 | AY112: 14 | AZ112: 30 | BA112: 16 | BB112: 24 | BC112: 21 | BD112: 11 | BE112: 17 | BF112: 16 | BG112: 28 | BH112: 42 | BI112: 22 | BJ112: 15 | BK112: 15 | BL112: 36 | BM112: 18 | BN112: =IF(BN260=1,IF(BN160=$A$45,GAMMAINV(BN136,$D$45,$E$45)+$B$52,IF(BN160=$A$46,GAMMAINV(BN136,$D$46,$E$46)+$B$52,IF(BN160=$A$47,GAMMAINV(BN136,$D$47,$E$47)+$B$52,IF(BN160=$A$48,GAMMAINV(BN136,$D$48,$E$48)+$B$52,IF(BN160=$A$49,GAMMAINV(BN136,$D$49,$E$49)+$B$52,GAMMAINV(BN136,$D$50,$E$50)+$B$52))))),0) -> 16 | BO112: 23 | BP112: 21 | BQ112: 37 | BR112: 29 | BS112: 15 | BT112: 13 | BU112: 18 | BV112: 22 | BW112: 14 | BX112: 34 | BY112: 15 | BZ112: 21 | CA112: 8 | CB112: 13 | CC112: 11 | CD112: 13 | CE112: 18 | CF112: 28 | CG112: 23 | CH112: 16 | CI112: 19 | CJ112: 23 | CK112: 12 | CL112: 10 | CM112: 38 | CN112: 20 | CO112: 25 | CP112: 16 | CQ112: 26 | CR112: 16 | CS112: 0 | CT112: 26 | CU112: 0 | CV112: 27 | CW112: 11
A113: 8 | B113: =IF(B261=1,IF(B161=$A$45,GAMMAINV(B137,$D$45,$E$45)+$B$52,IF(B161=$A$46,GAMMAINV(B137,$D$46,$E$46)+$B$52,IF(B161=$A$47,GAMMAINV(B137,$D$47,$E$47)+$B$52,IF(B161=$A$48,GAMMAINV(B137,$D$48,$E$48)+$B$52,IF(B161=$A$49,GAMMAINV(B137,$D$49,$E$49)+$B$52,GAMMAINV(B137,$D$50,$E$50)+$B$52))))),0) -> 0 | C113: 9 | D113: 31 | E113: 14 | F113: 10 | G113: 14 | H113: 16 | I113: 0 | J113: 8 | K113: 8 | L113: 18 | M113: 12 | N113: 22 | O113: 0 | P113: 21 | Q113: 27 | R113: 33 | S113: 33 | T113: 28 | U113: 28 | V113: 24 | W113: 33 | X113: 16 | Y113: 9 | Z113: 5 | AA113: 17 | AB113: 33 | AC113: 30 | AD113: 14 | AE113: 13 | AF113: 8 | AG113: 0 | AH113: =IF(AH261=1,IF(AH161=$A$45,GAMMAINV(AH137,$D$45,$E$45)+$B$52,IF(AH161=$A$46,GAMMAINV(AH137,$D$46,$E$46)+$B$52,IF(AH161=$A$47,GAMMAINV(AH137,$D$47,$E$47)+$B$52,IF(AH161=$A$48,GAMMAINV(AH137,$D$48,$E$48)+$B$52,IF(AH161=$A$49,GAMMAINV(AH137,$D$49,$E$49)+$B$52,GAMMAINV(AH137,$D$50,$E$50)+$B$52))))),0) -> 7 | AI113: 21 | AJ113: 8 | AK113: 11 | AL113: 35 | AM113: 22 | AN113: 6 | AO113: 10 | AP113: 15 | AQ113: 9 | AR113: 19 | AS113: 20 | AT113: 30 | AU113: 24 | AV113: 16 | AW113: 23 | AX113: 0 | AY113: 6 | AZ113: 14 | BA113: 7 | BB113: 36 | BC113: 28 | BD113: 24 | BE113: 23 | BF113: 7 | BG113: 0 | BH113: 24 | BI113: 10 | BJ113: 27 | BK113: 26 | BL113: 32 | BM113: 33 | BN113: =IF(BN261=1,IF(BN161=$A$45,GAMMAINV(BN137,$D$45,$E$45)+$B$52,IF(BN161=$A$46,GAMMAINV(BN137,$D$46,$E$46)+$B$52,IF(BN161=$A$47,GAMMAINV(BN137,$D$47,$E$47)+$B$52,IF(BN161=$A$48,GAMMAINV(BN137,$D$48,$E$48)+$B$52,IF(BN161=$A$49,GAMMAINV(BN137,$D$49,$E$49)+$B$52,GAMMAINV(BN137,$D$50,$E$50)+$B$52))))),0) -> 6 | BO113: 17 | BP113: 0 | BQ113: 27 | BR113: 0 | BS113: 28 | BT113: 31 | BU113: 62 | BV113: 8 | BW113: 10 | BX113: 27 | BY113: 10 | BZ113: 16 | CA113: 25 | CB113: 33 | CC113: 47 | CD113: 36 | CE113: 17 | CF113: 15 | CG113: 33 | CH113: 8 | CI113: 21 | CJ113: 44 | CK113: 15 | CL113: 17 | CM113: 36 | CN113: 27 | CO113: 31 | CP113: 28 | CQ113: 32 | CR113: 67 | CS113: 47 | CT113: 10 | CU113: 24 | CV113: 56 | CW113: 6
A114: 9 | B114: =IF(B262=1,IF(B162=$A$45,GAMMAINV(B138,$D$45,$E$45)+$B$52,IF(B162=$A$46,GAMMAINV(B138,$D$46,$E$46)+$B$52,IF(B162=$A$47,GAMMAINV(B138,$D$47,$E$47)+$B$52,IF(B162=$A$48,GAMMAINV(B138,$D$48,$E$48)+$B$52,IF(B162=$A$49,GAMMAINV(B138,$D$49,$E$49)+$B$52,GAMMAINV(B138,$D$50,$E$50)+$B$52))))),0) -> 0 | C114: 21 | D114: 15 | E114: 29 | F114: 33 | G114: 18 | H114: 13 | I114: 28 | J114: 14 | K114: 15 | L114: 22 | M114: 31 | N114: 22 | O114: 23 | P114: 20 | Q114: 9 | R114: 19 | S114: 18 | T114: 36 | U114: 15 | V114: 12 | W114: 24 | X114: 21 | Y114: 26 | Z114: 24 | AA114: 18 | AB114: 18 | AC114: 17 | AD114: 24 | AE114: 20 | AF114: 20 | AG114: 0 | AH114: =IF(AH262=1,IF(AH162=$A$45,GAMMAINV(AH138,$D$45,$E$45)+$B$52,IF(AH162=$A$46,GAMMAINV(AH138,$D$46,$E$46)+$B$52,IF(AH162=$A$47,GAMMAINV(AH138,$D$47,$E$47)+$B$52,IF(AH162=$A$48,GAMMAINV(AH138,$D$48,$E$48)+$B$52,IF(AH162=$A$49,GAMMAINV(AH138,$D$49,$E$49)+$B$52,GAMMAINV(AH138,$D$50,$E$50)+$B$52))))),0) -> 17 | AI114: 14 | AJ114: 14 | AK114: 17 | AL114: 19 | AM114: 0 | AN114: 20 | AO114: 0 | AP114: 20 | AQ114: 22 | AR114: 29 | AS114: 24 | AT114: 0 | AU114: 21 | AV114: 15 | AW114: 21 | AX114: 21 | AY114: 14 | AZ114: 25 | BA114: 23 | BB114: 10 | BC114: 15 | BD114: 29 | BE114: 13 | BF114: 16 | BG114: 24 | BH114: 0 | BI114: 14 | BJ114: 26 | BK114: 22 | BL114: 11 | BM114: 0 | BN114: =IF(BN262=1,IF(BN162=$A$45,GAMMAINV(BN138,$D$45,$E$45)+$B$52,IF(BN162=$A$46,GAMMAINV(BN138,$D$46,$E$46)+$B$52,IF(BN162=$A$47,GAMMAINV(BN138,$D$47,$E$47)+$B$52,IF(BN162=$A$48,GAMMAINV(BN138,$D$48,$E$48)+$B$52,IF(BN162=$A$49,GAMMAINV(BN138,$D$49,$E$49)+$B$52,GAMMAINV(BN138,$D$50,$E$50)+$B$52))))),0) -> 30 | BO114: 16 | BP114: 26 | BQ114: 19 | BR114: 30 | BS114: 16 | BT114: 24 | BU114: 18 | BV114: 30 | BW114: 17 | BX114: 9 | BY114: 24 | BZ114: 22 | CA114: 28 | CB114: 22 | CC114: 22 | CD114: 17 | CE114: 35 | CF114: 10 | CG114: 16 | CH114: 15 | CI114: 38 | CJ114: 17 | CK114: 12 | CL114: 17 | CM114: 17 | CN114: 29 | CO114: 11 | CP114: 13 | CQ114: 16 | CR114: 24 | CS114: 20 | CT114: 11 | CU114: 22 | CV114: 17 | CW114: 25
A115: 10 | B115: =IF(B263=1,IF(B163=$A$45,GAMMAINV(B139,$D$45,$E$45)+$B$52,IF(B163=$A$46,GAMMAINV(B139,$D$46,$E$46)+$B$52,IF(B163=$A$47,GAMMAINV(B139,$D$47,$E$47)+$B$52,IF(B163=$A$48,GAMMAINV(B139,$D$48,$E$48)+$B$52,IF(B163=$A$49,GAMMAINV(B139,$D$49,$E$49)+$B$52,GAMMAINV(B139,$D$50,$E$50)+$B$52))))),0) -> 18 | C115: 19 | D115: 23 | E115: 36 | F115: 30 | G115: 27 | H115: 25 | I115: 26 | J115: 24 | K115: 22 | L115: 17 | M115: 22 | N115: 26 | O115: 19 | P115: 26 | Q115: 13 | R115: 28 | S115: 25 | T115: 28 | U115: 19 | V115: 24 | W115: 28 | X115: 27 | Y115: 21 | Z115: 30 | AA115: 34 | AB115: 0 | AC115: 0 | AD115: 0 | AE115: 29 | AF115: 20 | AG115: 33 | AH115: =IF(AH263=1,IF(AH163=$A$45,GAMMAINV(AH139,$D$45,$E$45)+$B$52,IF(AH163=$A$46,GAMMAINV(AH139,$D$46,$E$46)+$B$52,IF(AH163=$A$47,GAMMAINV(AH139,$D$47,$E$47)+$B$52,IF(AH163=$A$48,GAMMAINV(AH139,$D$48,$E$48)+$B$52,IF(AH163=$A$49,GAMMAINV(AH139,$D$49,$E$49)+$B$52,GAMMAINV(AH139,$D$50,$E$50)+$B$52))))),0) -> 28 | AI115: 0 | AJ115: 16 | AK115: 33 | AL115: 17 | AM115: 18 | AN115: 23 | AO115: 21 | AP115: 27 | AQ115: 22 | AR115: 30 | AS115: 22 | AT115: 23 | AU115: 0 | AV115: 23 | AW115: 32 | AX115: 34 | AY115: 17 | AZ115: 0 | BA115: 30 | BB115: 16 | BC115: 22 | BD115: 36 | BE115: 26 | BF115: 20 | BG115: 27 | BH115: 25 | BI115: 21 | BJ115: 21 | BK115: 0 | BL115: 29 | BM115: 23 | BN115: =IF(BN263=1,IF(BN163=$A$45,GAMMAINV(BN139,$D$45,$E$45)+$B$52,IF(BN163=$A$46,GAMMAINV(BN139,$D$46,$E$46)+$B$52,IF(BN163=$A$47,GAMMAINV(BN139,$D$47,$E$47)+$B$52,IF(BN163=$A$48,GAMMAINV(BN139,$D$48,$E$48)+$B$52,IF(BN163=$A$49,GAMMAINV(BN139,$D$49,$E$49)+$B$52,GAMMAINV(BN139,$D$50,$E$50)+$B$52))))),0) -> 25 | BO115: 26 | BP115: 25 | BQ115: 33 | BR115: 38 | BS115: 26 | BT115: 28 | BU115: 34 | BV115: 22 | BW115: 29 | BX115: 35 | BY115: 18 | BZ115: 20 | CA115: 26 | CB115: 23 | CC115: 27 | CD115: 36 | CE115: 25 | CF115: 18 | CG115: 20 | CH115: 27 | CI115: 23 | CJ115: 20 | CK115: 25 | CL115: 17 | CM115: 30 | CN115: 22 | CO115: 18 | CP115: 30 | CQ115: 0 | CR115: 24 | CS115: 31 | CT115: 27 | CU115: 27 | CV115: 34 | CW115: 14
A116: 11 | B116: =IF(B264=1,IF(B164=$A$45,GAMMAINV(B140,$D$45,$E$45)+$B$52,IF(B164=$A$46,GAMMAINV(B140,$D$46,$E$46)+$B$52,IF(B164=$A$47,GAMMAINV(B140,$D$47,$E$47)+$B$52,IF(B164=$A$48,GAMMAINV(B140,$D$48,$E$48)+$B$52,IF(B164=$A$49,GAMMAINV(B140,$D$49,$E$49)+$B$52,GAMMAINV(B140,$D$50,$E$50)+$B$52))))),0) -> 11 | C116: 20 | D116: 24 | E116: 14 | F116: 29 | G116: 11 | H116: 0 | I116: 12 | J116: 27 | K116: 19 | L116: 18 | M116: 27 | N116: 22 | O116: 12 | P116: 0 | Q116: 19 | R116: 26 | S116: 28 | T116: 0 | U116: 16 | V116: 15 | W116: 0 | X116: 18 | Y116: 20 | Z116: 0 | AA116: 0 | AB116: 27 | AC116: 27 | AD116: 14 | AE116: 36 | AF116: 14 | AG116: 14 | AH116: =IF(AH264=1,IF(AH164=$A$45,GAMMAINV(AH140,$D$45,$E$45)+$B$52,IF(AH164=$A$46,GAMMAINV(AH140,$D$46,$E$46)+$B$52,IF(AH164=$A$47,GAMMAINV(AH140,$D$47,$E$47)+$B$52,IF(AH164=$A$48,GAMMAINV(AH140,$D$48,$E$48)+$B$52,IF(AH164=$A$49,GAMMAINV(AH140,$D$49,$E$49)+$B$52,GAMMAINV(AH140,$D$50,$E$50)+$B$52))))),0) -> 12 | AI116: 15 | AJ116: 19 | AK116: 22 | AL116: 20 | AM116: 41 | AN116: 18 | AO116: 14 | AP116: 16 | AQ116: 0 | AR116: 26 | AS116: 9 | AT116: 9 | AU116: 19 | AV116: 10 | AW116: 26 | AX116: 12 | AY116: 21 | AZ116: 9 | BA116: 26 | BB116: 0 | BC116: 0 | BD116: 31 | BE116: 11 | BF116: 10 | BG116: 54 | BH116: 6 | BI116: 8 | BJ116: 36 | BK116: 13 | BL116: 18 | BM116: 31 | BN116: =IF(BN264=1,IF(BN164=$A$45,GAMMAINV(BN140,$D$45,$E$45)+$B$52,IF(BN164=$A$46,GAMMAINV(BN140,$D$46,$E$46)+$B$52,IF(BN164=$A$47,GAMMAINV(BN140,$D$47,$E$47)+$B$52,IF(BN164=$A$48,GAMMAINV(BN140,$D$48,$E$48)+$B$52,IF(BN164=$A$49,GAMMAINV(BN140,$D$49,$E$49)+$B$52,GAMMAINV(BN140,$D$50,$E$50)+$B$52))))),0) -> 29 | BO116: 12 | BP116: 29 | BQ116: 24 | BR116: 32 | BS116: 12 | BT116: 33 | BU116: 9 | BV116: 17 | BW116: 20 | BX116: 21 | BY116: 21 | BZ116: 21 | CA116: 15 | CB116: 17 | CC116: 24 | CD116: 19 | CE116: 10 | CF116: 28 | CG116: 27 | CH116: 25 | CI116: 12 | CJ116: 28 | CK116: 22 | CL116: 16 | CM116: 32 | CN116: 15 | CO116: 16 | CP116: 22 | CQ116: 0 | CR116: 25 | CS116: 26 | CT116: 17 | CU116: 12 | CV116: 16 | CW116: 21
A117: 12 | B117: =IF(B265=1,IF(B165=$A$45,GAMMAINV(B141,$D$45,$E$45)+$B$52,IF(B165=$A$46,GAMMAINV(B141,$D$46,$E$46)+$B$52,IF(B165=$A$47,GAMMAINV(B141,$D$47,$E$47)+$B$52,IF(B165=$A$48,GAMMAINV(B141,$D$48,$E$48)+$B$52,IF(B165=$A$49,GAMMAINV(B141,$D$49,$E$49)+$B$52,GAMMAINV(B141,$D$50,$E$50)+$B$52))))),0) -> 23 | C117: 29 | D117: 14 | E117: 13 | F117: 35 | G117: 20 | H117: 20 | I117: 0 | J117: 13 | K117: 0 | L117: 25 | M117: 16 | N117: 20 | O117: 17 | P117: 10 | Q117: 15 | R117: 20 | S117: 22 | T117: 18 | U117: 21 | V117: 18 | W117: 18 | X117: 25 | Y117: 11 | Z117: 25 | AA117: 19 | AB117: 19 | AC117: 20 | AD117: 26 | AE117: 16 | AF117: 16 | AG117: 35 | AH117: =IF(AH265=1,IF(AH165=$A$45,GAMMAINV(AH141,$D$45,$E$45)+$B$52,IF(AH165=$A$46,GAMMAINV(AH141,$D$46,$E$46)+$B$52,IF(AH165=$A$47,GAMMAINV(AH141,$D$47,$E$47)+$B$52,IF(AH165=$A$48,GAMMAINV(AH141,$D$48,$E$48)+$B$52,IF(AH165=$A$49,GAMMAINV(AH141,$D$49,$E$49)+$B$52,GAMMAINV(AH141,$D$50,$E$50)+$B$52))))),0) -> 13 | AI117: 31 | AJ117: 32 | AK117: 21 | AL117: 18 | AM117: 10 | AN117: 20 | AO117: 15 | AP117: 30 | AQ117: 0 | AR117: 30 | AS117: 28 | AT117: 32 | AU117: 21 | AV117: 18 | AW117: 11 | AX117: 22 | AY117: 25 | AZ117: 18 | BA117: 33 | BB117: 38 | BC117: 17 | BD117: 35 | BE117: 20 | BF117: 36 | BG117: 13 | BH117: 19 | BI117: 10 | BJ117: 16 | BK117: 15 | BL117: 0 | BM117: 22 | BN117: =IF(BN265=1,IF(BN165=$A$45,GAMMAINV(BN141,$D$45,$E$45)+$B$52,IF(BN165=$A$46,GAMMAINV(BN141,$D$46,$E$46)+$B$52,IF(BN165=$A$47,GAMMAINV(BN141,$D$47,$E$47)+$B$52,IF(BN165=$A$48,GAMMAINV(BN141,$D$48,$E$48)+$B$52,IF(BN165=$A$49,GAMMAINV(BN141,$D$49,$E$49)+$B$52,GAMMAINV(BN141,$D$50,$E$50)+$B$52))))),0) -> 29 | BO117: 20 | BP117: 30 | BQ117: 23 | BR117: 10 | BS117: 36 | BT117: 26 | BU117: 19 | BV117: 18 | BW117: 25 | BX117: 14 | BY117: 21 | BZ117: 11 | CA117: 11 | CB117: 17 | CC117: 22 | CD117: 14 | CE117: 16 | CF117: 30 | CG117: 0 | CH117: 21 | CI117: 33 | CJ117: 20 | CK117: 23 | CL117: 15 | CM117: 0 | CN117: 21 | CO117: 0 | CP117: 16 | CQ117: 17 | CR117: 13 | CS117: 18 | CT117: 27 | CU117: 16 | CV117: 16 | CW117: 15
A118: 13 | B118: =IF(B266=1,IF(B166=$A$45,GAMMAINV(B142,$D$45,$E$45)+$B$52,IF(B166=$A$46,GAMMAINV(B142,$D$46,$E$46)+$B$52,IF(B166=$A$47,GAMMAINV(B142,$D$47,$E$47)+$B$52,IF(B166=$A$48,GAMMAINV(B142,$D$48,$E$48)+$B$52,IF(B166=$A$49,GAMMAINV(B142,$D$49,$E$49)+$B$52,GAMMAINV(B142,$D$50,$E$50)+$B$52))))),0) -> 10 | C118: 23 | D118: 13 | E118: 24 | F118: 32 | G118: 20 | H118: 9 | I118: 13 | J118: 13 | K118: 22 | L118: 13 | M118: 13 | N118: 17 | O118: 0 | P118: 21 | Q118: 13 | R118: 0 | S118: 21 | T118: 17 | U118: 0 | V118: 15 | W118: 16 | X118: 14 | Y118: 0 | Z118: 13 | AA118: 17 | AB118: 10 | AC118: 23 | AD118: 12 | AE118: 25 | AF118: 11 | AG118: 14 | AH118: =IF(AH266=1,IF(AH166=$A$45,GAMMAINV(AH142,$D$45,$E$45)+$B$52,IF(AH166=$A$46,GAMMAINV(AH142,$D$46,$E$46)+$B$52,IF(AH166=$A$47,GAMMAINV(AH142,$D$47,$E$47)+$B$52,IF(AH166=$A$48,GAMMAINV(AH142,$D$48,$E$48)+$B$52,IF(AH166=$A$49,GAMMAINV(AH142,$D$49,$E$49)+$B$52,GAMMAINV(AH142,$D$50,$E$50)+$B$52))))),0) -> 28 | AI118: 16 | AJ118: 16 | AK118: 13 | AL118: 40 | AM118: 20 | AN118: 0 | AO118: 23 | AP118: 25 | AQ118: 24 | AR118: 14 | AS118: 21 | AT118: 23 | AU118: 16 | AV118: 16 | AW118: 24 | AX118: 19 | AY118: 18 | AZ118: 14 | BA118: 17 | BB118: 0 | BC118: 19 | BD118: 9 | BE118: 22 | BF118: 11 | BG118: 14 | BH118: 17 | BI118: 17 | BJ118: 26 | BK118: 21 | BL118: 12 | BM118: 0 | BN118: =IF(BN266=1,IF(BN166=$A$45,GAMMAINV(BN142,$D$45,$E$45)+$B$52,IF(BN166=$A$46,GAMMAINV(BN142,$D$46,$E$46)+$B$52,IF(BN166=$A$47,GAMMAINV(BN142,$D$47,$E$47)+$B$52,IF(BN166=$A$48,GAMMAINV(BN142,$D$48,$E$48)+$B$52,IF(BN166=$A$49,GAMMAINV(BN142,$D$49,$E$49)+$B$52,GAMMAINV(BN142,$D$50,$E$50)+$B$52))))),0) -> 13 | BO118: 23 | BP118: 15 | BQ118: 17 | BR118: 16 | BS118: 37 | BT118: 13 | BU118: 9 | BV118: 0 | BW118: 12 | BX118: 22 | BY118: 13 | BZ118: 31 | CA118: 13 | CB118: 31 | CC118: 23 | CD118: 0 | CE118: 12 | CF118: 14 | CG118: 18 | CH118: 0 | CI118: 22 | CJ118: 28 | CK118: 11 | CL118: 10 | CM118: 13 | CN118: 13 | CO118: 21 | CP118: 0 | CQ118: 20 | CR118: 37 | CS118: 21 | CT118: 15 | CU118: 34 | CV118: 22 | CW118: 24
A119: 14 | B119: =IF(B267=1,IF(B167=$A$45,GAMMAINV(B143,$D$45,$E$45)+$B$52,IF(B167=$A$46,GAMMAINV(B143,$D$46,$E$46)+$B$52,IF(B167=$A$47,GAMMAINV(B143,$D$47,$E$47)+$B$52,IF(B167=$A$48,GAMMAINV(B143,$D$48,$E$48)+$B$52,IF(B167=$A$49,GAMMAINV(B143,$D$49,$E$49)+$B$52,GAMMAINV(B143,$D$50,$E$50)+$B$52))))),0) -> 0 | C119: 11 | D119: 16 | E119: 17 | F119: 35 | G119: 20 | H119: 21 | I119: 32 | J119: 24 | K119: 13 | L119: 22 | M119: 21 | N119: 37 | O119: 23 | P119: 15 | Q119: 33 | R119: 34 | S119: 22 | T119: 27 | U119: 17 | V119: 26 | W119: 25 | X119: 19 | Y119: 12 | Z119: 10 | AA119: 19 | AB119: 17 | AC119: 11 | AD119: 13 | AE119: 27 | AF119: 12 | AG119: 22 | AH119: =IF(AH267=1,IF(AH167=$A$45,GAMMAINV(AH143,$D$45,$E$45)+$B$52,IF(AH167=$A$46,GAMMAINV(AH143,$D$46,$E$46)+$B$52,IF(AH167=$A$47,GAMMAINV(AH143,$D$47,$E$47)+$B$52,IF(AH167=$A$48,GAMMAINV(AH143,$D$48,$E$48)+$B$52,IF(AH167=$A$49,GAMMAINV(AH143,$D$49,$E$49)+$B$52,GAMMAINV(AH143,$D$50,$E$50)+$B$52))))),0) -> 23 | AI119: 37 | AJ119: 14 | AK119: 10 | AL119: 16 | AM119: 22 | AN119: 20 | AO119: 0 | AP119: 21 | AQ119: 41 | AR119: 22 | AS119: 9 | AT119: 23 | AU119: 17 | AV119: 25 | AW119: 35 | AX119: 7 | AY119: 17 | AZ119: 30 | BA119: 21 | BB119: 24 | BC119: 25 | BD119: 27 | BE119: 10 | BF119: 0 | BG119: 16 | BH119: 11 | BI119: 0 | BJ119: 19 | BK119: 18 | BL119: 10 | BM119: 10 | BN119: =IF(BN267=1,IF(BN167=$A$45,GAMMAINV(BN143,$D$45,$E$45)+$B$52,IF(BN167=$A$46,GAMMAINV(BN143,$D$46,$E$46)+$B$52,IF(BN167=$A$47,GAMMAINV(BN143,$D$47,$E$47)+$B$52,IF(BN167=$A$48,GAMMAINV(BN143,$D$48,$E$48)+$B$52,IF(BN167=$A$49,GAMMAINV(BN143,$D$49,$E$49)+$B$52,GAMMAINV(BN143,$D$50,$E$50)+$B$52))))),0) -> 23 | BO119: 33 | BP119: 10 | BQ119: 42 | BR119: 18 | BS119: 11 | BT119: 0 | BU119: 19 | BV119: 12 | BW119: 20 | BX119: 19 | BY119: 18 | BZ119: 0 | CA119: 11 | CB119: 34 | CC119: 19 | CD119: 10 | CE119: 9 | CF119: 0 | CG119: 22 | CH119: 23 | CI119: 13 | CJ119: 30 | CK119: 25 | CL119: 34 | CM119: 8 | CN119: 0 | CO119: 27 | CP119: 10 | CQ119: 9 | CR119: 20 | CS119: 15 | CT119: 0 | CU119: 15 | CV119: 20 | CW119: 33
A120: 15 | B120: =IF(B268=1,IF(B168=$A$45,GAMMAINV(B144,$D$45,$E$45)+$B$52,IF(B168=$A$46,GAMMAINV(B144,$D$46,$E$46)+$B$52,IF(B168=$A$47,GAMMAINV(B144,$D$47,$E$47)+$B$52,IF(B168=$A$48,GAMMAINV(B144,$D$48,$E$48)+$B$52,IF(B168=$A$49,GAMMAINV(B144,$D$49,$E$49)+$B$52,GAMMAINV(B144,$D$50,$E$50)+$B$52))))),0) -> 16 | C120: 9 | D120: 23 | E120: 18 | F120: 46 | G120: 47 | H120: 26 | I120: 37 | J120: 18 | K120: 46 | L120: 16 | M120: 9 | N120: 23 | O120: 39 | P120: 19 | Q120: 18 | R120: 14 | S120: 0 | T120: 38 | U120: 0 | V120: 15 | W120: 0 | X120: 21 | Y120: 20 | Z120: 34 | AA120: 16 | AB120: 25 | AC120: 7 | AD120: 0 | AE120: 14 | AF120: 49 | AG120: 9 | AH120: =IF(AH268=1,IF(AH168=$A$45,GAMMAINV(AH144,$D$45,$E$45)+$B$52,IF(AH168=$A$46,GAMMAINV(AH144,$D$46,$E$46)+$B$52,IF(AH168=$A$47,GAMMAINV(AH144,$D$47,$E$47)+$B$52,IF(AH168=$A$48,GAMMAINV(AH144,$D$48,$E$48)+$B$52,IF(AH168=$A$49,GAMMAINV(AH144,$D$49,$E$49)+$B$52,GAMMAINV(AH144,$D$50,$E$50)+$B$52))))),0) -> 11 | AI120: 17 | AJ120: 12 | AK120: 15 | AL120: 22 | AM120: 12 | AN120: 24 | AO120: 14 | AP120: 0 | AQ120: 109 | AR120: 14 | AS120: 0 | AT120: 28 | AU120: 19 | AV120: 35 | AW120: 16 | AX120: 0 | AY120: 32 | AZ120: 31 | BA120: 8 | BB120: 10 | BC120: 18 | BD120: 7 | BE120: 15 | BF120: 8 | BG120: 27 | BH120: 6 | BI120: 7 | BJ120: 16 | BK120: 0 | BL120: 30 | BM120: 10 | BN120: =IF(BN268=1,IF(BN168=$A$45,GAMMAINV(BN144,$D$45,$E$45)+$B$52,IF(BN168=$A$46,GAMMAINV(BN144,$D$46,$E$46)+$B$52,IF(BN168=$A$47,GAMMAINV(BN144,$D$47,$E$47)+$B$52,IF(BN168=$A$48,GAMMAINV(BN144,$D$48,$E$48)+$B$52,IF(BN168=$A$49,GAMMAINV(BN144,$D$49,$E$49)+$B$52,GAMMAINV(BN144,$D$50,$E$50)+$B$52))))),0) -> 0 | BO120: 0 | BP120: 11 | BQ120: 30 | BR120: 19 | BS120: 0 | BT120: 15 | BU120: 43 | BV120: 27 | BW120: 0 | BX120: 18 | BY120: 31 | BZ120: 27 | CA120: 26 | CB120: 13 | CC120: 25 | CD120: 15 | CE120: 24 | CF120: 52 | CG120: 35 | CH120: 39 | CI120: 41 | CJ120: 0 | CK120: 20 | CL120: 29 | CM120: 14 | CN120: 12 | CO120: 0 | CP120: 41 | CQ120: 11 | CR120: 11 | CS120: 26 | CT120: 10 | CU120: 12 | CV120: 33 | CW120: 21
A121: 16 | B121: =IF(B269=1,IF(B169=$A$45,GAMMAINV(B145,$D$45,$E$45)+$B$52,IF(B169=$A$46,GAMMAINV(B145,$D$46,$E$46)+$B$52,IF(B169=$A$47,GAMMAINV(B145,$D$47,$E$47)+$B$52,IF(B169=$A$48,GAMMAINV(B145,$D$48,$E$48)+$B$52,IF(B169=$A$49,GAMMAINV(B145,$D$49,$E$49)+$B$52,GAMMAINV(B145,$D$50,$E$50)+$B$52))))),0) -> 16 | C121: 18 | D121: 13 | E121: 15 | F121: 11 | G121: 24 | H121: 15 | I121: 7 | J121: 10 | K121: 9 | L121: 27 | M121: 27 | N121: 14 | O121: 0 | P121: 21 | Q121: 0 | R121: 20 | S121: 0 | T121: 31 | U121: 13 | V121: 14 | W121: 30 | X121: 20 | Y121: 23 | Z121: 0 | AA121: 16 | AB121: 15 | AC121: 15 | AD121: 23 | AE121: 19 | AF121: 15 | AG121: 26 | AH121: =IF(AH269=1,IF(AH169=$A$45,GAMMAINV(AH145,$D$45,$E$45)+$B$52,IF(AH169=$A$46,GAMMAINV(AH145,$D$46,$E$46)+$B$52,IF(AH169=$A$47,GAMMAINV(AH145,$D$47,$E$47)+$B$52,IF(AH169=$A$48,GAMMAINV(AH145,$D$48,$E$48)+$B$52,IF(AH169=$A$49,GAMMAINV(AH145,$D$49,$E$49)+$B$52,GAMMAINV(AH145,$D$50,$E$50)+$B$52))))),0) -> 15 | AI121: 22 | AJ121: 30 | AK121: 0 | AL121: 23 | AM121: 11 | AN121: 13 | AO121: 16 | AP121: 18 | AQ121: 20 | AR121: 16 | AS121: 25 | AT121: 19 | AU121: 13 | AV121: 16 | AW121: 0 | AX121: 10 | AY121: 22 | AZ121: 10 | BA121: 29 | BB121: 30 | BC121: 21 | BD121: 16 | BE121: 15 | BF121: 0 | BG121: 28 | BH121: 19 | BI121: 15 | BJ121: 0 | BK121: 29 | BL121: 15 | BM121: 26 | BN121: =IF(BN269=1,IF(BN169=$A$45,GAMMAINV(BN145,$D$45,$E$45)+$B$52,IF(BN169=$A$46,GAMMAINV(BN145,$D$46,$E$46)+$B$52,IF(BN169=$A$47,GAMMAINV(BN145,$D$47,$E$47)+$B$52,IF(BN169=$A$48,GAMMAINV(BN145,$D$48,$E$48)+$B$52,IF(BN169=$A$49,GAMMAINV(BN145,$D$49,$E$49)+$B$52,GAMMAINV(BN145,$D$50,$E$50)+$B$52))))),0) -> 27 | BO121: 21 | BP121: 19 | BQ121: 17 | BR121: 17 | BS121: 14 | BT121: 16 | BU121: 0 | BV121: 19 | BW121: 17 | BX121: 14 | BY121: 22 | BZ121: 17 | CA121: 16 | CB121: 0 | CC121: 15 | CD121: 0 | CE121: 12 | CF121: 43 | CG121: 16 | CH121: 21 | CI121: 13 | CJ121: 0 | CK121: 25 | CL121: 24 | CM121: 34 | CN121: 21 | CO121: 21 | CP121: 0 | CQ121: 25 | CR121: 19 | CS121: 26 | CT121: 16 | CU121: 14 | CV121: 12 | CW121: 10
A122: 17 | B122: =IF(B270=1,IF(B170=$A$45,GAMMAINV(B146,$D$45,$E$45)+$B$52,IF(B170=$A$46,GAMMAINV(B146,$D$46,$E$46)+$B$52,IF(B170=$A$47,GAMMAINV(B146,$D$47,$E$47)+$B$52,IF(B170=$A$48,GAMMAINV(B146,$D$48,$E$48)+$B$52,IF(B170=$A$49,GAMMAINV(B146,$D$49,$E$49)+$B$52,GAMMAINV(B146,$D$50,$E$50)+$B$52))))),0) -> 39 | C122: 0 | D122: 15 | E122: 27 | F122: 37 | G122: 27 | H122: 29 | I122: 36 | J122: 0 | K122: 22 | L122: 29 | M122: 24 | N122: 26 | O122: 37 | P122: 26 | Q122: 27 | R122: 23 | S122: 22 | T122: 31 | U122: 33 | V122: 41 | W122: 31 | X122: 22 | Y122: 32 | Z122: 32 | AA122: 16 | AB122: 20 | AC122: 19 | AD122: 0 | AE122: 29 | AF122: 0 | AG122: 26 | AH122: =IF(AH270=1,IF(AH170=$A$45,GAMMAINV(AH146,$D$45,$E$45)+$B$52,IF(AH170=$A$46,GAMMAINV(AH146,$D$46,$E$46)+$B$52,IF(AH170=$A$47,GAMMAINV(AH146,$D$47,$E$47)+$B$52,IF(AH170=$A$48,GAMMAINV(AH146,$D$48,$E$48)+$B$52,IF(AH170=$A$49,GAMMAINV(AH146,$D$49,$E$49)+$B$52,GAMMAINV(AH146,$D$50,$E$50)+$B$52))))),0) -> 22 | AI122: 34 | AJ122: 0 | AK122: 28 | AL122: 29 | AM122: 30 | AN122: 40 | AO122: 25 | AP122: 17 | AQ122: 21 | AR122: 41 | AS122: 21 | AT122: 29 | AU122: 40 | AV122: 0 | AW122: 32 | AX122: 29 | AY122: 27 | AZ122: 33 | BA122: 30 | BB122: 32 | BC122: 26 | BD122: 33 | BE122: 0 | BF122: 49 | BG122: 0 | BH122: 16 | BI122: 28 | BJ122: 27 | BK122: 26 | BL122: 38 | BM122: 24 | BN122: =IF(BN270=1,IF(BN170=$A$45,GAMMAINV(BN146,$D$45,$E$45)+$B$52,IF(BN170=$A$46,GAMMAINV(BN146,$D$46,$E$46)+$B$52,IF(BN170=$A$47,GAMMAINV(BN146,$D$47,$E$47)+$B$52,IF(BN170=$A$48,GAMMAINV(BN146,$D$48,$E$48)+$B$52,IF(BN170=$A$49,GAMMAINV(BN146,$D$49,$E$49)+$B$52,GAMMAINV(BN146,$D$50,$E$50)+$B$52))))),0) -> 21 | BO122: 29 | BP122: 31 | BQ122: 24 | BR122: 23 | BS122: 22 | BT122: 0 | BU122: 0 | BV122: 19 | BW122: 38 | BX122: 29 | BY122: 34 | BZ122: 24 | CA122: 35 | CB122: 43 | CC122: 27 | CD122: 25 | CE122: 30 | CF122: 0 | CG122: 35 | CH122: 42 | CI122: 44 | CJ122: 0 | CK122: 25 | CL122: 27 | CM122: 23 | CN122: 33 | CO122: 36 | CP122: 30 | CQ122: 27 | CR122: 0 | CS122: 36 | CT122: 24 | CU122: 28 | CV122: 28 | CW122: 23
A123: 18 | B123: =IF(B271=1,IF(B171=$A$45,GAMMAINV(B147,$D$45,$E$45)+$B$52,IF(B171=$A$46,GAMMAINV(B147,$D$46,$E$46)+$B$52,IF(B171=$A$47,GAMMAINV(B147,$D$47,$E$47)+$B$52,IF(B171=$A$48,GAMMAINV(B147,$D$48,$E$48)+$B$52,IF(B171=$A$49,GAMMAINV(B147,$D$49,$E$49)+$B$52,GAMMAINV(B147,$D$50,$E$50)+$B$52))))),0) -> 35 | C123: 14 | D123: 23 | E123: 20 | F123: 19 | G123: 8 | H123: 17 | I123: 14 | J123: 21 | K123: 0 | L123: 23 | M123: 25 | N123: 19 | O123: 26 | P123: 30 | Q123: 16 | R123: 6 | S123: 12 | T123: 0 | U123: 12 | V123: 22 | W123: 20 | X123: 0 | Y123: 30 | Z123: 0 | AA123: 15 | AB123: 17 | AC123: 13 | AD123: 0 | AE123: 20 | AF123: 9 | AG123: 21 | AH123: =IF(AH271=1,IF(AH171=$A$45,GAMMAINV(AH147,$D$45,$E$45)+$B$52,IF(AH171=$A$46,GAMMAINV(AH147,$D$46,$E$46)+$B$52,IF(AH171=$A$47,GAMMAINV(AH147,$D$47,$E$47)+$B$52,IF(AH171=$A$48,GAMMAINV(AH147,$D$48,$E$48)+$B$52,IF(AH171=$A$49,GAMMAINV(AH147,$D$49,$E$49)+$B$52,GAMMAINV(AH147,$D$50,$E$50)+$B$52))))),0) -> 10 | AI123: 8 | AJ123: 26 | AK123: 10 | AL123: 32 | AM123: 23 | AN123: 20 | AO123: 18 | AP123: 19 | AQ123: 18 | AR123: 18 | AS123: 23 | AT123: 17 | AU123: 30 | AV123: 16 | AW123: 16 | AX123: 11 | AY123: 18 | AZ123: 22 | BA123: 0 | BB123: 30 | BC123: 19 | BD123: 0 | BE123: 18 | BF123: 30 | BG123: 21 | BH123: 10 | BI123: 22 | BJ123: 13 | BK123: 18 | BL123: 28 | BM123: 16 | BN123: =IF(BN271=1,IF(BN171=$A$45,GAMMAINV(BN147,$D$45,$E$45)+$B$52,IF(BN171=$A$46,GAMMAINV(BN147,$D$46,$E$46)+$B$52,IF(BN171=$A$47,GAMMAINV(BN147,$D$47,$E$47)+$B$52,IF(BN171=$A$48,GAMMAINV(BN147,$D$48,$E$48)+$B$52,IF(BN171=$A$49,GAMMAINV(BN147,$D$49,$E$49)+$B$52,GAMMAINV(BN147,$D$50,$E$50)+$B$52))))),0) -> 0 | BO123: 12 | BP123: 24 | BQ123: 8 | BR123: 18 | BS123: 14 | BT123: 0 | BU123: 24 | BV123: 18 | BW123: 26 | BX123: 23 | BY123: 25 | BZ123: 24 | CA123: 0 | CB123: 18 | CC123: 32 | CD123: 23 | CE123: 18 | CF123: 15 | CG123: 43 | CH123: 26 | CI123: 19 | CJ123: 35 | CK123: 16 | CL123: 15 | CM123: 44 | CN123: 0 | CO123: 0 | CP123: 8 | CQ123: 23 | CR123: 21 | CS123: 16 | CT123: 59 | CU123: 16 | CV123: 16 | CW123: 15
A124: 19 | B124: =IF(B272=1,IF(B172=$A$45,GAMMAINV(B148,$D$45,$E$45)+$B$52,IF(B172=$A$46,GAMMAINV(B148,$D$46,$E$46)+$B$52,IF(B172=$A$47,GAMMAINV(B148,$D$47,$E$47)+$B$52,IF(B172=$A$48,GAMMAINV(B148,$D$48,$E$48)+$B$52,IF(B172=$A$49,GAMMAINV(B148,$D$49,$E$49)+$B$52,GAMMAINV(B148,$D$50,$E$50)+$B$52))))),0) -> 25 | C124: 17 | D124: 31 | E124: 15 | F124: 22 | G124: 25 | H124: 26 | I124: 21 | J124: 24 | K124: 26 | L124: 19 | M124: 27 | N124: 24 | O124: 24 | P124: 18 | Q124: 0 | R124: 0 | S124: 19 | T124: 18 | U124: 12 | V124: 16 | W124: 19 | X124: 22 | Y124: 20 | Z124: 36 | AA124: 22 | AB124: 16 | AC124: 17 | AD124: 20 | AE124: 26 | AF124: 0 | AG124: 22 | AH124: =IF(AH272=1,IF(AH172=$A$45,GAMMAINV(AH148,$D$45,$E$45)+$B$52,IF(AH172=$A$46,GAMMAINV(AH148,$D$46,$E$46)+$B$52,IF(AH172=$A$47,GAMMAINV(AH148,$D$47,$E$47)+$B$52,IF(AH172=$A$48,GAMMAINV(AH148,$D$48,$E$48)+$B$52,IF(AH172=$A$49,GAMMAINV(AH148,$D$49,$E$49)+$B$52,GAMMAINV(AH148,$D$50,$E$50)+$B$52))))),0) -> 18 | AI124: 22 | AJ124: 23 | AK124: 18 | AL124: 33 | AM124: 0 | AN124: 23 | AO124: 26 | AP124: 0 | AQ124: 24 | AR124: 18 | AS124: 21 | AT124: 12 | AU124: 29 | AV124: 24 | AW124: 16 | AX124: 24 | AY124: 26 | AZ124: 19 | BA124: 26 | BB124: 26 | BC124: 0 | BD124: 17 | BE124: 28 | BF124: 24 | BG124: 24 | BH124: 22 | BI124: 19 | BJ124: 23 | BK124: 28 | BL124: 23 | BM124: 23 | BN124: =IF(BN272=1,IF(BN172=$A$45,GAMMAINV(BN148,$D$45,$E$45)+$B$52,IF(BN172=$A$46,GAMMAINV(BN148,$D$46,$E$46)+$B$52,IF(BN172=$A$47,GAMMAINV(BN148,$D$47,$E$47)+$B$52,IF(BN172=$A$48,GAMMAINV(BN148,$D$48,$E$48)+$B$52,IF(BN172=$A$49,GAMMAINV(BN148,$D$49,$E$49)+$B$52,GAMMAINV(BN148,$D$50,$E$50)+$B$52))))),0) -> 16 | BO124: 13 | BP124: 22 | BQ124: 19 | BR124: 19 | BS124: 22 | BT124: 11 | BU124: 21 | BV124: 29 | BW124: 23 | BX124: 21 | BY124: 26 | BZ124: 23 | CA124: 31 | CB124: 24 | CC124: 32 | CD124: 20 | CE124: 22 | CF124: 0 | CG124: 0 | CH124: 19 | CI124: 29 | CJ124: 0 | CK124: 20 | CL124: 18 | CM124: 21 | CN124: 15 | CO124: 25 | CP124: 27 | CQ124: 23 | CR124: 21 | CS124: 16 | CT124: 14 | CU124: 30 | CV124: 0 | CW124: 19
A125: 20 | B125: =IF(B273=1,IF(B173=$A$45,GAMMAINV(B149,$D$45,$E$45)+$B$52,IF(B173=$A$46,GAMMAINV(B149,$D$46,$E$46)+$B$52,IF(B173=$A$47,GAMMAINV(B149,$D$47,$E$47)+$B$52,IF(B173=$A$48,GAMMAINV(B149,$D$48,$E$48)+$B$52,IF(B173=$A$49,GAMMAINV(B149,$D$49,$E$49)+$B$52,GAMMAINV(B149,$D$50,$E$50)+$B$52))))),0) -> 0 | C125: 25 | D125: 21 | E125: 32 | F125: 38 | G125: 21 | H125: 30 | I125: 29 | J125: 22 | K125: 21 | L125: 30 | M125: 20 | N125: 17 | O125: 0 | P125: 17 | Q125: 27 | R125: 0 | S125: 20 | T125: 12 | U125: 32 | V125: 0 | W125: 13 | X125: 26 | Y125: 17 | Z125: 30 | AA125: 16 | AB125: 21 | AC125: 16 | AD125: 34 | AE125: 23 | AF125: 25 | AG125: 15 | AH125: =IF(AH273=1,IF(AH173=$A$45,GAMMAINV(AH149,$D$45,$E$45)+$B$52,IF(AH173=$A$46,GAMMAINV(AH149,$D$46,$E$46)+$B$52,IF(AH173=$A$47,GAMMAINV(AH149,$D$47,$E$47)+$B$52,IF(AH173=$A$48,GAMMAINV(AH149,$D$48,$E$48)+$B$52,IF(AH173=$A$49,GAMMAINV(AH149,$D$49,$E$49)+$B$52,GAMMAINV(AH149,$D$50,$E$50)+$B$52))))),0) -> 18 | AI125: 26 | AJ125: 0 | AK125: 42 | AL125: 19 | AM125: 14 | AN125: 20 | AO125: 15 | AP125: 16 | AQ125: 11 | AR125: 16 | AS125: 21 | AT125: 26 | AU125: 18 | AV125: 26 | AW125: 29 | AX125: 22 | AY125: 0 | AZ125: 29 | BA125: 28 | BB125: 37 | BC125: 15 | BD125: 21 | BE125: 23 | BF125: 26 | BG125: 21 | BH125: 21 | BI125: 14 | BJ125: 25 | BK125: 18 | BL125: 0 | BM125: 24 | BN125: =IF(BN273=1,IF(BN173=$A$45,GAMMAINV(BN149,$D$45,$E$45)+$B$52,IF(BN173=$A$46,GAMMAINV(BN149,$D$46,$E$46)+$B$52,IF(BN173=$A$47,GAMMAINV(BN149,$D$47,$E$47)+$B$52,IF(BN173=$A$48,GAMMAINV(BN149,$D$48,$E$48)+$B$52,IF(BN173=$A$49,GAMMAINV(BN149,$D$49,$E$49)+$B$52,GAMMAINV(BN149,$D$50,$E$50)+$B$52))))),0) -> 21 | BO125: 15 | BP125: 26 | BQ125: 17 | BR125: 22 | BS125: 28 | BT125: 19 | BU125: 17 | BV125: 22 | BW125: 0 | BX125: 22 | BY125: 25 | BZ125: 16 | CA125: 14 | CB125: 15 | CC125: 29 | CD125: 22 | CE125: 0 | CF125: 0 | CG125: 10 | CH125: 18 | CI125: 16 | CJ125: 13 | CK125: 31 | CL125: 21 | CM125: 12 | CN125: 0 | CO125: 29 | CP125: 21 | CQ125: 25 | CR125: 29 | CS125: 16 | CT125: 0 | CU125: 16 | CV125: 15 | CW125: 17
A126: 21 | B126: =IF(B274=1,IF(B174=$A$45,GAMMAINV(B150,$D$45,$E$45)+$B$52,IF(B174=$A$46,GAMMAINV(B150,$D$46,$E$46)+$B$52,IF(B174=$A$47,GAMMAINV(B150,$D$47,$E$47)+$B$52,IF(B174=$A$48,GAMMAINV(B150,$D$48,$E$48)+$B$52,IF(B174=$A$49,GAMMAINV(B150,$D$49,$E$49)+$B$52,GAMMAINV(B150,$D$50,$E$50)+$B$52))))),0) -> 31 | C126: 28 | D126: 28 | E126: 28 | F126: 34 | G126: 28 | H126: 32 | I126: 25 | J126: 17 | K126: 22 | L126: 29 | M126: 23 | N126: 47 | O126: 17 | P126: 26 | Q126: 38 | R126: 28 | S126: 26 | T126: 31 | U126: 31 | V126: 19 | W126: 0 | X126: 18 | Y126: 28 | Z126: 27 | AA126: 27 | AB126: 23 | AC126: 31 | AD126: 0 | AE126: 35 | AF126: 21 | AG126: 27 | AH126: =IF(AH274=1,IF(AH174=$A$45,GAMMAINV(AH150,$D$45,$E$45)+$B$52,IF(AH174=$A$46,GAMMAINV(AH150,$D$46,$E$46)+$B$52,IF(AH174=$A$47,GAMMAINV(AH150,$D$47,$E$47)+$B$52,IF(AH174=$A$48,GAMMAINV(AH150,$D$48,$E$48)+$B$52,IF(AH174=$A$49,GAMMAINV(AH150,$D$49,$E$49)+$B$52,GAMMAINV(AH150,$D$50,$E$50)+$B$52))))),0) -> 42 | AI126: 21 | AJ126: 29 | AK126: 0 | AL126: 28 | AM126: 19 | AN126: 24 | AO126: 20 | AP126: 16 | AQ126: 26 | AR126: 18 | AS126: 18 | AT126: 25 | AU126: 21 | AV126: 21 | AW126: 22 | AX126: 0 | AY126: 21 | AZ126: 24 | BA126: 20 | BB126: 33 | BC126: 21 | BD126: 19 | BE126: 16 | BF126: 29 | BG126: 0 | BH126: 22 | BI126: 16 | BJ126: 26 | BK126: 23 | BL126: 21 | BM126: 22 | BN126: =IF(BN274=1,IF(BN174=$A$45,GAMMAINV(BN150,$D$45,$E$45)+$B$52,IF(BN174=$A$46,GAMMAINV(BN150,$D$46,$E$46)+$B$52,IF(BN174=$A$47,GAMMAINV(BN150,$D$47,$E$47)+$B$52,IF(BN174=$A$48,GAMMAINV(BN150,$D$48,$E$48)+$B$52,IF(BN174=$A$49,GAMMAINV(BN150,$D$49,$E$49)+$B$52,GAMMAINV(BN150,$D$50,$E$50)+$B$52))))),0) -> 15 | BO126: 17 | BP126: 33 | BQ126: 28 | BR126: 24 | BS126: 18 | BT126: 29 | BU126: 30 | BV126: 20 | BW126: 0 | BX126: 20 | BY126: 20 | BZ126: 19 | CA126: 25 | CB126: 20 | CC126: 18 | CD126: 32 | CE126: 24 | CF126: 28 | CG126: 25 | CH126: 26 | CI126: 17 | CJ126: 20 | CK126: 27 | CL126: 10 | CM126: 24 | CN126: 22 | CO126: 16 | CP126: 35 | CQ126: 19 | CR126: 24 | CS126: 30 | CT126: 26 | CU126: 24 | CV126: 28 | CW126: 18
A127: 22 | B127: =IF(B275=1,IF(B175=$A$45,GAMMAINV(B151,$D$45,$E$45)+$B$52,IF(B175=$A$46,GAMMAINV(B151,$D$46,$E$46)+$B$52,IF(B175=$A$47,GAMMAINV(B151,$D$47,$E$47)+$B$52,IF(B175=$A$48,GAMMAINV(B151,$D$48,$E$48)+$B$52,IF(B175=$A$49,GAMMAINV(B151,$D$49,$E$49)+$B$52,GAMMAINV(B151,$D$50,$E$50)+$B$52))))),0) -> 23 | C127: 28 | D127: 8 | E127: 11 | F127: 16 | G127: 21 | H127: 27 | I127: 12 | J127: 24 | K127: 28 | L127: 17 | M127: 17 | N127: 18 | O127: 12 | P127: 10 | Q127: 23 | R127: 17 | S127: 20 | T127: 23 | U127: 14 | V127: 0 | W127: 18 | X127: 0 | Y127: 35 | Z127: 27 | AA127: 10 | AB127: 23 | AC127: 19 | AD127: 22 | AE127: 22 | AF127: 10 | AG127: 13 | AH127: =IF(AH275=1,IF(AH175=$A$45,GAMMAINV(AH151,$D$45,$E$45)+$B$52,IF(AH175=$A$46,GAMMAINV(AH151,$D$46,$E$46)+$B$52,IF(AH175=$A$47,GAMMAINV(AH151,$D$47,$E$47)+$B$52,IF(AH175=$A$48,GAMMAINV(AH151,$D$48,$E$48)+$B$52,IF(AH175=$A$49,GAMMAINV(AH151,$D$49,$E$49)+$B$52,GAMMAINV(AH151,$D$50,$E$50)+$B$52))))),0) -> 18 | AI127: 19 | AJ127: 17 | AK127: 15 | AL127: 29 | AM127: 12 | AN127: 0 | AO127: 13 | AP127: 14 | AQ127: 15 | AR127: 19 | AS127: 20 | AT127: 23 | AU127: 0 | AV127: 18 | AW127: 25 | AX127: 10 | AY127: 16 | AZ127: 31 | BA127: 23 | BB127: 37 | BC127: 20 | BD127: 20 | BE127: 27 | BF127: 12 | BG127: 19 | BH127: 28 | BI127: 14 | BJ127: 25 | BK127: 26 | BL127: 23 | BM127: 25 | BN127: =IF(BN275=1,IF(BN175=$A$45,GAMMAINV(BN151,$D$45,$E$45)+$B$52,IF(BN175=$A$46,GAMMAINV(BN151,$D$46,$E$46)+$B$52,IF(BN175=$A$47,GAMMAINV(BN151,$D$47,$E$47)+$B$52,IF(BN175=$A$48,GAMMAINV(BN151,$D$48,$E$48)+$B$52,IF(BN175=$A$49,GAMMAINV(BN151,$D$49,$E$49)+$B$52,GAMMAINV(BN151,$D$50,$E$50)+$B$52))))),0) -> 15 | BO127: 0 | BP127: 32 | BQ127: 13 | BR127: 0 | BS127: 27 | BT127: 21 | BU127: 12 | BV127: 0 | BW127: 19 | BX127: 11 | BY127: 34 | BZ127: 15 | CA127: 26 | CB127: 17 | CC127: 17 | CD127: 24 | CE127: 12 | CF127: 13 | CG127: 20 | CH127: 12 | CI127: 11 | CJ127: 13 | CK127: 23 | CL127: 16 | CM127: 16 | CN127: 38 | CO127: 25 | CP127: 28 | CQ127: 29 | CR127: 17 | CS127: 19 | CT127: 12 | CU127: 0 | CV127: 20 | CW127: 18
A129: TimeFix | B129: 1 | C129: 2 | D129: 3 | E129: 4 | F129: 5 | G129: 6 | H129: 7 | I129: 8 | J129: 9 | K129: 10 | L129: 11 | M129: 12 | N129: 13 | O129: 14 | P129: 15 | Q129: 16 | R129: 17 | S129: 18 | T129: 19 | U129: 20 | V129: 21 | W129: 22 | X129: 23 | Y129: 24 | Z129: 25 | AA129: 26 | AB129: 27 | AC129: 28 | AD129: 29 | AE129: 30 | AF129: 31 | AG129: 32 | AH129: 33 | AI129: 34 | AJ129: 35 | AK129: 36 | AL129: 37 | AM129: 38 | AN129: 39 | AO129: 40 | AP129: 41 | AQ129: 42 | AR129: 43 | AS129: 44 | AT129: 45 | AU129: 46 | AV129: 47 | AW129: 48 | AX129: 49 | AY129: 50 | AZ129: 51 | BA129: 52 | BB129: 53 | BC129: 54 | BD129: 55 | BE129: 56 | BF129: 57 | BG129: 58 | BH129: 59 | BI129: 60 | BJ129: 61 | BK129: 62 | BL129: 63 | BM129: 64 | BN129: 65 | BO129: 66 | BP129: 67 | BQ129: 68 | BR129: 69 | BS129: 70 | BT129: 71 | BU129: 72 | BV129: 73 | BW129: 74 | BX129: 75 | BY129: 76 | BZ129: 77 | CA129: 78 | CB129: 79 | CC129: 80 | CD129: 81 | CE129: 82 | CF129: 83 | CG129: 84 | CH129: 85 | CI129: 86 | CJ129: 87 | CK129: 88 | CL129: 89 | CM129: 90 | CN129: 91 | CO129: 92 | CP129: 93 | CQ129: 94 | CR129: 95 | CS129: 96 | CT129: 97 | CU129: 98 | CV129: 99 | CW129: 100
A130: 1 | B130: 0.9267896408 | C130: 0.9519517425 | D130: 0.8957815906 | E130: 0.6246321328 | F130: 0.8734656467 | G130: 0.7241053745 | H130: 0.2623438648 | I130: 0.2689017852 | J130: 0.9306622254 | K130: 0.897744915 | L130: 0.06659068863 | M130: 0.1085191487 | N130: 0.3300379541 | O130: 0.4794724014 | P130: 0.7280429951 | Q130: 0.1717934243 | R130: 0.8299378921 | S130: 0.3866675717 | T130: 0.6270314203 | U130: 0.8194436536 | V130: 0.4766374764 | W130: 0.5865259769 | X130: 0.8189690932 | Y130: 0.9107613804 | Z130: 0.8499656943 | AA130: 0.01764215022 | AB130: 0.6178139572 | AC130: 0.3975549004 | AD130: 0.7564853402 | AE130: 0.653218876 | AF130: 0.9295595926 | AG130: 0.8853041528 | AH130: 0.1070910351 | AI130: 0.366449366 | AJ130: 0.4964763539 | AK130: 0.442536553 | AL130: 0.4871555352 | AM130: 0.9239379474 | AN130: 0.6066420507 | AO130: 0.4255376417 | AP130: 0.3945996015 | AQ130: 0.04611962508 | AR130: 0.4811046316 | AS130: 0.7490528978 | AT130: 0.1749145757 | AU130: 0.0244060602 | AV130: 0.5405432211 | AW130: 0.5778893322 | AX130: 0.5432803428 | AY130: 0.176708113 | AZ130: 0.3957528379 | BA130: 0.04768533959 | BB130: 0.6458393073 | BC130: 0.6328953156 | BD130: 0.3811787751 | BE130: 0.2848765159 | BF130: 0.2250562711 | BG130: 0.8358409255 | BH130: 0.1627291274 | BI130: 0.1059923514 | BJ130: 0.03535042627 | BK130: 0.009689063722 | BL130: 0.9234623233 | BM130: 0.5193129985 | BN130: 0.1443319765 | BO130: 0.8968302959 | BP130: 0.9889025627 | BQ130: 0.6574711252 | BR130: 0.8552612971 | BS130: 0.2228608785 | BT130: 0.2905529305 | BU130: 0.7763161438 | BV130: 0.2088675871 | BW130: 0.394015129 | BX130: 0.9038302739 | BY130: 0.8561694218 | BZ130: 0.008880751147 | CA130: 0.04039800031 | CB130: 0.244205164 | CC130: 0.6295002872 | CD130: 0.9247224888 | CE130: 0.6383764916 | CF130: 0.1754033259 | CG130: 0.0648710881 | CH130: 0.4764690005 | CI130: 0.5358184618 | CJ130: 0.9173030259 | CK130: 0.06045655912 | CL130: 0.2849392364 | CM130: 0.2893472293 | CN130: 0.9400035099 | CO130: 0.5713858807 | CP130: 0.002985159444 | CQ130: 0.6444862974 | CR130: 0.8837958998 | CS130: 0.2259475522 | CT130: 0.986173745 | CU130: 0.4686215489 | CV130: 0.2100918249 | CW130: 0.2765901139
A131: 2 | B131: 0.7478687661 | C131: 0.9532732665 | D131: 0.9442153409 | E131: 0.7731325578 | F131: 0.9113237154 | G131: 0.2155159483 | H131: 0.5197679946 | I131: 0.7405763561 | J131: 0.604262147 | K131: 0.3106660659 | L131: 0.2063525126 | M131: 0.4200008225 | N131: 0.2265225742 | O131: 0.1860628351 | P131: 0.7800591932 | Q131: 0.6672081886 | R131: 0.9417275441 | S131: 0.5211753806 | T131: 0.02717971588 | U131: 0.968502711 | V131: 0.7271913725 | W131: 0.3372002455 | X131: 0.2839222893 | Y131: 0.9904914892 | Z131: 0.5329603882 | AA131: 0.7315305971 | AB131: 0.3056468588 | AC131: 0.7316622013 | AD131: 0.04846238503 | AE131: 0.5034097421 | AF131: 0.6125899712 | AG131: 0.7528163284 | AH131: 0.4803021074 | AI131: 0.1137887747 | AJ131: 0.3328910201 | AK131: 0.4041196244 | AL131: 0.7955750412 | AM131: 0.9482550171 | AN131: 0.8317310727 | AO131: 0.4154314421 | AP131: 0.05035954864 | AQ131: 0.6556598404 | AR131: 0.1050226622 | AS131: 0.1877105478 | AT131: 0.627527782 | AU131: 0.801287014 | AV131: 0.5879652524 | AW131: 0.01217111747 | AX131: 0.8923270591 | AY131: 0.1810994089 | AZ131: 0.9506122405 | BA131: 0.3544460283 | BB131: 0.5138011496 | BC131: 0.8472751824 | BD131: 0.9743148927 | BE131: 0.7624346922 | BF131: 0.1713679694 | BG131: 0.2180547004 | BH131: 0.8473213201 | BI131: 0.7640446555 | BJ131: 0.2152210911 | BK131: 0.09868286886 | BL131: 0.09780018369 | BM131: 0.4030451147 | BN131: 0.7046020895 | BO131: 0.8547015109 | BP131: 0.3394544151 | BQ131: 0.9569165524 | BR131: 0.5735903298 | BS131: 0.1567191953 | BT131: 0.8328405383 | BU131: 0.7073215996 | BV131: 0.8851327415 | BW131: 0.765359372 | BX131: 0.4427074024 | BY131: 0.00437866893 | BZ131: 0.619432846 | CA131: 0.07321984219 | CB131: 0.5725237216 | CC131: 0.05957379818 | CD131: 0.09160524742 | CE131: 0.3094186515 | CF131: 0.2282648 | CG131: 0.3487280221 | CH131: 0.6903441382 | CI131: 0.966862313 | CJ131: 0.6719681585 | CK131: 0.6269845101 | CL131: 0.2715427355 | CM131: 0.5653421147 | CN131: 0.1739425852 | CO131: 0.9573422967 | CP131: 0.3559537121 | CQ131: 0.2179766568 | CR131: 0.587119271 | CS131: 0.1321546968 | CT131: 0.9001710111 | CU131: 0.7521108383 | CV131: 0.3580716514 | CW131: 0.08556740293
A132: 3 | B132: 0.3024594626 | C132: 0.4630672716 | D132: 0.01376320226 | E132: 0.3772560766 | F132: 0.3285452762 | G132: 0.4465919836 | H132: 0.9830786142 | I132: 0.08018083159 | J132: 0.1163282587 | K132: 0.5712332971 | L132: 0.7017525881 | M132: 0.9963619519 | N132: 0.3457027472 | O132: 0.7443675091 | P132: 0.8394011741 | Q132: 0.2024456764 | R132: 0.7751884138 | S132: 0.9250851971 | T132: 0.3724735619 | U132: 0.1393010551 | V132: 0.3102724265 | W132: 0.6373150903 | X132: 0.927799528 | Y132: 0.840691296 | Z132: 0.2736507855 | AA132: 0.8136560866 | AB132: 0.9980621262 | AC132: 0.001158218043 | AD132: 0.444974444 | AE132: 0.9847608528 | AF132: 0.5000357958 | AG132: 0.9062601847 | AH132: 0.6423227672 | AI132: 0.9758708876 | AJ132: 0.5713160114 | AK132: 0.8592441055 | AL132: 0.7376514698 | AM132: 0.9158655853 | AN132: 0.5440899604 | AO132: 0.8953285739 | AP132: 0.6022454224 | AQ132: 0.2645546361 | AR132: 0.08449348598 | AS132: 0.300716464 | AT132: 0.09865208423 | AU132: 0.05732089952 | AV132: 0.371338907 | AW132: 0.5900847221 | AX132: 0.8667374625 | AY132: 0.8291556179 | AZ132: 0.6033234689 | BA132: 0.5554000966 | BB132: 0.02922271716 | BC132: 0.04075218877 | BD132: 0.8731796944 | BE132: 0.2472347591 | BF132: 0.66076225 | BG132: 0.07276191802 | BH132: 0.2818944536 | BI132: 0.3267184378 | BJ132: 0.03970853627 | BK132: 0.3949172044 | BL132: 0.09962223941 | BM132: 0.1182235559 | BN132: 0.4111869911 | BO132: 0.2325383203 | BP132: 0.7361676249 | BQ132: 0.4632844707 | BR132: 0.9506577305 | BS132: 0.9420866974 | BT132: 0.8142776264 | BU132: 0.3030889729 | BV132: 0.3047287335 | BW132: 0.5398095906 | BX132: 0.8734890559 | BY132: 0.34695285 | BZ132: 0.8775281327 | CA132: 0.7440605613 | CB132: 0.3018864368 | CC132: 0.7857364764 | CD132: 0.08864589376 | CE132: 0.9638097936 | CF132: 0.6084409296 | CG132: 0.8311408986 | CH132: 0.526873552 | CI132: 0.8519454275 | CJ132: 0.50601337 | CK132: 0.885918842 | CL132: 0.1113181823 | CM132: 0.8226543935 | CN132: 0.7301301231 | CO132: 0.07270416651 | CP132: 0.4878379512 | CQ132: 0.5038570132 | CR132: 0.6867825884 | CS132: 0.02575763748 | CT132: 0.6208374046 | CU132: 0.4590645526 | CV132: 0.6954564343 | CW132: 0.8412590814
A133: 4 | B133: 0.5108887318 | C133: 0.6170477022 | D133: 0.7804769476 | E133: 0.9617925788 | F133: 0.868352742 | G133: 0.7860459647 | H133: 0.6129058859 | I133: 0.06455547149 | J133: 0.3773615199 | K133: 0.1852926439 | L133: 0.4288620373 | M133: 0.5617631363 | N133: 0.4876640226 | O133: 0.9376909599 | P133: 0.9269434121 | Q133: 0.7250977123 | R133: 0.4045234642 | S133: 0.3088994 | T133: 0.324966253 | U133: 0.3077016802 | V133: 0.7473299217 | W133: 0.8272835533 | X133: 0.6545253534 | Y133: 0.5430601082 | Z133: 0.4725331224 | AA133: 0.5386993737 | AB133: 0.8144021325 | AC133: 0.2296864232 | AD133: 0.846477596 | AE133: 0.2296007731 | AF133: 0.8950330191 | AG133: 0.8920371888 | AH133: 0.8859285318 | AI133: 0.9087015751 | AJ133: 0.2621020829 | AK133: 0.3294724479 | AL133: 0.9348698329 | AM133: 0.4478941405 | AN133: 0.3711346097 | AO133: 0.8215150492 | AP133: 0.06244801885 | AQ133: 0.1578540328 | AR133: 0.7744913226 | AS133: 0.9292833605 | AT133: 0.2936880424 | AU133: 0.6887383243 | AV133: 0.3601817758 | AW133: 0.1703021968 | AX133: 0.1284361378 | AY133: 0.5155735994 | AZ133: 0.7435907187 | BA133: 0.158371866 | BB133: 0.6964649498 | BC133: 0.9031156762 | BD133: 0.4915046947 | BE133: 0.6097585543 | BF133: 0.9960710343 | BG133: 0.6335306792 | BH133: 0.7638474729 | BI133: 0.7874977392 | BJ133: 0.9527469272 | BK133: 0.4706978091 | BL133: 0.5232475006 | BM133: 0.1830324803 | BN133: 0.7115662283 | BO133: 0.5348888366 | BP133: 0.4593325374 | BQ133: 0.0005765585814 | BR133: 0.3266121607 | BS133: 0.5974056148 | BT133: 0.7073736889 | BU133: 0.3995521722 | BV133: 0.7649550963 | BW133: 0.1256355413 | BX133: 0.7033295678 | BY133: 0.3507892074 | BZ133: 0.1945315964 | CA133: 0.2895242736 | CB133: 0.9585833813 | CC133: 0.8111194224 | CD133: 0.9722470337 | CE133: 0.7731067109 | CF133: 0.1858860311 | CG133: 0.3884248005 | CH133: 0.958338234 | CI133: 0.9009728688 | CJ133: 0.3095532942 | CK133: 0.7102427616 | CL133: 0.2930466617 | CM133: 0.921646209 | CN133: 0.4750861894 | CO133: 0.1844834719 | CP133: 0.2409079125 | CQ133: 0.2885041471 | CR133: 0.9471905141 | CS133: 0.6103453345 | CT133: 0.8296900127 | CU133: 0.9143017614 | CV133: 0.157365028 | CW133: 0.8071478563
A134: 5 | B134: 0.1977127284 | C134: 0.9670611034 | D134: 0.01935948461 | E134: 0.9316338209 | F134: 0.5612100954 | G134: 0.2625751388 | H134: 0.7617803242 | I134: 0.8913519185 | J134: 0.4961514 | K134: 0.7258882038 | L134: 0.06921432544 | M134: 0.5166919501 | N134: 0.8329084705 | O134: 0.6473884321 | P134: 0.1875155766 | Q134: 0.7698489574 | R134: 0.2400583829 | S134: 0.44438845 | T134: 0.8708116107 | U134: 0.4163915047 | V134: 0.3899728415 | W134: 0.3575801151 | X134: 0.8067566573 | Y134: 0.4431005429 | Z134: 0.8320925372 | AA134: 0.2256532856 | AB134: 0.4381205073 | AC134: 0.4945054183 | AD134: 0.8641941307 | AE134: 0.8835135144 | AF134: 0.01868393077 | AG134: 0.9624718899 | AH134: 0.2641773976 | AI134: 0.2123988607 | AJ134: 0.904388148 | AK134: 0.5495642562 | AL134: 0.04159921787 | AM134: 0.09667446391 | AN134: 0.7511445694 | AO134: 0.5374623383 | AP134: 0.6467883893 | AQ134: 0.832345657 | AR134: 0.8487379503 | AS134: 0.2195439864 | AT134: 0.5689002307 | AU134: 0.004020785533 | AV134: 0.03517894694 | AW134: 0.4996295299 | AX134: 0.6356953475 | AY134: 0.1652303283 | AZ134: 0.6748092852 | BA134: 0.1248899456 | BB134: 0.4471746352 | BC134: 0.3857291451 | BD134: 0.339375878 | BE134: 0.3856609816 | BF134: 0.9516489254 | BG134: 0.7745309774 | BH134: 0.2947160505 | BI134: 0.4702363604 | BJ134: 0.2320787647 | BK134: 0.5101335617 | BL134: 0.6705504424 | BM134: 0.4275224763 | BN134: 0.7836520679 | BO134: 0.1913543731 | BP134: 0.516892002 | BQ134: 0.0597092012 | BR134: 0.8131171432 | BS134: 0.9387972541 | BT134: 0.5941108049 | BU134: 0.8288444506 | BV134: 0.7157814389 | BW134: 0.2528037328 | BX134: 0.1194559109 | BY134: 0.3159514151 | BZ134: 0.7546373681 | CA134: 0.6972364503 | CB134: 0.4567445215 | CC134: 0.8175107783 | CD134: 0.2780725976 | CE134: 0.7609359815 | CF134: 0.7010410032 | CG134: 0.1440755385 | CH134: 0.3910886974 | CI134: 0.3370757524 | CJ134: 0.7316453575 | CK134: 0.2276066083 | CL134: 0.2356215439 | CM134: 0.9998631196 | CN134: 0.6434631347 | CO134: 0.997502715 | CP134: 0.1678324473 | CQ134: 0.05312723788 | CR134: 0.7128497246 | CS134: 0.7951597889 | CT134: 0.5342394576 | CU134: 0.5961452289 | CV134: 0.5413795629 | CW134: 0.8857816625
A135: 6 | B135: 0.1925187551 | C135: 0.03339357884 | D135: 0.6228171832 | E135: 0.669677075 | F135: 0.8011488496 | G135: 0.5900132815 | H135: 0.3556158435 | I135: 0.5933550088 | J135: 0.08466802517 | K135: 0.5927161742 | L135: 0.9521894087 | M135: 0.2753556565 | N135: 0.4380404775 | O135: 0.3950989964 | P135: 0.6054978117 | Q135: 0.3309220174 | R135: 0.5778154007 | S135: 0.7387087535 | T135: 0.3490539183 | U135: 0.06149673657 | V135: 0.9215043595 | W135: 0.6419369586 | X135: 0.7013061491 | Y135: 0.1846304548 | Z135: 0.9274554683 | AA135: 0.2633491185 | AB135: 0.5439337337 | AC135: 0.03033830889 | AD135: 0.03563735628 | AE135: 0.7993097026 | AF135: 0.3939967109 | AG135: 0.3985006006 | AH135: 0.4782968802 | AI135: 0.913868554 | AJ135: 0.5289898024 | AK135: 0.07761371157 | AL135: 0.1473226268 | AM135: 0.7206809194 | AN135: 0.149379276 | AO135: 0.383370348 | AP135: 0.6136139903 | AQ135: 0.6723010925 | AR135: 0.006869020701 | AS135: 0.3872169813 | AT135: 0.05126490316 | AU135: 0.07670393763 | AV135: 0.9714072547 | AW135: 0.4432263626 | AX135: 0.09590383917 | AY135: 0.8577350754 | AZ135: 0.3685280085 | BA135: 0.979920631 | BB135: 0.602091979 | BC135: 0.5587863679 | BD135: 0.8479695931 | BE135: 0.7327649953 | BF135: 0.8068171718 | BG135: 0.8669028091 | BH135: 0.05306889484 | BI135: 0.568547479 | BJ135: 0.4182591667 | BK135: 0.09957465195 | BL135: 0.4440682577 | BM135: 0.8209325521 | BN135: 0.1663009508 | BO135: 0.03847503323 | BP135: 0.3547961759 | BQ135: 0.8972356098 | BR135: 0.5966318495 | BS135: 0.9624415319 | BT135: 0.8410904944 | BU135: 0.9219937869 | BV135: 0.971406162 | BW135: 0.3690157766 | BX135: 0.1687572477 | BY135: 0.6286917811 | BZ135: 0.9283382363 | CA135: 0.6116885443 | CB135: 0.7340505141 | CC135: 0.7934009705 | CD135: 0.3466432666 | CE135: 0.9411802684 | CF135: 0.7121572867 | CG135: 0.8956822236 | CH135: 0.7443504548 | CI135: 0.5178700182 | CJ135: 0.1674165701 | CK135: 0.2725853978 | CL135: 0.09703269527 | CM135: 0.2733358208 | CN135: 0.7628980443 | CO135: 0.9390175174 | CP135: 0.257305604 | CQ135: 0.7997930831 | CR135: 0.1059558686 | CS135: 0.1163976736 | CT135: 0.4351094664 | CU135: 0.9195425454 | CV135: 0.6997083677 | CW135: 0.2034121364
A136: 7 | B136: 0.02520281795 | C136: 0.07553746771 | D136: 0.6653602939 | E136: 0.2458045619 | F136: 0.2121585964 | G136: 0.4635519385 | H136: 0.7496511542 | I136: 0.5838170003 | J136: 0.5998274156 | K136: 0.5487832761 | L136: 0.4424879537 | M136: 0.09879958055 | N136: 0.9244417707 | O136: 0.3895398448 | P136: 0.3596000828 | Q136: 0.6687803957 | R136: 0.09952980708 | S136: 0.1311721269 | T136: 0.4298581362 | U136: 0.1176621613 | V136: 0.643895627 | W136: 0.6148879062 | X136: 0.8709180213 | Y136: 0.5508957854 | Z136: 0.2021312681 | AA136: 0.1519856997 | AB136: 0.02895619812 | AC136: 0.5421507057 | AD136: 0.3798332683 | AE136: 0.5870781881 | AF136: 0.7954558889 | AG136: 0.881250854 | AH136: 0.4524440109 | AI136: 0.5411547714 | AJ136: 0.9141831524 | AK136: 0.7287667037 | AL136: 0.5966914678 | AM136: 0.0005248356824 | AN136: 0.8690445153 | AO136: 0.4213962191 | AP136: 0.3901561817 | AQ136: 0.6308941428 | AR136: 0.9087822815 | AS136: 0.5024406292 | AT136: 0.6017479113 | AU136: 0.6932865878 | AV136: 0.2767522933 | AW136: 0.3499313287 | AX136: 0.9849993797 | AY136: 0.1858661798 | AZ136: 0.8987238139 | BA136: 0.3350590429 | BB136: 0.7332421853 | BC136: 0.5758715323 | BD136: 0.06705427886 | BE136: 0.3626573221 | BF136: 0.3256575905 | BG136: 0.8679065746 | BH136: 0.9915705609 | BI136: 0.6596489332 | BJ136: 0.2272016839 | BK136: 0.2442804248 | BL136: 0.9692194752 | BM136: 0.437586226 | BN136: 0.2872899267 | BO136: 0.714429682 | BP136: 0.6167752853 | BQ136: 0.9742562077 | BR136: 0.8779985035 | BS136: 0.2725125758 | BT136: 0.1461169727 | BU136: 0.4210136624 | BV136: 0.6412625812 | BW136: 0.1867113202 | BX136: 0.9538078152 | BY136: 0.2478126773 | BZ136: 0.5941902216 | CA136: 0.005761429226 | CB136: 0.1426496972 | CC136: 0.05657151556 | CD136: 0.1262866472 | CE136: 0.4079261413 | CF136: 0.8672324256 | CG136: 0.7141120481 | CH136: 0.2925798274 | CI136: 0.5079042947 | CJ136: 0.6775315925 | CK136: 0.09571223035 | CL136: 0.03057894337 | CM136: 0.9799123726 | CN136: 0.5596579435 | CO136: 0.7851748933 | CP136: 0.3117306327 | CQ136: 0.7936312713 | CR136: 0.3317009535 | CS136: 0.9202570604 | CT136: 0.817181273 | CU136: 0.4990822235 | CV136: 0.8266454721 | CW136: 0.06681081771
A137: 8 | B137: 0.7331039804 | C137: 0.09501536895 | D137: 0.8106331657 | E137: 0.285807917 | F137: 0.1462785214 | G137: 0.2957832147 | H137: 0.3813957569 | I137: 0.3490704614 | J137: 0.05686464575 | K137: 0.06406081438 | L137: 0.466087271 | M137: 0.1953500501 | N137: 0.6014983427 | O137: 0.6940926415 | P137: 0.5693377722 | Q137: 0.7317216649 | R137: 0.8416507582 | S137: 0.8294571237 | T137: 0.7377003408 | U137: 0.75315617 | V137: 0.6427303901 | W137: 0.8406356613 | X137: 0.383651166 | Y137: 0.08323396453 | Z137: 0.006400258229 | AA137: 0.4070767538 | AB137: 0.8305237845 | AC137: 0.7772761115 | AD137: 0.2836985097 | AE137: 0.2720674975 | AF137: 0.05936727231 | AG137: 0.2310530299 | AH137: 0.04308180125 | AI137: 0.5566495678 | AJ137: 0.06634655352 | AK137: 0.1711004444 | AL137: 0.8570991475 | AM137: 0.5823296739 | AN137: 0.01577800243 | AO137: 0.1432198331 | AP137: 0.330167365 | AQ137: 0.09487245871 | AR137: 0.4853329772 | AS137: 0.5356129783 | AT137: 0.7862402153 | AU137: 0.6567507095 | AV137: 0.3848117507 | AW137: 0.635781665 | AX137: 0.9897524888 | AY137: 0.01490773441 | AZ137: 0.2804260427 | BA137: 0.03263919453 | BB137: 0.8697987849 | BC137: 0.7369344865 | BD137: 0.6424263215 | BE137: 0.6093239336 | BF137: 0.0429404625 | BG137: 0.8851132522 | BH137: 0.647422077 | BI137: 0.1245386265 | BJ137: 0.7319689343 | BK137: 0.6943138962 | BL137: 0.8157460406 | BM137: 0.8326116718 | BN137: 0.01454026031 | BO137: 0.4229853789 | BP137: 0.9644247099 | BQ137: 0.7324955791 | BR137: 0.1258394252 | BS137: 0.7512814296 | BT137: 0.7975088331 | BU137: 0.9897160366 | BV137: 0.06476673925 | BW137: 0.1494712261 | BX137: 0.7208822457 | BY137: 0.1367582919 | BZ137: 0.388201232 | CA137: 0.6731772914 | CB137: 0.8371547945 | CC137: 0.9536192751 | CD137: 0.8790366575 | CE137: 0.4230733015 | CF137: 0.3206291175 | CG137: 0.8413607629 | CH137: 0.07646437666 | CI137: 0.5615163381 | CJ137: 0.9419551497 | CK137: 0.3427643601 | CL137: 0.3993714022 | CM137: 0.8747316146 | CN137: 0.7259937612 | CO137: 0.8089627845 | CP137: 0.7497229287 | CQ137: 0.8208988245 | CR137: 0.9935497039 | CS137: 0.9524250955 | CT137: 0.1515763227 | CU137: 0.6488706696 | CV137: 0.9814330839 | CW137: 0.02226309905
A138: 9 | B138: 0.04756968025 | C138: 0.5964903881 | D138: 0.2609154293 | E138: 0.8798936269 | F138: 0.9492099185 | G138: 0.4393930803 | H138: 0.1490758517 | I138: 0.8710739404 | J138: 0.1923722893 | K138: 0.2358544895 | L138: 0.6692472885 | M138: 0.9228174058 | N138: 0.6273163601 | O138: 0.6823172224 | P138: 0.537805364 | Q138: 0.02064621577 | R138: 0.4776757126 | S138: 0.4492361652 | T138: 0.967560762 | U138: 0.2282663966 | V138: 0.09802774714 | W138: 0.7551119348 | X138: 0.6037308102 | Y138: 0.7924300161 | Z138: 0.7485472182 | AA138: 0.4154960795 | AB138: 0.439349751 | AC138: 0.3643822655 | AD138: 0.7341405888 | AE138: 0.5250831512 | AF138: 0.5699074598 | AG138: 0.5557872076 | AH138: 0.3540972054 | AI138: 0.2123904584 | AJ138: 0.201191299 | AK138: 0.3914401334 | AL138: 0.5083181013 | AM138: 0.2078576942 | AN138: 0.5516239546 | AO138: 0.1834012371 | AP138: 0.5237085925 | AQ138: 0.6395100896 | AR138: 0.8899687447 | AS138: 0.7554765676 | AT138: 0.9430389759 | AU138: 0.6149433313 | AV138: 0.2664936973 | AW138: 0.6233661648 | AX138: 0.6000969441 | AY138: 0.2123602722 | AZ138: 0.7907715579 | BA138: 0.6956376757 | BB138: 0.05076962342 | BC138: 0.264673826 | BD138: 0.8800136609 | BE138: 0.1271723816 | BF138: 0.315040354 | BG138: 0.7339821217 | BH138: 0.6520063536 | BI138: 0.2036446021 | BJ138: 0.7968805291 | BK138: 0.6470972256 | BL138: 0.0767677908 | BM138: 0.273057526 | BN138: 0.9009659967 | BO138: 0.3345395872 | BP138: 0.8178318616 | BQ138: 0.486995526 | BR138: 0.9013505716 | BS138: 0.3333924686 | BT138: 0.739811331 | BU138: 0.4226383069 | BV138: 0.9018770771 | BW138: 0.3545918782 | BX138: 0.01966114569 | BY138: 0.73300684 | BZ138: 0.6421593572 | CA138: 0.8650526989 | CB138: 0.6390749631 | CC138: 0.6529099725 | CD138: 0.3885470568 | CE138: 0.9657008822 | CF138: 0.03249818109 | CG138: 0.3340827891 | CH138: 0.2697680471 | CI138: 0.9784146585 | CJ138: 0.391700553 | CK138: 0.08952709018 | CL138: 0.3523595845 | CM138: 0.3630163264 | CN138: 0.8783230499 | CO138: 0.05359357758 | CP138: 0.1651585422 | CQ138: 0.307242207 | CR138: 0.7461554429 | CS138: 0.5446491633 | CT138: 0.08305994705 | CU138: 0.6593758015 | CV138: 0.3443724485 | CW138: 0.7613631197
A139: 10 | B139: 0.0994418626 | C139: 0.1546447031 | D139: 0.4201156742 | E139: 0.9700598678 | F139: 0.8566430938 | G139: 0.6761902077 | H139: 0.5704480251 | I139: 0.666740515 | J139: 0.4731450922 | K139: 0.3592826575 | L139: 0.07275414978 | M139: 0.380377599 | N139: 0.646508271 | O139: 0.1537865427 | P139: 0.6655689684 | Q139: 0.004338403595 | R139: 0.7545220482 | S139: 0.5827174505 | T139: 0.7712620389 | U139: 0.1402077311 | V139: 0.464625365 | W139: 0.766639977 | X139: 0.7303584031 | Y139: 0.264428297 | Z139: 0.8542356345 | AA139: 0.9543082492 | AB139: 0.883818327 | AC139: 0.3625725087 | AD139: 0.06413027856 | AE139: 0.7924340253 | AF139: 0.2341111429 | AG139: 0.9244199953 | AH139: 0.7629234381 | AI139: 0.430598855 | AJ139: 0.03891079136 | AK139: 0.9216371883 | AL139: 0.06009871599 | AM139: 0.09488392993 | AN139: 0.393002188 | AO139: 0.3027368113 | AP139: 0.6785856873 | AQ139: 0.3268332182 | AR139: 0.8375641016 | AS139: 0.3317916229 | AT139: 0.4475441455 | AU139: 0.7775589929 | AV139: 0.4363728873 | AW139: 0.8969004686 | AX139: 0.9508045703 | AY139: 0.05431595667 | AZ139: 0.9364159824 | BA139: 0.8438650963 | BB139: 0.04261532631 | BC139: 0.3469407418 | BD139: 0.9737897105 | BE139: 0.6681902382 | BF139: 0.224612125 | BG139: 0.6813095009 | BH139: 0.5712743805 | BI139: 0.278407146 | BJ139: 0.2543757121 | BK139: 0.1581341465 | BL139: 0.8277980266 | BM139: 0.4437271076 | BN139: 0.604634977 | BO139: 0.6593802784 | BP139: 0.5647243263 | BQ139: 0.9297886189 | BR139: 0.9846813031 | BS139: 0.6229251559 | BT139: 0.7802804863 | BU139: 0.9480224578 | BV139: 0.3132587219 | BW139: 0.8165536245 | BX139: 0.9666467553 | BY139: 0.1188471748 | BZ139: 0.22422583 | CA139: 0.607736504 | CB139: 0.4022753424 | CC139: 0.7011203656 | CD139: 0.9735679334 | CE139: 0.5508621827 | CF139: 0.08899294588 | CG139: 0.1904206055 | CH139: 0.7277066776 | CI139: 0.4217092625 | CJ139: 0.2374130734 | CK139: 0.5480897872 | CL139: 0.07679809175 | CM139: 0.8306601787 | CN139: 0.3748775244 | CO139: 0.08986838415 | CP139: 0.8325814177 | CQ139: 0.4901792838 | CR139: 0.4691899297 | CS139: 0.8670136768 | CT139: 0.6955199534 | CU139: 0.7201553607 | CV139: 0.953751453 | CW139: 0.01245435144
A140: 11 | B140: 0.05853380912 | C140: 0.5286576576 | D140: 0.7357915408 | E140: 0.1879079578 | F140: 0.8760243125 | G140: 0.06591617264 | H140: 0.98698805 | I140: 0.1182922276 | J140: 0.8402235345 | K140: 0.4759313078 | L140: 0.4466174785 | M140: 0.8494245518 | N140: 0.6426647951 | O140: 0.123283381 | P140: 0.007484678025 | Q140: 0.473252568 | R140: 0.8179254674 | S140: 0.8573659212 | T140: 0.3055623969 | U140: 0.322919718 | V140: 0.2579084019 | W140: 0.6067854554 | X140: 0.43027059 | Y140: 0.5535671489 | Z140: 0.6670248258 | AA140: 0.9839265735 | AB140: 0.8245535544 | AC140: 0.8247526401 | AD140: 0.1755750279 | AE140: 0.9703235775 | AF140: 0.1872387541 | AG140: 0.2164338697 | AH140: 0.1086160183 | AI140: 0.2697207926 | AJ140: 0.4881557555 | AK140: 0.6437912902 | AL140: 0.5243715788 | AM140: 0.9894028592 | AN140: 0.4032892584 | AO140: 0.2038675857 | AP140: 0.3189891371 | AQ140: 0.8911439307 | AR140: 0.8166497456 | AS140: 0.02412956227 | AT140: 0.02405331691 | AU140: 0.4952052015 | AV140: 0.0488700659 | AW140: 0.8047035055 | AX140: 0.1065618602 | AY140: 0.5789774889 | AZ140: 0.02328944163 | BA140: 0.7924913309 | BB140: 0.4155421748 | BC140: 0.7921477179 | BD140: 0.9151199036 | BE140: 0.08372194824 | BF140: 0.03596963614 | BG140: 0.9993684044 | BH140: 0.000649743776 | BI140: 0.01183226107 | BJ140: 0.9677741405 | BK140: 0.1440392805 | BL140: 0.4267450053 | BM140: 0.9225519524 | BN140: 0.8844957881 | BO140: 0.08477733407 | BP140: 0.8874489782 | BQ140: 0.7200399622 | BR140: 0.9354696806 | BS140: 0.1059942184 | BT140: 0.9422288183 | BU140: 0.02814078256 | BV140: 0.3569538758 | BW140: 0.5346719501 | BX140: 0.578269535 | BY140: 0.6015595008 | BZ140: 0.5773050223 | CA140: 0.269951843 | CB140: 0.3424012513 | CC140: 0.7285910253 | CD140: 0.4973202069 | CE140: 0.04303855972 | CF140: 0.8648014548 | CG140: 0.8488134805 | CH140: 0.7829518837 | CI140: 0.1121560698 | CJ140: 0.859387248 | CK140: 0.635234834 | CL140: 0.319353619 | CM140: 0.935745498 | CN140: 0.22838473 | CO140: 0.2855066478 | CP140: 0.672795482 | CQ140: 0.6740734756 | CR140: 0.7744316314 | CS140: 0.8110167617 | CT140: 0.3933632948 | CU140: 0.1033096786 | CV140: 0.3364529167 | CW140: 0.58186001
A141: 12 | B141: 0.687351295 | C141: 0.8919440597 | D141: 0.177773165 | E141: 0.1435343976 | F141: 0.961888514 | G141: 0.5585342934 | H141: 0.5425123013 | I141: 0.04071591645 | J141: 0.1449183158 | K141: 0.06831403434 | L141: 0.7649765293 | M141: 0.3276588643 | N141: 0.5522595381 | O141: 0.3893635592 | P141: 0.05134277596 | Q141: 0.2749036592 | R141: 0.5241768946 | S141: 0.6476239634 | T141: 0.4573149315 | U141: 0.6030336325 | V141: 0.4146744346 | W141: 0.4596867413 | X141: 0.7748870924 | Y141: 0.07093843312 | Z141: 0.7819162147 | AA141: 0.4708261766 | AB141: 0.5125183592 | AC141: 0.5596452113 | AD141: 0.7968203852 | AE141: 0.2962732658 | AF141: 0.2899034259 | AG141: 0.965554975 | AH141: 0.1279888659 | AI141: 0.915816306 | AJ141: 0.9335064733 | AK141: 0.5887049593 | AL141: 0.4375828212 | AM141: 0.03586866675 | AN141: 0.5279826539 | AO141: 0.2720084548 | AP141: 0.9082483945 | AQ141: 0.1527924202 | AR141: 0.9110543362 | AS141: 0.8614269375 | AT141: 0.9352054489 | AU141: 0.5984121289 | AV141: 0.4100903877 | AW141: 0.07030903555 | AX141: 0.6454465077 | AY141: 0.7688982774 | AZ141: 0.4055411836 | BA141: 0.9455642293 | BB141: 0.9798780351 | BC141: 0.3449576622 | BD141: 0.9641064403 | BE141: 0.542646436 | BF141: 0.9715003994 | BG141: 0.1284521496 | BH141: 0.4701582216 | BI141: 0.03516405157 | BJ141: 0.3296516356 | BK141: 0.2472853246 | BL141: 0.001118560148 | BM141: 0.6311779586 | BN141: 0.8897252907 | BO141: 0.5693045394 | BP141: 0.9097991281 | BQ141: 0.7059528475 | BR141: 0.04947780253 | BS141: 0.9690900156 | BT141: 0.794550478 | BU141: 0.5196964408 | BV141: 0.4198951425 | BW141: 0.7883518804 | BX141: 0.1933959658 | BY141: 0.6026117362 | BZ141: 0.068497119 | CA141: 0.06510083381 | CB141: 0.3732817248 | CC141: 0.6704934573 | CD141: 0.1804447935 | CE141: 0.3171453487 | CF141: 0.9020382165 | CG141: 0.7012685958 | CH141: 0.5871898477 | CI141: 0.944105261 | CJ141: 0.5541222883 | CK141: 0.6831299126 | CL141: 0.2451672864 | CM141: 0.8295328701 | CN141: 0.6063040131 | CO141: 0.8013269679 | CP141: 0.3394528389 | CQ141: 0.3952875807 | CR141: 0.1357704714 | CS141: 0.4553847515 | CT141: 0.8332892768 | CU141: 0.3108201811 | CV141: 0.3359989214 | CW141: 0.2488018947
A142: 13 | B142: 0.07517365347 | C142: 0.8297689329 | D142: 0.190840492 | E142: 0.8419692488 | F142: 0.9776309577 | G142: 0.6829254308 | H142: 0.04286840646 | I142: 0.2356302724 | J142: 0.2497570014 | K142: 0.8022210635 | L142: 0.2269065825 | M142: 0.215126274 | N142: 0.5007308168 | O142: 0.7036177877 | P142: 0.7240769505 | Q142: 0.2506359668 | R142: 0.3430139283 | S142: 0.7196116152 | T142: 0.5225960018 | U142: 0.2263845492 | V142: 0.3577171876 | W142: 0.4363999584 | X142: 0.324436416 | Y142: 0.8009746569 | Z142: 0.2174823748 | AA142: 0.4801054415 | AB142: 0.05449036145 | AC142: 0.8327168817 | AD142: 0.1864310206 | AE142: 0.8792840871 | AF142: 0.1260360027 | AG142: 0.2992194939 | AH142: 0.9336956025 | AI142: 0.3983815987 | AJ142: 0.4101896946 | AK142: 0.24386215 | AL142: 0.9972383364 | AM142: 0.6778523088 | AN142: 0.7913356961 | AO142: 0.8324657926 | AP142: 0.8882660942 | AQ142: 0.861973447 | AR142: 0.2567601414 | AS142: 0.7354588256 | AT142: 0.8056893735 | AU142: 0.4642203234 | AV142: 0.4630961884 | AW142: 0.8630971715 | AX142: 0.6063011262 | AY142: 0.5611996305 | AZ142: 0.3088532285 | BA142: 0.5178916933 | BB142: 0.7859649459 | BC142: 0.6438311944 | BD142: 0.04529496225 | BE142: 0.7746545762 | BF142: 0.08676197697 | BG142: 0.2603406163 | BH142: 0.5143370418 | BI142: 0.4783935037 | BJ142: 0.9030484558 | BK142: 0.7517853589 | BL142: 0.1764952976 | BM142: 0.2252484566 | BN142: 0.1977319308 | BO142: 0.8152879483 | BP142: 0.3818115843 | BQ142: 0.4970840723 | BR142: 0.4495487137 | BS142: 0.9936866963 | BT142: 0.190389419 | BU142: 0.02924452173 | BV142: 0.8709005406 | BW142: 0.1372144682 | BX142: 0.76835207 | BY142: 0.252208962 | BZ142: 0.9719416755 | CA142: 0.1932248671 | CB142: 0.9666443187 | CC142: 0.8035863393 | CD142: 0.9508631321 | CE142: 0.1536554076 | CF142: 0.3218793105 | CG142: 0.5726575048 | CH142: 0.7676250148 | CI142: 0.798908119 | CJ142: 0.9377657505 | CK142: 0.08299227783 | CL142: 0.07068811815 | CM142: 0.2455214162 | CN142: 0.216195076 | CO142: 0.7385509775 | CP142: 0.5710969863 | CQ142: 0.6672073654 | CR142: 0.9939994885 | CS142: 0.7238467291 | CT142: 0.329884773 | CU142: 0.9853028383 | CV142: 0.7816417961 | CW142: 0.8590247483
A143: 14 | B143: 0.05848579447 | C143: 0.07603171949 | D143: 0.3300072124 | E143: 0.3737568349 | F143: 0.9609620559 | G143: 0.5416697918 | H143: 0.6235192883 | I143: 0.9285561622 | J143: 0.740803908 | K143: 0.1710102445 | L143: 0.6457374016 | M143: 0.6096068975 | N143: 0.9732153783 | O143: 0.7097463542 | P143: 0.2757922388 | Q143: 0.9477884233 | R143: 0.9502299006 | S143: 0.654320556 | T143: 0.8278727653 | U143: 0.3906516 | V143: 0.8053238677 | W143: 0.7696676592 | X143: 0.4632554355 | Y143: 0.1058608202 | Z143: 0.04543046816 | AA143: 0.4818816176 | AB143: 0.3655849292 | AC143: 0.07749667232 | AD143: 0.1554833956 | AE143: 0.8332770673 | AF143: 0.1233418851 | AG143: 0.6471882718 | AH143: 0.714574103 | AI143: 0.9770079879 | AJ143: 0.2086853495 | AK143: 0.04614539904 | AL143: 0.2912560806 | AM143: 0.6269755862 | AN143: 0.5228447558 | AO143: 0.1360245615 | AP143: 0.5824644408 | AQ143: 0.9885971849 | AR143: 0.6343731804 | AS143: 0.01904596109 | AT143: 0.6951425171 | AU143: 0.3825575859 | AV143: 0.7672151743 | AW143: 0.9627929296 | AX143: 0.003255610067 | AY143: 0.3476163454 | AZ143: 0.8964482112 | BA143: 0.5958116232 | BB143: 0.7391492241 | BC143: 0.7748706871 | BD143: 0.8308554324 | BE143: 0.04799652632 | BF143: 0.1080210698 | BG143: 0.292336423 | BH143: 0.08007048982 | BI143: 0.07279022694 | BJ143: 0.4878856281 | BK143: 0.4326743533 | BL143: 0.04729629466 | BM143: 0.03431848497 | BN143: 0.6999223268 | BO143: 0.9472247018 | BP143: 0.04375927981 | BQ143: 0.9904274427 | BR143: 0.4358133229 | BS143: 0.08028657835 | BT143: 0.405449107 | BU143: 0.4746659675 | BV143: 0.09864643517 | BW143: 0.5566701253 | BX143: 0.4631625301 | BY143: 0.429602579 | BZ143: 0.06087765904 | CA143: 0.07105835597 | CB143: 0.9550343015 | CC143: 0.4969362108 | CD143: 0.03079023649 | CE143: 0.02007380381 | CF143: 0.165888956 | CG143: 0.6657366045 | CH143: 0.6746679212 | CI143: 0.1629818332 | CJ143: 0.9040157089 | CK143: 0.7615766303 | CL143: 0.9562757036 | CM143: 0.007788045693 | CN143: 0.6096446256 | CO143: 0.8384478722 | CP143: 0.03854181549 | CQ143: 0.02317360883 | CR143: 0.5632692806 | CS143: 0.2309198971 | CT143: 0.981164176 | CU143: 0.2769647223 | CV143: 0.527810676 | CW143: 0.9491363842
A144: 15 | B144: 0.3921708451 | C144: 0.1104748173 | D144: 0.6213192633 | E144: 0.4613903481 | F144: 0.9506786831 | G144: 0.9545712638 | H144: 0.6898857447 | I144: 0.8872019161 | J144: 0.4458666718 | K144: 0.947889809 | L144: 0.3572298044 | M144: 0.09574063596 | N144: 0.6327644414 | O144: 0.9067467795 | P144: 0.5005743269 | Q144: 0.4442457976 | R144: 0.3119988062 | S144: 0.6484473469 | T144: 0.8935524647 | U144: 0.5666259973 | V144: 0.3487989636 | W144: 0.7727401441 | X144: 0.5462520554 | Y144: 0.5291204543 | Z144: 0.8444063316 | AA144: 0.3725987594 | AB144: 0.6669030445 | AC144: 0.04782873472 | AD144: 0.05810992288 | AE144: 0.2854367204 | AF144: 0.9626229353 | AG144: 0.08471728648 | AH144: 0.1699249781 | AI144: 0.4124780035 | AJ144: 0.2070809581 | AK144: 0.3243465398 | AL144: 0.5969525846 | AM144: 0.2302140283 | AN144: 0.63851995 | AO144: 0.2985761423 | AP144: 0.6498243407 | AQ144: 0.9999240704 | AR144: 0.2789492553 | AS144: 0.928838587 | AT144: 0.7505849729 | AU144: 0.5014873203 | AV144: 0.8634857519 | AW144: 0.3867287626 | AX144: 0.7932592333 | AY144: 0.8240187175 | AZ144: 0.8086080904 | BA144: 0.06424993809 | BB144: 0.1396222491 | BC144: 0.443046975 | BD144: 0.03079122672 | BE144: 0.3542465851 | BF144: 0.06483856115 | BG144: 0.731342436 | BH144: 0.02342037064 | BI144: 0.03026776332 | BJ144: 0.3916633609 | BK144: 0.9869562879 | BL144: 0.78176582 | BM144: 0.1397683974 | BN144: 0.4965717296 | BO144: 0.4910917769 | BP144: 0.184376542 | BQ144: 0.7913229762 | BR144: 0.5012736005 | BS144: 0.6537607005 | BT144: 0.3363158217 | BU144: 0.9330025735 | BV144: 0.7216226483 | BW144: 0.6376896268 | BX144: 0.4633370518 | BY144: 0.7998353126 | BZ144: 0.7272128029 | CA144: 0.6915225526 | CB144: 0.2714119304 | CC144: 0.6680594315 | CD144: 0.3498465564 | CE144: 0.6571182346 | CF144: 0.9722607723 | CG144: 0.8568415351 | CH144: 0.9010331957 | CI144: 0.9183743664 | CJ144: 0.05379400168 | CK144: 0.5121246115 | CL144: 0.7595847751 | CM144: 0.3048248196 | CN144: 0.2145476312 | CO144: 0.5029611642 | CP144: 0.9162725177 | CQ144: 0.175136603 | CR144: 0.18399105 | CS144: 0.6992428529 | CT144: 0.1429422807 | CU144: 0.2304850777 | CV144: 0.8280276671 | CW144: 0.5465592195
A145: 16 | B145: 0.2928283116 | C145: 0.4517021481 | D145: 0.1625260415 | E145: 0.2793414287 | F145: 0.07909916416 | G145: 0.7246695918 | H145: 0.2486814233 | I145: 0.00392028705 | J145: 0.05080524977 | K145: 0.01358126713 | L145: 0.8349190291 | M145: 0.8454906408 | N145: 0.2203294716 | O145: 0.8182831882 | P145: 0.61039308 | Q145: 0.1164428368 | R145: 0.5738177262 | S145: 0.7979069189 | T145: 0.9114715263 | U145: 0.1626508381 | V145: 0.2108346034 | W145: 0.8964693861 | X145: 0.5655217575 | Y145: 0.6930059072 | Z145: 0.06011853178 | AA145: 0.2959328593 | AB145: 0.2677510491 | AC145: 0.2550640097 | AD145: 0.6968566489 | AE145: 0.4837451063 | AF145: 0.2247893408 | AG145: 0.800404338 | AH145: 0.2796272595 | AI145: 0.6575966534 | AJ145: 0.9072566531 | AK145: 0.3464498051 | AL145: 0.6953153867 | AM145: 0.06361750261 | AN145: 0.1432583413 | AO145: 0.3053267337 | AP145: 0.4114935174 | AQ145: 0.5564865907 | AR145: 0.3314349455 | AS145: 0.7754654782 | AT145: 0.4765624689 | AU145: 0.1358577165 | AV145: 0.3220704236 | AW145: 0.005789222633 | AX145: 0.0456374048 | AY145: 0.6472656786 | AZ145: 0.03639110018 | BA145: 0.8794483744 | BB145: 0.9102850396 | BC145: 0.6217757555 | BD145: 0.2971938097 | BE145: 0.275397319 | BF145: 0.7154117403 | BG145: 0.8667151743 | BH145: 0.5113460452 | BI145: 0.254008492 | BJ145: 0.6652914276 | BK145: 0.8908976123 | BL145: 0.2248315107 | BM145: 0.7985024311 | BN145: 0.8445870886 | BO145: 0.6265407429 | BP145: 0.4908369816 | BQ145: 0.3648959156 | BR145: 0.4006057834 | BS145: 0.194421058 | BT145: 0.3181935025 | BU145: 0.2566967384 | BV145: 0.5015728803 | BW145: 0.3947315831 | BX145: 0.1994104438 | BY145: 0.631563027 | BZ145: 0.3841926702 | CA145: 0.2926312856 | CB145: 0.9582343421 | CC145: 0.2793285465 | CD145: 0.2676362762 | CE145: 0.095309828 | CF145: 0.9931557615 | CG145: 0.3413444142 | CH145: 0.6051506889 | CI145: 0.1560453242 | CJ145: 0.5401547188 | CK145: 0.7635442216 | CL145: 0.7451907331 | CM145: 0.9536050158 | CN145: 0.5852274644 | CO145: 0.6251996834 | CP145: 0.5735728021 | CQ145: 0.7901643442 | CR145: 0.4773320349 | CS145: 0.8189380711 | CT145: 0.2933651203 | CU145: 0.2228360997 | CV145: 0.1009779587 | CW145: 0.04453318278
A146: 17 | B146: 0.8813630292 | C146: 0.4959172375 | D146: 0.01611492644 | E146: 0.4248966041 | F146: 0.8320949339 | G146: 0.4485185027 | H146: 0.5442514 | I146: 0.8018900942 | J146: 0.5503474101 | K146: 0.2208885577 | L146: 0.5397707875 | M146: 0.2986702224 | N146: 0.4121860465 | O146: 0.8358772482 | P146: 0.4174571702 | Q146: 0.4693402639 | R146: 0.2459055208 | S146: 0.2053120217 | T146: 0.6143139682 | U146: 0.7128591555 | V146: 0.9163842065 | W146: 0.6224609629 | X146: 0.2060982804 | Y146: 0.693134593 | Z146: 0.6744776998 | AA146: 0.03217485673 | AB146: 0.1228486842 | AC146: 0.08430316977 | AD146: 0.302848064 | AE146: 0.5414463778 | AF146: 0.2894038446 | AG146: 0.3870925229 | AH146: 0.2198861613 | AI146: 0.7338990077 | AJ146: 0.08916610163 | AK146: 0.4731122221 | AL146: 0.5224079556 | AM146: 0.5780046078 | AN146: 0.9053528095 | AO146: 0.3616156236 | AP146: 0.05609838128 | AQ146: 0.1779183556 | AR146: 0.9110637819 | AS146: 0.1550183837 | AT146: 0.5334995482 | AU146: 0.8961595584 | AV146: 0.5937564697 | AW146: 0.6780794906 | AX146: 0.5521391609 | AY146: 0.4447620604 | AZ146: 0.7161766583 | BA146: 0.6128446234 | BB146: 0.6879726049 | BC146: 0.4179215999 | BD146: 0.7256898266 | BE146: 0.4569930296 | BF146: 0.9787021877 | BG146: 0.6803462321 | BH146: 0.02790223215 | BI146: 0.5168646639 | BJ146: 0.4667454589 | BK146: 0.3810988822 | BL146: 0.8594855481 | BM146: 0.3123286529 | BN146: 0.1819685763 | BO146: 0.5540544147 | BP146: 0.6161405353 | BQ146: 0.2929849754 | BR146: 0.2619218741 | BS146: 0.2186637869 | BT146: 0.1108194629 | BU146: 0.03103134753 | BV146: 0.1040841275 | BW146: 0.8501615746 | BX146: 0.537227155 | BY146: 0.7621957007 | BZ146: 0.2912586283 | CA146: 0.7883250852 | CB146: 0.9412003015 | CC146: 0.4470590009 | CD146: 0.3660821651 | CE146: 0.5848466701 | CF146: 0.08360829815 | CG146: 0.7691759355 | CH146: 0.93040985 | CI146: 0.953547686 | CJ146: 0.3619097858 | CK146: 0.3613986833 | CL146: 0.4603309788 | CM146: 0.2424109307 | CN146: 0.7135271583 | CO146: 0.8173842177 | CP146: 0.6109837891 | CQ146: 0.4239513806 | CR146: 0.07643838962 | CS146: 0.8169279655 | CT146: 0.3149193503 | CU146: 0.4986653371 | CV146: 0.484904937 | CW146: 0.2444374204
A147: 18 | B147: 0.9585793442 | C147: 0.184309693 | D147: 0.6948763701 | E147: 0.5222320774 | F147: 0.5139286182 | G147: 0.009119519233 | H147: 0.3593650619 | I147: 0.2108651072 | J147: 0.5957805111 | K147: 0.9208562103 | L147: 0.6805888695 | M147: 0.7740974004 | N147: 0.4770819722 | O147: 0.8180463659 | P147: 0.9109951302 | Q147: 0.3085778809 | R147: 0.0004864400081 | S147: 0.09852058827 | T147: 0.4328469973 | U147: 0.08673173701 | V147: 0.6417653933 | W147: 0.546955367 | X147: 0.5801991474 | Y147: 0.904003059 | Z147: 0.1335856809 | AA147: 0.2485893904 | AB147: 0.3719302147 | AC147: 0.1429094528 | AD147: 0.4329138738 | AE147: 0.5443995067 | AF147: 0.01735266466 | AG147: 0.5904609538 | AH147: 0.05030779655 | AI147: 0.01192894756 | AJ147: 0.8051554332 | AK147: 0.04063698247 | AL147: 0.9333389718 | AM147: 0.6762023875 | AN147: 0.575128886 | AO147: 0.4317521501 | AP147: 0.4987367334 | AQ147: 0.4062850702 | AR147: 0.4544312198 | AS147: 0.6911310959 | AT147: 0.3539256497 | AU147: 0.8973756838 | AV147: 0.3230371992 | AW147: 0.3148508718 | AX147: 0.08313221803 | AY147: 0.4480632892 | AZ147: 0.6554029081 | BA147: 0.75925133 | BB147: 0.905918059 | BC147: 0.501201946 | BD147: 0.388783608 | BE147: 0.4311304896 | BF147: 0.9049639007 | BG147: 0.6211082272 | BH147: 0.0491243878 | BI147: 0.6610332379 | BJ147: 0.1632293586 | BK147: 0.4136611953 | BL147: 0.8699060318 | BM147: 0.2825818038 | BN147: 0.8035315334 | BO147: 0.08817190048 | BP147: 0.7264405531 | BQ147: 0.012415809 | BR147: 0.4071693278 | BS147: 0.2170975995 | BT147: 0.9648590905 | BU147: 0.7297629669 | BV147: 0.4239536481 | BW147: 0.8089560926 | BX147: 0.7108621251 | BY147: 0.7735200238 | BZ147: 0.7547310321 | CA147: 0.1642325271 | CB147: 0.4373140226 | CC147: 0.926304768 | CD147: 0.6958062088 | CE147: 0.4126745121 | CF147: 0.2687954423 | CG147: 0.9924454201 | CH147: 0.805379449 | CI147: 0.4668761084 | CJ147: 0.9621787557 | CK147: 0.2957649183 | CL147: 0.2820531625 | CM147: 0.9947953488 | CN147: 0.4808449378 | CO147: 0.6116001281 | CP147: 0.01160361823 | CQ147: 0.7034044943 | CR147: 0.6154934069 | CS147: 0.3292737508 | CT147: 0.9998114389 | CU147: 0.3415117852 | CV147: 0.2955476831 | CW147: 0.2487869057
A148: 19 | B148: 0.7064998173 | C148: 0.1530204668 | D148: 0.9273611051 | E148: 0.040383129 | F148: 0.4524950549 | G148: 0.6938101153 | H148: 0.7651009363 | I148: 0.4227434196 | J148: 0.6189721198 | K148: 0.7388215253 | L148: 0.2241527678 | M148: 0.8222434494 | N148: 0.6535166905 | O148: 0.6613386962 | P148: 0.1826723932 | Q148: 0.6096021575 | R148: 0.2477294641 | S148: 0.2638894153 | T148: 0.1690563685 | U148: 0.004442890408 | V148: 0.1027257984 | W148: 0.2472233484 | X148: 0.4974313525 | Y148: 0.294061366 | Z148: 0.9852382061 | AA148: 0.4964685459 | AB148: 0.06525452347 | AC148: 0.1149526657 | AD148: 0.3294910076 | AE148: 0.7611268126 | AF148: 0.6585695791 | AG148: 0.4990137573 | AH148: 0.1892841196 | AI148: 0.5001305694 | AJ148: 0.5686460518 | AK148: 0.2038085147 | AL148: 0.9653348387 | AM148: 0.2548993301 | AN148: 0.5819493425 | AO148: 0.7291188958 | AP148: 0.1530329842 | AQ148: 0.6222729431 | AR148: 0.1813950158 | AS148: 0.398234248 | AT148: 0.005410846693 | AU148: 0.888330031 | AV148: 0.600107229 | AW148: 0.07960047687 | AX148: 0.618102494 | AY148: 0.7320639678 | AZ148: 0.2635199076 | BA148: 0.7326419491 | BB148: 0.7724407579 | BC148: 0.3694791872 | BD148: 0.1470622528 | BE148: 0.8459108167 | BF148: 0.6252022083 | BG148: 0.6470370655 | BH148: 0.4662609352 | BI148: 0.2821738955 | BJ148: 0.5597883265 | BK148: 0.8559632968 | BL148: 0.5228021065 | BM148: 0.5393927729 | BN148: 0.07392568888 | BO148: 0.01804606037 | BP148: 0.4829888399 | BQ148: 0.271859763 | BR148: 0.2701820209 | BS148: 0.5171445536 | BT148: 0.001202986571 | BU148: 0.4344928091 | BV148: 0.8700244403 | BW148: 0.5246417139 | BX148: 0.4304281952 | BY148: 0.7320016109 | BZ148: 0.5683516116 | CA148: 0.9224207776 | CB148: 0.59675147 | CC148: 0.9527063162 | CD148: 0.3492607357 | CE148: 0.4853398741 | CF148: 0.9466311255 | CG148: 0.5786121751 | CH148: 0.2262200534 | CI148: 0.8758152968 | CJ148: 0.01635844899 | CK148: 0.3373489428 | CL148: 0.2022593312 | CM148: 0.4204294703 | CN148: 0.04412654384 | CO148: 0.7197549839 | CP148: 0.8168193026 | CQ148: 0.5253848278 | CR148: 0.4076506153 | CS148: 0.09432273936 | CT148: 0.03501269474 | CU148: 0.9021787369 | CV148: 0.4463607639 | CW148: 0.2554939154
A149: 20 | B149: 0.4341982268 | C149: 0.778502391 | D149: 0.605711046 | E149: 0.9342850758 | F149: 0.9787849231 | G149: 0.6208208467 | H149: 0.9068981539 | I149: 0.8828594559 | J149: 0.6531438832 | K149: 0.6117180191 | L149: 0.8990919691 | M149: 0.5727015262 | N149: 0.3802520298 | O149: 0.946252677 | P149: 0.3950674607 | Q149: 0.8317601462 | R149: 0.1567258661 | S149: 0.5352827546 | T149: 0.09212365565 | U149: 0.9358280636 | V149: 0.1477327696 | W149: 0.135830073 | X149: 0.7933177084 | Y149: 0.3520016592 | Z149: 0.8997354421 | AA149: 0.2934780863 | AB149: 0.5804498424 | AC149: 0.3118608537 | AD149: 0.9497186579 | AE149: 0.70319953 | AF149: 0.7746472935 | AG149: 0.2310557949 | AH149: 0.4409988854 | AI149: 0.8033669092 | AJ149: 0.7696262056 | AK149: 0.9916138436 | AL149: 0.5137136343 | AM149: 0.21926637 | AN149: 0.524579504 | AO149: 0.2800013036 | AP149: 0.308316004 | AQ149: 0.05727958322 | AR149: 0.2837002668 | AS149: 0.5925324302 | AT149: 0.8049072332 | AU149: 0.4117911894 | AV149: 0.8072493281 | AW149: 0.8923625389 | AX149: 0.6674076013 | AY149: 0.8360917447 | AZ149: 0.8917751555 | BA149: 0.8585747673 | BB149: 0.9748536467 | BC149: 0.2647517477 | BD149: 0.6067451665 | BE149: 0.7161124732 | BF149: 0.8088068372 | BG149: 0.5810643103 | BH149: 0.591804701 | BI149: 0.1751104267 | BJ149: 0.760606552 | BK149: 0.4568941461 | BL149: 0.3021266661 | BM149: 0.7197731431 | BN149: 0.6046160057 | BO149: 0.2762418435 | BP149: 0.8066629906 | BQ149: 0.3467790682 | BR149: 0.6284619541 | BS149: 0.867569867 | BT149: 0.4779070309 | BU149: 0.3910750459 | BV149: 0.6720271148 | BW149: 0.5763785286 | BX149: 0.6582666573 | BY149: 0.7654829159 | BZ149: 0.296462943 | CA149: 0.2167349393 | CB149: 0.2315219568 | CC149: 0.8873094306 | CD149: 0.6624404122 | CE149: 0.6688046859 | CF149: 0.4489090869 | CG149: 0.03223773745 | CH149: 0.4188231771 | CI149: 0.3166598233 | CJ149: 0.1586807024 | CK149: 0.9125659002 | CL149: 0.6244792239 | CM149: 0.1105852766 | CN149: 0.7551546947 | CO149: 0.8890440333 | CP149: 0.5894145013 | CQ149: 0.789440344 | CR149: 0.8869734499 | CS149: 0.3025930389 | CT149: 0.5016772448 | CU149: 0.3088194999 | CV149: 0.2384231826 | CW149: 0.395541175
A150: 21 | B150: 0.8711142349 | C150: 0.7433276024 | D150: 0.7807539482 | E150: 0.7397721187 | F150: 0.9445437088 | G150: 0.7402558587 | H150: 0.9075383094 | I150: 0.586460703 | J150: 0.0590525608 | K150: 0.3501064939 | L150: 0.8203586237 | M150: 0.4354940757 | N150: 0.9994957241 | O150: 0.05844939816 | P150: 0.6101481335 | Q150: 0.982766489 | R150: 0.7808521735 | S150: 0.6690323783 | T150: 0.8812329654 | U150: 0.8938852646 | V150: 0.1264690516 | W150: 0.5516873255 | X150: 0.1048014113 | Y150: 0.7595138196 | Z150: 0.6778186439 | AA150: 0.7165297181 | AB150: 0.4403240831 | AC150: 0.8841685376 | AD150: 0.3298065496 | AE150: 0.9646187529 | AF150: 0.2474745531 | AG150: 0.6830251252 | AH150: 0.99701276 | AI150: 0.2755398386 | AJ150: 0.8213033314 | AK150: 0.4648018144 | AL150: 0.7495560115 | AM150: 0.1563704636 | AN150: 0.4959877288 | AO150: 0.2122007132 | AP150: 0.04694631126 | AQ150: 0.6560186965 | AR150: 0.08294046666 | AS150: 0.0989910568 | AT150: 0.5909211405 | AU150: 0.2605748744 | AV150: 0.2642737172 | AW150: 0.3192947269 | AX150: 0.9651527909 | AY150: 0.3042452914 | AZ150: 0.4752206285 | BA150: 0.2381351997 | BB150: 0.9384252981 | BC150: 0.2532754316 | BD150: 0.1581006734 | BE150: 0.0320298795 | BF150: 0.7856153593 | BG150: 0.9845315814 | BH150: 0.3329896919 | BI150: 0.04951067854 | BJ150: 0.6301281905 | BK150: 0.4246672357 | BL150: 0.2443597141 | BM150: 0.3831274557 | BN150: 0.01487173447 | BO150: 0.05078683998 | BP150: 0.9348818288 | BQ150: 0.7537755382 | BR150: 0.530990671 | BS150: 0.1002944563 | BT150: 0.8198417801 | BU150: 0.8409279085 | BV150: 0.2316311814 | BW150: 0.0318497866 | BX150: 0.2224202291 | BY150: 0.2180020002 | BZ150: 0.1448647345 | CA150: 0.5789024025 | CB150: 0.1967065516 | CC150: 0.1199805587 | CD150: 0.9034198853 | CE150: 0.4837696067 | CF150: 0.7352770214 | CG150: 0.5653618972 | CH150: 0.6353903082 | CI150: 0.07457974518 | CJ150: 0.2104388538 | CK150: 0.7093729458 | CL150: 0.000170295414 | CM150: 0.5221183039 | CN150: 0.353712142 | CO150: 0.03095541683 | CP150: 0.9629968921 | CQ150: 0.1522457449 | CR150: 0.4961304448 | CS150: 0.8548648955 | CT150: 0.6077818656 | CU150: 0.4798149574 | CV150: 0.7797704249 | CW150: 0.09937875394
A151: 22 | B151: 0.6899986391 | C151: 0.8551202148 | D151: 0.01022043159 | E151: 0.08252531486 | F151: 0.2896974642 | G151: 0.6263506143 | H151: 0.8393536922 | I151: 0.1217586528 | J151: 0.7184003858 | K151: 0.853018652 | L151: 0.3903634911 | M151: 0.3519063083 | N151: 0.4146863158 | O151: 0.1184118544 | P151: 0.03284116632 | Q151: 0.6995640996 | R151: 0.3509679408 | S151: 0.5367827925 | T151: 0.6824722352 | U151: 0.1746906086 | V151: 0.4256310286 | W151: 0.4318354835 | X151: 0.942236113 | Y151: 0.9610031846 | Z151: 0.8275778348 | AA151: 0.03712394358 | AB151: 0.709128487 | AC151: 0.5085253248 | AD151: 0.6486599799 | AE151: 0.656429986 | AF151: 0.03516604556 | AG151: 0.131709478 | AH151: 0.4465882365 | AI151: 0.5088781505 | AJ151: 0.3563752567 | AK151: 0.2487234704 | AL151: 0.8901156121 | AM151: 0.1028542158 | AN151: 0.06482748164 | AO151: 0.1261885898 | AP151: 0.2017616818 | AQ151: 0.2452370446 | AR151: 0.5036550088 | AS151: 0.5666012476 | AT151: 0.7054480093 | AU151: 0.993510686 | AV151: 0.4124889304 | AW151: 0.7758483042 | AX151: 0.04333709809 | AY151: 0.299271255 | AZ151: 0.9112510153 | BA151: 0.6780187023 | BB151: 0.973234241 | BC151: 0.5212586634 | BD151: 0.5631879058 | BE151: 0.8436866982 | BF151: 0.09504256979 | BG151: 0.4691825269 | BH151: 0.8526654176 | BI151: 0.2009105425 | BJ151: 0.7742385641 | BK151: 0.7989613199 | BL151: 0.6767526657 | BM151: 0.7603539415 | BN151: 0.2332507904 | BO151: 0.7331491981 | BP151: 0.9353888605 | BQ151: 0.1492116971 | BR151: 0.3500411384 | BS151: 0.8401911754 | BT151: 0.62100376 | BU151: 0.1005411637 | BV151: 0.3772517988 | BW151: 0.5078654583 | BX151: 0.06562630134 | BY151: 0.9518134187 | BZ151: 0.253607655 | CA151: 0.8120336486 | CB151: 0.3533597782 | CC151: 0.3842810489 | CD151: 0.7274365643 | CE151: 0.1100633689 | CF151: 0.1413793631 | CG151: 0.5286675944 | CH151: 0.1163107102 | CI151: 0.07905835156 | CJ151: 0.130470868 | CK151: 0.6851469685 | CL151: 0.326403041 | CM151: 0.3407407155 | CN151: 0.9771686761 | CO151: 0.7783856258 | CP151: 0.8546691861 | CQ151: 0.8877078776 | CR151: 0.3740833542 | CS151: 0.498394135 | CT151: 0.09798636002 | CU151: 0.9133737831 | CV151: 0.5701685018 | CW151: 0.4250935205
A153: Schedule | B153: 1 | C153: 2 | D153: 3 | E153: 4 | F153: 5 | G153: 6 | H153: 7 | I153: 8 | J153: 9 | K153: 10 | L153: 11 | M153: 12 | N153: 13 | O153: 14 | P153: 15 | Q153: 16 | R153: 17 | S153: 18 | T153: 19 | U153: 20 | V153: 21 | W153: 22 | X153: 23 | Y153: 24 | Z153: 25 | AA153: 26 | AB153: 27 | AC153: 28 | AD153: 29 | AE153: 30 | AF153: 31 | AG153: 32 | AH153: 33 | AI153: 34 | AJ153: 35 | AK153: 36 | AL153: 37 | AM153: 38 | AN153: 39 | AO153: 40 | AP153: 41 | AQ153: 42 | AR153: 43 | AS153: 44 | AT153: 45 | AU153: 46 | AV153: 47 | AW153: 48 | AX153: 49 | AY153: 50 | AZ153: 51 | BA153: 52 | BB153: 53 | BC153: 54 | BD153: 55 | BE153: 56 | BF153: 57 | BG153: 58 | BH153: 59 | BI153: 60 | BJ153: 61 | BK153: 62 | BL153: 63 | BM153: 64 | BN153: 65 | BO153: 66 | BP153: 67 | BQ153: 68 | BR153: 69 | BS153: 70 | BT153: 71 | BU153: 72 | BV153: 73 | BW153: 74 | BX153: 75 | BY153: 76 | BZ153: 77 | CA153: 78 | CB153: 79 | CC153: 80 | CD153: 81 | CE153: 82 | CF153: 83 | CG153: 84 | CH153: 85 | CI153: 86 | CJ153: 87 | CK153: 88 | CL153: 89 | CM153: 90 | CN153: 91 | CO153: 92 | CP153: 93 | CQ153: 94 | CR153: 95 | CS153: 96 | CT153: 97 | CU153: 98 | CV153: 99 | CW153: 100
A154: 1 | B154: OV | C154: OV | D154: OV | E154: OV | F154: OV | G154: OV | H154: OV | I154: OV | J154: OV | K154: OV | L154: OV | M154: OV | N154: OV | O154: OV | P154: OV | Q154: OV | R154: OV | S154: OV | T154: OV | U154: OV | V154: OV | W154: OV | X154: OV | Y154: OV | Z154: OV | AA154: OV | AB154: OV | AC154: OV | AD154: OV | AE154: OV | AF154: OV | AG154: OV | AH154: OV | AI154: OV | AJ154: OV | AK154: OV | AL154: OV | AM154: OV | AN154: OV | AO154: OV | AP154: OV | AQ154: OV | AR154: OV | AS154: OV | AT154: OV | AU154: OV | AV154: OV | AW154: OV | AX154: OV | AY154: OV | AZ154: OV | BA154: OV | BB154: OV | BC154: OV | BD154: OV | BE154: OV | BF154: OV | BG154: OV | BH154: OV | BI154: OV | BJ154: OV | BK154: OV | BL154: OV | BM154: OV | BN154: OV | BO154: OV | BP154: OV | BQ154: OV | BR154: OV | BS154: OV | BT154: OV | BU154: OV | BV154: OV | BW154: OV | BX154: OV | BY154: OV | BZ154: OV | CA154: OV | CB154: OV | CC154: OV | CD154: OV | CE154: OV | CF154: OV | CG154: OV | CH154: OV | CI154: OV | CJ154: OV | CK154: OV | CL154: OV | CM154: OV | CN154: OV | CO154: OV | CP154: OV | CQ154: OV | CR154: OV | CS154: OV | CT154: OV | CU154: OV | CV154: OV | CW154: OV
A155: 2 | B155: WCC | C155: WCC | D155: WCC | E155: WCC | F155: WCC | G155: WCC | H155: WCC | I155: WCC | J155: WCC | K155: WCC | L155: WCC | M155: WCC | N155: WCC | O155: WCC | P155: WCC | Q155: WCC | R155: WCC | S155: WCC | T155: WCC | U155: WCC | V155: WCC | W155: WCC | X155: WCC | Y155: WCC | Z155: WCC | AA155: WCC | AB155: WCC | AC155: WCC | AD155: WCC | AE155: WCC | AF155: WCC | AG155: WCC | AH155: WCC | AI155: WCC | AJ155: WCC | AK155: WCC | AL155: WCC | AM155: WCC | AN155: WCC | AO155: WCC | AP155: WCC | AQ155: WCC | AR155: WCC | AS155: WCC | AT155: WCC | AU155: WCC | AV155: WCC | AW155: WCC | AX155: WCC | AY155: WCC | AZ155: WCC | BA155: WCC | BB155: WCC | BC155: WCC | BD155: WCC | BE155: WCC | BF155: WCC | BG155: WCC | BH155: WCC | BI155: WCC | BJ155: WCC | BK155: WCC | BL155: WCC | BM155: WCC | BN155: WCC | BO155: WCC | BP155: WCC | BQ155: WCC | BR155: WCC | BS155: WCC | BT155: WCC | BU155: WCC | BV155: WCC | BW155: WCC | BX155: WCC | BY155: WCC | BZ155: WCC | CA155: WCC | CB155: WCC | CC155: WCC | CD155: WCC | CE155: WCC | CF155: WCC | CG155: WCC | CH155: WCC | CI155: WCC | CJ155: WCC | CK155: WCC | CL155: WCC | CM155: WCC | CN155: WCC | CO155: WCC | CP155: WCC | CQ155: WCC | CR155: WCC | CS155: WCC | CT155: WCC | CU155: WCC | CV155: WCC | CW155: WCC
A156: 3 | B156: OV | C156: OV | D156: OV | E156: OV | F156: OV | G156: OV | H156: OV | I156: OV | J156: OV | K156: OV | L156: OV | M156: OV | N156: OV | O156: OV | P156: OV | Q156: OV | R156: OV | S156: OV | T156: OV | U156: OV | V156: OV | W156: OV | X156: OV | Y156: OV | Z156: OV | AA156: OV | AB156: OV | AC156: OV | AD156: OV | AE156: OV | AF156: OV | AG156: OV | AH156: OV | AI156: OV | AJ156: OV | AK156: OV | AL156: OV | AM156: OV | AN156: OV | AO156: OV | AP156: OV | AQ156: OV | AR156: OV | AS156: OV | AT156: OV | AU156: OV | AV156: OV | AW156: OV | AX156: OV | AY156: OV | AZ156: OV | BA156: OV | BB156: OV | BC156: OV | BD156: OV | BE156: OV | BF156: OV | BG156: OV | BH156: OV | BI156: OV | BJ156: OV | BK156: OV | BL156: OV | BM156: OV | BN156: OV | BO156: OV | BP156: OV | BQ156: OV | BR156: OV | BS156: OV | BT156: OV | BU156: OV | BV156: OV | BW156: OV | BX156: OV | BY156: OV | BZ156: OV | CA156: OV | CB156: OV | CC156: OV | CD156: OV | CE156: OV | CF156: OV | CG156: OV | CH156: OV | CI156: OV | CJ156: OV | CK156: OV | CL156: OV | CM156: OV | CN156: OV | CO156: OV | CP156: OV | CQ156: OV | CR156: OV | CS156: OV | CT156: OV | CU156: OV | CV156: OV | CW156: OV
A157: 4 | B157: FU | C157: FU | D157: FU | E157: FU | F157: FU | G157: FU | H157: FU | I157: FU | J157: FU | K157: FU | L157: FU | M157: FU | N157: FU | O157: FU | P157: FU | Q157: FU | R157: FU | S157: FU | T157: FU | U157: FU | V157: FU | W157: FU | X157: FU | Y157: FU | Z157: FU | AA157: FU | AB157: FU | AC157: FU | AD157: FU | AE157: FU | AF157: FU | AG157: FU | AH157: FU | AI157: FU | AJ157: FU | AK157: FU | AL157: FU | AM157: FU | AN157: FU | AO157: FU | AP157: FU | AQ157: FU | AR157: FU | AS157: FU | AT157: FU | AU157: FU | AV157: FU | AW157: FU | AX157: FU | AY157: FU | AZ157: FU | BA157: FU | BB157: FU | BC157: FU | BD157: FU | BE157: FU | BF157: FU | BG157: FU | BH157: FU | BI157: FU | BJ157: FU | BK157: FU | BL157: FU | BM157: FU | BN157: FU | BO157: FU | BP157: FU | BQ157: FU | BR157: FU | BS157: FU | BT157: FU | BU157: FU | BV157: FU | BW157: FU | BX157: FU | BY157: FU | BZ157: FU | CA157: FU | CB157: FU | CC157: FU | CD157: FU | CE157: FU | CF157: FU | CG157: FU | CH157: FU | CI157: FU | CJ157: FU | CK157: FU | CL157: FU | CM157: FU | CN157: FU | CO157: FU | CP157: FU | CQ157: FU | CR157: FU | CS157: FU | CT157: FU | CU157: FU | CV157: FU | CW157: FU
A158: 5 | B158: OV | C158: OV | D158: OV | E158: OV | F158: OV | G158: OV | H158: OV | I158: OV | J158: OV | K158: OV | L158: OV | M158: OV | N158: OV | O158: OV | P158: OV | Q158: OV | R158: OV | S158: OV | T158: OV | U158: OV | V158: OV | W158: OV | X158: OV | Y158: OV | Z158: OV | AA158: OV | AB158: OV | AC158: OV | AD158: OV | AE158: OV | AF158: OV | AG158: OV | AH158: OV | AI158: OV | AJ158: OV | AK158: OV | AL158: OV | AM158: OV | AN158: OV | AO158: OV | AP158: OV | AQ158: OV | AR158: OV | AS158: OV | AT158: OV | AU158: OV | AV158: OV | AW158: OV | AX158: OV | AY158: OV | AZ158: OV | BA158: OV | BB158: OV | BC158: OV | BD158: OV | BE158: OV | BF158: OV | BG158: OV | BH158: OV | BI158: OV | BJ158: OV | BK158: OV | BL158: OV | BM158: OV | BN158: OV | BO158: OV | BP158: OV | BQ158: OV | BR158: OV | BS158: OV | BT158: OV | BU158: OV | BV158: OV | BW158: OV | BX158: OV | BY158: OV | BZ158: OV | CA158: OV | CB158: OV | CC158: OV | CD158: OV | CE158: OV | CF158: OV | CG158: OV | CH158: OV | CI158: OV | CJ158: OV | CK158: OV | CL158: OV | CM158: OV | CN158: OV | CO158: OV | CP158: OV | CQ158: OV | CR158: OV | CS158: OV | CT158: OV | CU158: OV | CV158: OV | CW158: OV
A159: 6 | B159: NP | C159: NP | D159: NP | E159: NP | F159: NP | G159: NP | H159: NP | I159: NP | J159: NP | K159: NP | L159: NP | M159: NP | N159: NP | O159: NP | P159: NP | Q159: NP | R159: NP | S159: NP | T159: NP | U159: NP | V159: NP | W159: NP | X159: NP | Y159: NP | Z159: NP | AA159: NP | AB159: NP | AC159: NP | AD159: NP | AE159: NP | AF159: NP | AG159: NP | AH159: NP | AI159: NP | AJ159: NP | AK159: NP | AL159: NP | AM159: NP | AN159: NP | AO159: NP | AP159: NP | AQ159: NP | AR159: NP | AS159: NP | AT159: NP | AU159: NP | AV159: NP | AW159: NP | AX159: NP | AY159: NP | AZ159: NP | BA159: NP | BB159: NP | BC159: NP | BD159: NP | BE159: NP | BF159: NP | BG159: NP | BH159: NP | BI159: NP | BJ159: NP | BK159: NP | BL159: NP | BM159: NP | BN159: NP | BO159: NP | BP159: NP | BQ159: NP | BR159: NP | BS159: NP | BT159: NP | BU159: NP | BV159: NP | BW159: NP | BX159: NP | BY159: NP | BZ159: NP | CA159: NP | CB159: NP | CC159: NP | CD159: NP | CE159: NP | CF159: NP | CG159: NP | CH159: NP | CI159: NP | CJ159: NP | CK159: NP | CL159: NP | CM159: NP | CN159: NP | CO159: NP | CP159: NP | CQ159: NP | CR159: NP | CS159: NP | CT159: NP | CU159: NP | CV159: NP | CW159: NP
A160: 7 | B160: OV | C160: OV | D160: OV | E160: OV | F160: OV | G160: OV | H160: OV | I160: OV | J160: OV | K160: OV | L160: OV | M160: OV | N160: OV | O160: OV | P160: OV | Q160: OV | R160: OV | S160: OV | T160: OV | U160: OV | V160: OV | W160: OV | X160: OV | Y160: OV | Z160: OV | AA160: OV | AB160: OV | AC160: OV | AD160: OV | AE160: OV | AF160: OV | AG160: OV | AH160: OV | AI160: OV | AJ160: OV | AK160: OV | AL160: OV | AM160: OV | AN160: OV | AO160: OV | AP160: OV | AQ160: OV | AR160: OV | AS160: OV | AT160: OV | AU160: OV | AV160: OV | AW160: OV | AX160: OV | AY160: OV | AZ160: OV | BA160: OV | BB160: OV | BC160: OV | BD160: OV | BE160: OV | BF160: OV | BG160: OV | BH160: OV | BI160: OV | BJ160: OV | BK160: OV | BL160: OV | BM160: OV | BN160: OV | BO160: OV | BP160: OV | BQ160: OV | BR160: OV | BS160: OV | BT160: OV | BU160: OV | BV160: OV | BW160: OV | BX160: OV | BY160: OV | BZ160: OV | CA160: OV | CB160: OV | CC160: OV | CD160: OV | CE160: OV | CF160: OV | CG160: OV | CH160: OV | CI160: OV | CJ160: OV | CK160: OV | CL160: OV | CM160: OV | CN160: OV | CO160: OV | CP160: OV | CQ160: OV | CR160: OV | CS160: OV | CT160: OV | CU160: OV | CV160: OV | CW160: OV
A161: 8 | B161: FU | C161: FU | D161: FU | E161: FU | F161: FU | G161: FU | H161: FU | I161: FU | J161: FU | K161: FU | L161: FU | M161: FU | N161: FU | O161: FU | P161: FU | Q161: FU | R161: FU | S161: FU | T161: FU | U161: FU | V161: FU | W161: FU | X161: FU | Y161: FU | Z161: FU | AA161: FU | AB161: FU | AC161: FU | AD161: FU | AE161: FU | AF161: FU | AG161: FU | AH161: FU | AI161: FU | AJ161: FU | AK161: FU | AL161: FU | AM161: FU | AN161: FU | AO161: FU | AP161: FU | AQ161: FU | AR161: FU | AS161: FU | AT161: FU | AU161: FU | AV161: FU | AW161: FU | AX161: FU | AY161: FU | AZ161: FU | BA161: FU | BB161: FU | BC161: FU | BD161: FU | BE161: FU | BF161: FU | BG161: FU | BH161: FU | BI161: FU | BJ161: FU | BK161: FU | BL161: FU | BM161: FU | BN161: FU | BO161: FU | BP161: FU | BQ161: FU | BR161: FU | BS161: FU | BT161: FU | BU161: FU | BV161: FU | BW161: FU | BX161: FU | BY161: FU | BZ161: FU | CA161: FU | CB161: FU | CC161: FU | CD161: FU | CE161: FU | CF161: FU | CG161: FU | CH161: FU | CI161: FU | CJ161: FU | CK161: FU | CL161: FU | CM161: FU | CN161: FU | CO161: FU | CP161: FU | CQ161: FU | CR161: FU | CS161: FU | CT161: FU | CU161: FU | CV161: FU | CW161: FU
A162: 9 | B162: OV | C162: OV | D162: OV | E162: OV | F162: OV | G162: OV | H162: OV | I162: OV | J162: OV | K162: OV | L162: OV | M162: OV | N162: OV | O162: OV | P162: OV | Q162: OV | R162: OV | S162: OV | T162: OV | U162: OV | V162: OV | W162: OV | X162: OV | Y162: OV | Z162: OV | AA162: OV | AB162: OV | AC162: OV | AD162: OV | AE162: OV | AF162: OV | AG162: OV | AH162: OV | AI162: OV | AJ162: OV | AK162: OV | AL162: OV | AM162: OV | AN162: OV | AO162: OV | AP162: OV | AQ162: OV | AR162: OV | AS162: OV | AT162: OV | AU162: OV | AV162: OV | AW162: OV | AX162: OV | AY162: OV | AZ162: OV | BA162: OV | BB162: OV | BC162: OV | BD162: OV | BE162: OV | BF162: OV | BG162: OV | BH162: OV | BI162: OV | BJ162: OV | BK162: OV | BL162: OV | BM162: OV | BN162: OV | BO162: OV | BP162: OV | BQ162: OV | BR162: OV | BS162: OV | BT162: OV | BU162: OV | BV162: OV | BW162: OV | BX162: OV | BY162: OV | BZ162: OV | CA162: OV | CB162: OV | CC162: OV | CD162: OV | CE162: OV | CF162: OV | CG162: OV | CH162: OV | CI162: OV | CJ162: OV | CK162: OV | CL162: OV | CM162: OV | CN162: OV | CO162: OV | CP162: OV | CQ162: OV | CR162: OV | CS162: OV | CT162: OV | CU162: OV | CV162: OV | CW162: OV
A163: 10 | B163: PE | C163: PE | D163: PE | E163: PE | F163: PE | G163: PE | H163: PE | I163: PE | J163: PE | K163: PE | L163: PE | M163: PE | N163: PE | O163: PE | P163: PE | Q163: PE | R163: PE | S163: PE | T163: PE | U163: PE | V163: PE | W163: PE | X163: PE | Y163: PE | Z163: PE | AA163: PE | AB163: PE | AC163: PE | AD163: PE | AE163: PE | AF163: PE | AG163: PE | AH163: PE | AI163: PE | AJ163: PE | AK163: PE | AL163: PE | AM163: PE | AN163: PE | AO163: PE | AP163: PE | AQ163: PE | AR163: PE | AS163: PE | AT163: PE | AU163: PE | AV163: PE | AW163: PE | AX163: PE | AY163: PE | AZ163: PE | BA163: PE | BB163: PE | BC163: PE | BD163: PE | BE163: PE | BF163: PE | BG163: PE | BH163: PE | BI163: PE | BJ163: PE | BK163: PE | BL163: PE | BM163: PE | BN163: PE | BO163: PE | BP163: PE | BQ163: PE | BR163: PE | BS163: PE | BT163: PE | BU163: PE | BV163: PE | BW163: PE | BX163: PE | BY163: PE | BZ163: PE | CA163: PE | CB163: PE | CC163: PE | CD163: PE | CE163: PE | CF163: PE | CG163: PE | CH163: PE | CI163: PE | CJ163: PE | CK163: PE | CL163: PE | CM163: PE | CN163: PE | CO163: PE | CP163: PE | CQ163: PE | CR163: PE | CS163: PE | CT163: PE | CU163: PE | CV163: PE | CW163: PE
A164: 11 | B164: OV | C164: OV | D164: OV | E164: OV | F164: OV | G164: OV | H164: OV | I164: OV | J164: OV | K164: OV | L164: OV | M164: OV | N164: OV | O164: OV | P164: OV | Q164: OV | R164: OV | S164: OV | T164: OV | U164: OV | V164: OV | W164: OV | X164: OV | Y164: OV | Z164: OV | AA164: OV | AB164: OV | AC164: OV | AD164: OV | AE164: OV | AF164: OV | AG164: OV | AH164: OV | AI164: OV | AJ164: OV | AK164: OV | AL164: OV | AM164: OV | AN164: OV | AO164: OV | AP164: OV | AQ164: OV | AR164: OV | AS164: OV | AT164: OV | AU164: OV | AV164: OV | AW164: OV | AX164: OV | AY164: OV | AZ164: OV | BA164: OV | BB164: OV | BC164: OV | BD164: OV | BE164: OV | BF164: OV | BG164: OV | BH164: OV | BI164: OV | BJ164: OV | BK164: OV | BL164: OV | BM164: OV | BN164: OV | BO164: OV | BP164: OV | BQ164: OV | BR164: OV | BS164: OV | BT164: OV | BU164: OV | BV164: OV | BW164: OV | BX164: OV | BY164: OV | BZ164: OV | CA164: OV | CB164: OV | CC164: OV | CD164: OV | CE164: OV | CF164: OV | CG164: OV | CH164: OV | CI164: OV | CJ164: OV | CK164: OV | CL164: OV | CM164: OV | CN164: OV | CO164: OV | CP164: OV | CQ164: OV | CR164: OV | CS164: OV | CT164: OV | CU164: OV | CV164: OV | CW164: OV
A165: 12 | B165: OV | C165: OV | D165: OV | E165: OV | F165: OV | G165: OV | H165: OV | I165: OV | J165: OV | K165: OV | L165: OV | M165: OV | N165: OV | O165: OV | P165: OV | Q165: OV | R165: OV | S165: OV | T165: OV | U165: OV | V165: OV | W165: OV | X165: OV | Y165: OV | Z165: OV | AA165: OV | AB165: OV | AC165: OV | AD165: OV | AE165: OV | AF165: OV | AG165: OV | AH165: OV | AI165: OV | AJ165: OV | AK165: OV | AL165: OV | AM165: OV | AN165: OV | AO165: OV | AP165: OV | AQ165: OV | AR165: OV | AS165: OV | AT165: OV | AU165: OV | AV165: OV | AW165: OV | AX165: OV | AY165: OV | AZ165: OV | BA165: OV | BB165: OV | BC165: OV | BD165: OV | BE165: OV | BF165: OV | BG165: OV | BH165: OV | BI165: OV | BJ165: OV | BK165: OV | BL165: OV | BM165: OV | BN165: OV | BO165: OV | BP165: OV | BQ165: OV | BR165: OV | BS165: OV | BT165: OV | BU165: OV | BV165: OV | BW165: OV | BX165: OV | BY165: OV | BZ165: OV | CA165: OV | CB165: OV | CC165: OV | CD165: OV | CE165: OV | CF165: OV | CG165: OV | CH165: OV | CI165: OV | CJ165: OV | CK165: OV | CL165: OV | CM165: OV | CN165: OV | CO165: OV | CP165: OV | CQ165: OV | CR165: OV | CS165: OV | CT165: OV | CU165: OV | CV165: OV | CW165: OV
A166: 13 | B166: WCC | C166: WCC | D166: WCC | E166: WCC | F166: WCC | G166: WCC | H166: WCC | I166: WCC | J166: WCC | K166: WCC | L166: WCC | M166: WCC | N166: WCC | O166: WCC | P166: WCC | Q166: WCC | R166: WCC | S166: WCC | T166: WCC | U166: WCC | V166: WCC | W166: WCC | X166: WCC | Y166: WCC | Z166: WCC | AA166: WCC | AB166: WCC | AC166: WCC | AD166: WCC | AE166: WCC | AF166: WCC | AG166: WCC | AH166: WCC | AI166: WCC | AJ166: WCC | AK166: WCC | AL166: WCC | AM166: WCC | AN166: WCC | AO166: WCC | AP166: WCC | AQ166: WCC | AR166: WCC | AS166: WCC | AT166: WCC | AU166: WCC | AV166: WCC | AW166: WCC | AX166: WCC | AY166: WCC | AZ166: WCC | BA166: WCC | BB166: WCC | BC166: WCC | BD166: WCC | BE166: WCC | BF166: WCC | BG166: WCC | BH166: WCC | BI166: WCC | BJ166: WCC | BK166: WCC | BL166: WCC | BM166: WCC | BN166: WCC | BO166: WCC | BP166: WCC | BQ166: WCC | BR166: WCC | BS166: WCC | BT166: WCC | BU166: WCC | BV166: WCC | BW166: WCC | BX166: WCC | BY166: WCC | BZ166: WCC | CA166: WCC | CB166: WCC | CC166: WCC | CD166: WCC | CE166: WCC | CF166: WCC | CG166: WCC | CH166: WCC | CI166: WCC | CJ166: WCC | CK166: WCC | CL166: WCC | CM166: WCC | CN166: WCC | CO166: WCC | CP166: WCC | CQ166: WCC | CR166: WCC | CS166: WCC | CT166: WCC | CU166: WCC | CV166: WCC | CW166: WCC
A167: 14 | B167: OV | C167: OV | D167: OV | E167: OV | F167: OV | G167: OV | H167: OV | I167: OV | J167: OV | K167: OV | L167: OV | M167: OV | N167: OV | O167: OV | P167: OV | Q167: OV | R167: OV | S167: OV | T167: OV | U167: OV | V167: OV | W167: OV | X167: OV | Y167: OV | Z167: OV | AA167: OV | AB167: OV | AC167: OV | AD167: OV | AE167: OV | AF167: OV | AG167: OV | AH167: OV | AI167: OV | AJ167: OV | AK167: OV | AL167: OV | AM167: OV | AN167: OV | AO167: OV | AP167: OV | AQ167: OV | AR167: OV | AS167: OV | AT167: OV | AU167: OV | AV167: OV | AW167: OV | AX167: OV | AY167: OV | AZ167: OV | BA167: OV | BB167: OV | BC167: OV | BD167: OV | BE167: OV | BF167: OV | BG167: OV | BH167: OV | BI167: OV | BJ167: OV | BK167: OV | BL167: OV | BM167: OV | BN167: OV | BO167: OV | BP167: OV | BQ167: OV | BR167: OV | BS167: OV | BT167: OV | BU167: OV | BV167: OV | BW167: OV | BX167: OV | BY167: OV | BZ167: OV | CA167: OV | CB167: OV | CC167: OV | CD167: OV | CE167: OV | CF167: OV | CG167: OV | CH167: OV | CI167: OV | CJ167: OV | CK167: OV | CL167: OV | CM167: OV | CN167: OV | CO167: OV | CP167: OV | CQ167: OV | CR167: OV | CS167: OV | CT167: OV | CU167: OV | CV167: OV | CW167: OV
A168: 15 | B168: FU | C168: FU | D168: FU | E168: FU | F168: FU | G168: FU | H168: FU | I168: FU | J168: FU | K168: FU | L168: FU | M168: FU | N168: FU | O168: FU | P168: FU | Q168: FU | R168: FU | S168: FU | T168: FU | U168: FU | V168: FU | W168: FU | X168: FU | Y168: FU | Z168: FU | AA168: FU | AB168: FU | AC168: FU | AD168: FU | AE168: FU | AF168: FU | AG168: FU | AH168: FU | AI168: FU | AJ168: FU | AK168: FU | AL168: FU | AM168: FU | AN168: FU | AO168: FU | AP168: FU | AQ168: FU | AR168: FU | AS168: FU | AT168: FU | AU168: FU | AV168: FU | AW168: FU | AX168: FU | AY168: FU | AZ168: FU | BA168: FU | BB168: FU | BC168: FU | BD168: FU | BE168: FU | BF168: FU | BG168: FU | BH168: FU | BI168: FU | BJ168: FU | BK168: FU | BL168: FU | BM168: FU | BN168: FU | BO168: FU | BP168: FU | BQ168: FU | BR168: FU | BS168: FU | BT168: FU | BU168: FU | BV168: FU | BW168: FU | BX168: FU | BY168: FU | BZ168: FU | CA168: FU | CB168: FU | CC168: FU | CD168: FU | CE168: FU | CF168: FU | CG168: FU | CH168: FU | CI168: FU | CJ168: FU | CK168: FU | CL168: FU | CM168: FU | CN168: FU | CO168: FU | CP168: FU | CQ168: FU | CR168: FU | CS168: FU | CT168: FU | CU168: FU | CV168: FU | CW168: FU
A169: 16 | B169: OV | C169: OV | D169: OV | E169: OV | F169: OV | G169: OV | H169: OV | I169: OV | J169: OV | K169: OV | L169: OV | M169: OV | N169: OV | O169: OV | P169: OV | Q169: OV | R169: OV | S169: OV | T169: OV | U169: OV | V169: OV | W169: OV | X169: OV | Y169: OV | Z169: OV | AA169: OV | AB169: OV | AC169: OV | AD169: OV | AE169: OV | AF169: OV | AG169: OV | AH169: OV | AI169: OV | AJ169: OV | AK169: OV | AL169: OV | AM169: OV | AN169: OV | AO169: OV | AP169: OV | AQ169: OV | AR169: OV | AS169: OV | AT169: OV | AU169: OV | AV169: OV | AW169: OV | AX169: OV | AY169: OV | AZ169: OV | BA169: OV | BB169: OV | BC169: OV | BD169: OV | BE169: OV | BF169: OV | BG169: OV | BH169: OV | BI169: OV | BJ169: OV | BK169: OV | BL169: OV | BM169: OV | BN169: OV | BO169: OV | BP169: OV | BQ169: OV | BR169: OV | BS169: OV | BT169: OV | BU169: OV | BV169: OV | BW169: OV | BX169: OV | BY169: OV | BZ169: OV | CA169: OV | CB169: OV | CC169: OV | CD169: OV | CE169: OV | CF169: OV | CG169: OV | CH169: OV | CI169: OV | CJ169: OV | CK169: OV | CL169: OV | CM169: OV | CN169: OV | CO169: OV | CP169: OV | CQ169: OV | CR169: OV | CS169: OV | CT169: OV | CU169: OV | CV169: OV | CW169: OV
A170: 17 | B170: NP | C170: NP | D170: NP | E170: NP | F170: NP | G170: NP | H170: NP | I170: NP | J170: NP | K170: NP | L170: NP | M170: NP | N170: NP | O170: NP | P170: NP | Q170: NP | R170: NP | S170: NP | T170: NP | U170: NP | V170: NP | W170: NP | X170: NP | Y170: NP | Z170: NP | AA170: NP | AB170: NP | AC170: NP | AD170: NP | AE170: NP | AF170: NP | AG170: NP | AH170: NP | AI170: NP | AJ170: NP | AK170: NP | AL170: NP | AM170: NP | AN170: NP | AO170: NP | AP170: NP | AQ170: NP | AR170: NP | AS170: NP | AT170: NP | AU170: NP | AV170: NP | AW170: NP | AX170: NP | AY170: NP | AZ170: NP | BA170: NP | BB170: NP | BC170: NP | BD170: NP | BE170: NP | BF170: NP | BG170: NP | BH170: NP | BI170: NP | BJ170: NP | BK170: NP | BL170: NP | BM170: NP | BN170: NP | BO170: NP | BP170: NP | BQ170: NP | BR170: NP | BS170: NP | BT170: NP | BU170: NP | BV170: NP | BW170: NP | BX170: NP | BY170: NP | BZ170: NP | CA170: NP | CB170: NP | CC170: NP | CD170: NP | CE170: NP | CF170: NP | CG170: NP | CH170: NP | CI170: NP | CJ170: NP | CK170: NP | CL170: NP | CM170: NP | CN170: NP | CO170: NP | CP170: NP | CQ170: NP | CR170: NP | CS170: NP | CT170: NP | CU170: NP | CV170: NP | CW170: NP
A171: 18 | B171: OV | C171: OV | D171: OV | E171: OV | F171: OV | G171: OV | H171: OV | I171: OV | J171: OV | K171: OV | L171: OV | M171: OV | N171: OV | O171: OV | P171: OV | Q171: OV | R171: OV | S171: OV | T171: OV | U171: OV | V171: OV | W171: OV | X171: OV | Y171: OV | Z171: OV | AA171: OV | AB171: OV | AC171: OV | AD171: OV | AE171: OV | AF171: OV | AG171: OV | AH171: OV | AI171: OV | AJ171: OV | AK171: OV | AL171: OV | AM171: OV | AN171: OV | AO171: OV | AP171: OV | AQ171: OV | AR171: OV | AS171: OV | AT171: OV | AU171: OV | AV171: OV | AW171: OV | AX171: OV | AY171: OV | AZ171: OV | BA171: OV | BB171: OV | BC171: OV | BD171: OV | BE171: OV | BF171: OV | BG171: OV | BH171: OV | BI171: OV | BJ171: OV | BK171: OV | BL171: OV | BM171: OV | BN171: OV | BO171: OV | BP171: OV | BQ171: OV | BR171: OV | BS171: OV | BT171: OV | BU171: OV | BV171: OV | BW171: OV | BX171: OV | BY171: OV | BZ171: OV | CA171: OV | CB171: OV | CC171: OV | CD171: OV | CE171: OV | CF171: OV | CG171: OV | CH171: OV | CI171: OV | CJ171: OV | CK171: OV | CL171: OV | CM171: OV | CN171: OV | CO171: OV | CP171: OV | CQ171: OV | CR171: OV | CS171: OV | CT171: OV | CU171: OV | CV171: OV | CW171: OV
A172: 19 | B172: ER/UC | C172: ER/UC | D172: ER/UC | E172: ER/UC | F172: ER/UC | G172: ER/UC | H172: ER/UC | I172: ER/UC | J172: ER/UC | K172: ER/UC | L172: ER/UC | M172: ER/UC | N172: ER/UC | O172: ER/UC | P172: ER/UC | Q172: ER/UC | R172: ER/UC | S172: ER/UC | T172: ER/UC | U172: ER/UC | V172: ER/UC | W172: ER/UC | X172: ER/UC | Y172: ER/UC | Z172: ER/UC | AA172: ER/UC | AB172: ER/UC | AC172: ER/UC | AD172: ER/UC | AE172: ER/UC | AF172: ER/UC | AG172: ER/UC | AH172: ER/UC | AI172: ER/UC | AJ172: ER/UC | AK172: ER/UC | AL172: ER/UC | AM172: ER/UC | AN172: ER/UC | AO172: ER/UC | AP172: ER/UC | AQ172: ER/UC | AR172: ER/UC | AS172: ER/UC | AT172: ER/UC | AU172: ER/UC | AV172: ER/UC | AW172: ER/UC | AX172: ER/UC | AY172: ER/UC | AZ172: ER/UC | BA172: ER/UC | BB172: ER/UC | BC172: ER/UC | BD172: ER/UC | BE172: ER/UC | BF172: ER/UC | BG172: ER/UC | BH172: ER/UC | BI172: ER/UC | BJ172: ER/UC | BK172: ER/UC | BL172: ER/UC | BM172: ER/UC | BN172: ER/UC | BO172: ER/UC | BP172: ER/UC | BQ172: ER/UC | BR172: ER/UC | BS172: ER/UC | BT172: ER/UC | BU172: ER/UC | BV172: ER/UC | BW172: ER/UC | BX172: ER/UC | BY172: ER/UC | BZ172: ER/UC | CA172: ER/UC | CB172: ER/UC | CC172: ER/UC | CD172: ER/UC | CE172: ER/UC | CF172: ER/UC | CG172: ER/UC | CH172: ER/UC | CI172: ER/UC | CJ172: ER/UC | CK172: ER/UC | CL172: ER/UC | CM172: ER/UC | CN172: ER/UC | CO172: ER/UC | CP172: ER/UC | CQ172: ER/UC | CR172: ER/UC | CS172: ER/UC | CT172: ER/UC | CU172: ER/UC | CV172: ER/UC | CW172: ER/UC
A173: 20 | B173: OV | C173: OV | D173: OV | E173: OV | F173: OV | G173: OV | H173: OV | I173: OV | J173: OV | K173: OV | L173: OV | M173: OV | N173: OV | O173: OV | P173: OV | Q173: OV | R173: OV | S173: OV | T173: OV | U173: OV | V173: OV | W173: OV | X173: OV | Y173: OV | Z173: OV | AA173: OV | AB173: OV | AC173: OV | AD173: OV | AE173: OV | AF173: OV | AG173: OV | AH173: OV | AI173: OV | AJ173: OV | AK173: OV | AL173: OV | AM173: OV | AN173: OV | AO173: OV | AP173: OV | AQ173: OV | AR173: OV | AS173: OV | AT173: OV | AU173: OV | AV173: OV | AW173: OV | AX173: OV | AY173: OV | AZ173: OV | BA173: OV | BB173: OV | BC173: OV | BD173: OV | BE173: OV | BF173: OV | BG173: OV | BH173: OV | BI173: OV | BJ173: OV | BK173: OV | BL173: OV | BM173: OV | BN173: OV | BO173: OV | BP173: OV | BQ173: OV | BR173: OV | BS173: OV | BT173: OV | BU173: OV | BV173: OV | BW173: OV | BX173: OV | BY173: OV | BZ173: OV | CA173: OV | CB173: OV | CC173: OV | CD173: OV | CE173: OV | CF173: OV | CG173: OV | CH173: OV | CI173: OV | CJ173: OV | CK173: OV | CL173: OV | CM173: OV | CN173: OV | CO173: OV | CP173: OV | CQ173: OV | CR173: OV | CS173: OV | CT173: OV | CU173: OV | CV173: OV | CW173: OV
A174: 21 | B174: PE | C174: PE | D174: PE | E174: PE | F174: PE | G174: PE | H174: PE | I174: PE | J174: PE | K174: PE | L174: PE | M174: PE | N174: PE | O174: PE | P174: PE | Q174: PE | R174: PE | S174: PE | T174: PE | U174: PE | V174: PE | W174: PE | X174: PE | Y174: PE | Z174: PE | AA174: PE | AB174: PE | AC174: PE | AD174: PE | AE174: PE | AF174: PE | AG174: PE | AH174: PE | AI174: PE | AJ174: PE | AK174: PE | AL174: PE | AM174: PE | AN174: PE | AO174: PE | AP174: PE | AQ174: PE | AR174: PE | AS174: PE | AT174: PE | AU174: PE | AV174: PE | AW174: PE | AX174: PE | AY174: PE | AZ174: PE | BA174: PE | BB174: PE | BC174: PE | BD174: PE | BE174: PE | BF174: PE | BG174: PE | BH174: PE | BI174: PE | BJ174: PE | BK174: PE | BL174: PE | BM174: PE | BN174: PE | BO174: PE | BP174: PE | BQ174: PE | BR174: PE | BS174: PE | BT174: PE | BU174: PE | BV174: PE | BW174: PE | BX174: PE | BY174: PE | BZ174: PE | CA174: PE | CB174: PE | CC174: PE | CD174: PE | CE174: PE | CF174: PE | CG174: PE | CH174: PE | CI174: PE | CJ174: PE | CK174: PE | CL174: PE | CM174: PE | CN174: PE | CO174: PE | CP174: PE | CQ174: PE | CR174: PE | CS174: PE | CT174: PE | CU174: PE | CV174: PE | CW174: PE
A175: 22 | B175: OV | C175: OV | D175: OV | E175: OV | F175: OV | G175: OV | H175: OV | I175: OV | J175: OV | K175: OV | L175: OV | M175: OV | N175: OV | O175: OV | P175: OV | Q175: OV | R175: OV | S175: OV | T175: OV | U175: OV | V175: OV | W175: OV | X175: OV | Y175: OV | Z175: OV | AA175: OV | AB175: OV | AC175: OV | AD175: OV | AE175: OV | AF175: OV | AG175: OV | AH175: OV | AI175: OV | AJ175: OV | AK175: OV | AL175: OV | AM175: OV | AN175: OV | AO175: OV | AP175: OV | AQ175: OV | AR175: OV | AS175: OV | AT175: OV | AU175: OV | AV175: OV | AW175: OV | AX175: OV | AY175: OV | AZ175: OV | BA175: OV | BB175: OV | BC175: OV | BD175: OV | BE175: OV | BF175: OV | BG175: OV | BH175: OV | BI175: OV | BJ175: OV | BK175: OV | BL175: OV | BM175: OV | BN175: OV | BO175: OV | BP175: OV | BQ175: OV | BR175: OV | BS175: OV | BT175: OV | BU175: OV | BV175: OV | BW175: OV | BX175: OV | BY175: OV | BZ175: OV | CA175: OV | CB175: OV | CC175: OV | CD175: OV | CE175: OV | CF175: OV | CG175: OV | CH175: OV | CI175: OV | CJ175: OV | CK175: OV | CL175: OV | CM175: OV | CN175: OV | CO175: OV | CP175: OV | CQ175: OV | CR175: OV | CS175: OV | CT175: OV | CU175: OV | CV175: OV | CW175: OV
A177: Request | B177: 1 | C177: 2 | D177: 3 | E177: 4 | F177: 5 | G177: 6 | H177: 7 | I177: 8 | J177: 9 | K177: 10 | L177: 11 | M177: 12 | N177: 13 | O177: 14 | P177: 15 | Q177: 16 | R177: 17 | S177: 18 | T177: 19 | U177: 20 | V177: 21 | W177: 22 | X177: 23 | Y177: 24 | Z177: 25 | AA177: 26 | AB177: 27 | AC177: 28 | AD177: 29 | AE177: 30 | AF177: 31 | AG177: 32 | AH177: 33 | AI177: 34 | AJ177: 35 | AK177: 36 | AL177: 37 | AM177: 38 | AN177: 39 | AO177: 40 | AP177: 41 | AQ177: 42 | AR177: 43 | AS177: 44 | AT177: 45 | AU177: 46 | AV177: 47 | AW177: 48 | AX177: 49 | AY177: 50 | AZ177: 51 | BA177: 52 | BB177: 53 | BC177: 54 | BD177: 55 | BE177: 56 | BF177: 57 | BG177: 58 | BH177: 59 | BI177: 60 | BJ177: 61 | BK177: 62 | BL177: 63 | BM177: 64 | BN177: 65 | BO177: 66 | BP177: 67 | BQ177: 68 | BR177: 69 | BS177: 70 | BT177: 71 | BU177: 72 | BV177: 73 | BW177: 74 | BX177: 75 | BY177: 76 | BZ177: 77 | CA177: 78 | CB177: 79 | CC177: 80 | CD177: 81 | CE177: 82 | CF177: 83 | CG177: 84 | CH177: 85 | CI177: 86 | CJ177: 87 | CK177: 88 | CL177: 89 | CM177: 90 | CN177: 91 | CO177: 92 | CP177: 93 | CQ177: 94 | CR177: 95 | CS177: 96 | CT177: 97 | CU177: 98 | CV177: 99 | CW177: 100
A178: 1 | B178: =IF(B230<=$G$45,$A$45,IF(B230<=$G$46,$A$46,IF(B230<=$G$47,$A$47,IF(B230<=$G$48,$A$48,IF(B230<=$G$49,$A$49,$A$50))))) -> OV | C178: OV | D178: OV | E178: OV | F178: FU | G178: OV | H178: OV | I178: OV | J178: OV | K178: WCC | L178: OV | M178: OV | N178: OV | O178: OV | P178: NP | Q178: OV | R178: OV | S178: OV | T178: FU | U178: OV | V178: OV | W178: OV | X178: FU | Y178: OV | Z178: WCC | AA178: OV | AB178: OV | AC178: OV | AD178: FU | AE178: FU | AF178: OV | AG178: FU | AH178: =IF(AH230<=$G$45,$A$45,IF(AH230<=$G$46,$A$46,IF(AH230<=$G$47,$A$47,IF(AH230<=$G$48,$A$48,IF(AH230<=$G$49,$A$49,$A$50))))) -> OV | AI178: OV | AJ178: FU | AK178: OV | AL178: NP | AM178: OV | AN178: OV | AO178: NP | AP178: OV | AQ178: PE | AR178: FU | AS178: OV | AT178: FU | AU178: OV | AV178: FU | AW178: OV | AX178: OV | AY178: NP | AZ178: OV | BA178: NP | BB178: PE | BC178: WCC | BD178: FU | BE178: OV | BF178: OV | BG178: FU | BH178: NP | BI178: FU | BJ178: FU | BK178: WCC | BL178: OV | BM178: FU | BN178: =IF(BN230<=$G$45,$A$45,IF(BN230<=$G$46,$A$46,IF(BN230<=$G$47,$A$47,IF(BN230<=$G$48,$A$48,IF(BN230<=$G$49,$A$49,$A$50))))) -> ER/UC | BO178: OV | BP178: FU | BQ178: OV | BR178: OV | BS178: OV | BT178: FU | BU178: FU | BV178: OV | BW178: ER/UC | BX178: OV | BY178: NP | BZ178: OV | CA178: OV | CB178: OV | CC178: OV | CD178: OV | CE178: OV | CF178: OV | CG178: OV | CH178: FU | CI178: ER/UC | CJ178: NP | CK178: NP | CL178: OV | CM178: OV | CN178: OV | CO178: OV | CP178: ER/UC | CQ178: OV | CR178: OV | CS178: OV | CT178: OV | CU178: OV | CV178: OV | CW178: OV
A179: 2 | B179: =IF(B231<=$G$45,$A$45,IF(B231<=$G$46,$A$46,IF(B231<=$G$47,$A$47,IF(B231<=$G$48,$A$48,IF(B231<=$G$49,$A$49,$A$50))))) -> NP | C179: OV | D179: OV | E179: NP | F179: OV | G179: OV | H179: NP | I179: OV | J179: OV | K179: NP | L179: OV | M179: OV | N179: OV | O179: OV | P179: WCC | Q179: OV | R179: OV | S179: OV | T179: ER/UC | U179: OV | V179: NP | W179: OV | X179: FU | Y179: OV | Z179: OV | AA179: FU | AB179: OV | AC179: NP | AD179: ER/UC | AE179: PE | AF179: OV | AG179: OV | AH179: =IF(AH231<=$G$45,$A$45,IF(AH231<=$G$46,$A$46,IF(AH231<=$G$47,$A$47,IF(AH231<=$G$48,$A$48,IF(AH231<=$G$49,$A$49,$A$50))))) -> FU | AI179: WCC | AJ179: NP | AK179: ER/UC | AL179: WCC | AM179: PE | AN179: OV | AO179: WCC | AP179: OV | AQ179: OV | AR179: FU | AS179: OV | AT179: OV | AU179: OV | AV179: NP | AW179: OV | AX179: NP | AY179: NP | AZ179: OV | BA179: FU | BB179: OV | BC179: OV | BD179: OV | BE179: OV | BF179: OV | BG179: OV | BH179: NP | BI179: NP | BJ179: OV | BK179: NP | BL179: OV | BM179: FU | BN179: =IF(BN231<=$G$45,$A$45,IF(BN231<=$G$46,$A$46,IF(BN231<=$G$47,$A$47,IF(BN231<=$G$48,$A$48,IF(BN231<=$G$49,$A$49,$A$50))))) -> OV | BO179: OV | BP179: FU | BQ179: NP | BR179: FU | BS179: OV | BT179: FU | BU179: NP | BV179: OV | BW179: ER/UC | BX179: FU | BY179: OV | BZ179: PE | CA179: NP | CB179: WCC | CC179: OV | CD179: OV | CE179: FU | CF179: PE | CG179: OV | CH179: WCC | CI179: NP | CJ179: FU | CK179: OV | CL179: OV | CM179: OV | CN179: OV | CO179: OV | CP179: OV | CQ179: OV | CR179: OV | CS179: OV | CT179: OV | CU179: OV | CV179: OV | CW179: OV
A180: 3 | B180: =IF(B232<=$G$45,$A$45,IF(B232<=$G$46,$A$46,IF(B232<=$G$47,$A$47,IF(B232<=$G$48,$A$48,IF(B232<=$G$49,$A$49,$A$50))))) -> OV | C180: ER/UC | D180: OV | E180: PE | F180: FU | G180: OV | H180: OV | I180: OV | J180: FU | K180: OV | L180: OV | M180: OV | N180: OV | O180: OV | P180: OV | Q180: OV | R180: OV | S180: FU | T180: OV | U180: NP | V180: ER/UC | W180: WCC | X180: OV | Y180: OV | Z180: PE | AA180: OV | AB180: OV | AC180: NP | AD180: OV | AE180: OV | AF180: OV | AG180: FU | AH180: =IF(AH232<=$G$45,$A$45,IF(AH232<=$G$46,$A$46,IF(AH232<=$G$47,$A$47,IF(AH232<=$G$48,$A$48,IF(AH232<=$G$49,$A$49,$A$50))))) -> OV | AI180: NP | AJ180: PE | AK180: OV | AL180: WCC | AM180: OV | AN180: OV | AO180: OV | AP180: OV | AQ180: FU | AR180: FU | AS180: OV | AT180: FU | AU180: WCC | AV180: NP | AW180: OV | AX180: OV | AY180: PE | AZ180: OV | BA180: OV | BB180: PE | BC180: OV | BD180: NP | BE180: WCC | BF180: PE | BG180: OV | BH180: OV | BI180: OV | BJ180: OV | BK180: OV | BL180: OV | BM180: OV | BN180: =IF(BN232<=$G$45,$A$45,IF(BN232<=$G$46,$A$46,IF(BN232<=$G$47,$A$47,IF(BN232<=$G$48,$A$48,IF(BN232<=$G$49,$A$49,$A$50))))) -> OV | BO180: OV | BP180: ER/UC | BQ180: FU | BR180: OV | BS180: OV | BT180: ER/UC | BU180: OV | BV180: FU | BW180: OV | BX180: FU | BY180: OV | BZ180: ER/UC | CA180: PE | CB180: OV | CC180: FU | CD180: PE | CE180: FU | CF180: FU | CG180: OV | CH180: OV | CI180: OV | CJ180: WCC | CK180: OV | CL180: OV | CM180: OV | CN180: OV | CO180: OV | CP180: OV | CQ180: OV | CR180: OV | CS180: OV | CT180: NP | CU180: OV | CV180: OV | CW180: NP
A181: 4 | B181: =IF(B233<=$G$45,$A$45,IF(B233<=$G$46,$A$46,IF(B233<=$G$47,$A$47,IF(B233<=$G$48,$A$48,IF(B233<=$G$49,$A$49,$A$50))))) -> PE | C181: OV | D181: OV | E181: OV | F181: WCC | G181: ER/UC | H181: OV | I181: PE | J181: NP | K181: FU | L181: OV | M181: OV | N181: NP | O181: PE | P181: PE | Q181: OV | R181: OV | S181: PE | T181: WCC | U181: ER/UC | V181: ER/UC | W181: OV | X181: OV | Y181: OV | Z181: PE | AA181: FU | AB181: OV | AC181: OV | AD181: OV | AE181: PE | AF181: OV | AG181: FU | AH181: =IF(AH233<=$G$45,$A$45,IF(AH233<=$G$46,$A$46,IF(AH233<=$G$47,$A$47,IF(AH233<=$G$48,$A$48,IF(AH233<=$G$49,$A$49,$A$50))))) -> FU | AI181: OV | AJ181: OV | AK181: OV | AL181: OV | AM181: WCC | AN181: FU | AO181: FU | AP181: OV | AQ181: OV | AR181: PE | AS181: FU | AT181: FU | AU181: OV | AV181: OV | AW181: WCC | AX181: OV | AY181: OV | AZ181: OV | BA181: OV | BB181: WCC | BC181: NP | BD181: OV | BE181: ER/UC | BF181: WCC | BG181: OV | BH181: OV | BI181: OV | BJ181: OV | BK181: OV | BL181: OV | BM181: NP | BN181: =IF(BN233<=$G$45,$A$45,IF(BN233<=$G$46,$A$46,IF(BN233<=$G$47,$A$47,IF(BN233<=$G$48,$A$48,IF(BN233<=$G$49,$A$49,$A$50))))) -> OV | BO181: FU | BP181: OV | BQ181: FU | BR181: NP | BS181: OV | BT181: OV | BU181: OV | BV181: OV | BW181: PE | BX181: OV | BY181: ER/UC | BZ181: OV | CA181: OV | CB181: PE | CC181: OV | CD181: FU | CE181: FU | CF181: OV | CG181: OV | CH181: NP | CI181: OV | CJ181: OV | CK181: FU | CL181: OV | CM181: PE | CN181: FU | CO181: FU | CP181: OV | CQ181: OV | CR181: NP | CS181: NP | CT181: FU | CU181: OV | CV181: NP | CW181: OV
A182: 5 | B182: =IF(B234<=$G$45,$A$45,IF(B234<=$G$46,$A$46,IF(B234<=$G$47,$A$47,IF(B234<=$G$48,$A$48,IF(B234<=$G$49,$A$49,$A$50))))) -> PE | C182: FU | D182: FU | E182: OV | F182: FU | G182: OV | H182: OV | I182: WCC | J182: OV | K182: OV | L182: NP | M182: OV | N182: NP | O182: OV | P182: ER/UC | Q182: OV | R182: OV | S182: OV | T182: OV | U182: NP | V182: PE | W182: OV | X182: OV | Y182: OV | Z182: OV | AA182: OV | AB182: WCC | AC182: OV | AD182: NP | AE182: OV | AF182: ER/UC | AG182: NP | AH182: =IF(AH234<=$G$45,$A$45,IF(AH234<=$G$46,$A$46,IF(AH234<=$G$47,$A$47,IF(AH234<=$G$48,$A$48,IF(AH234<=$G$49,$A$49,$A$50))))) -> FU | AI182: FU | AJ182: WCC | AK182: OV | AL182: OV | AM182: OV | AN182: FU | AO182: FU | AP182: PE | AQ182: PE | AR182: OV | AS182: OV | AT182: OV | AU182: OV | AV182: OV | AW182: OV | AX182: OV | AY182: FU | AZ182: NP | BA182: WCC | BB182: ER/UC | BC182: OV | BD182: OV | BE182: WCC | BF182: OV | BG182: ER/UC | BH182: FU | BI182: NP | BJ182: OV | BK182: ER/UC | BL182: OV | BM182: OV | BN182: =IF(BN234<=$G$45,$A$45,IF(BN234<=$G$46,$A$46,IF(BN234<=$G$47,$A$47,IF(BN234<=$G$48,$A$48,IF(BN234<=$G$49,$A$49,$A$50))))) -> OV | BO182: WCC | BP182: OV | BQ182: FU | BR182: OV | BS182: FU | BT182: OV | BU182: OV | BV182: WCC | BW182: OV | BX182: ER/UC | BY182: OV | BZ182: OV | CA182: FU | CB182: OV | CC182: OV | CD182: FU | CE182: OV | CF182: WCC | CG182: OV | CH182: OV | CI182: WCC | CJ182: NP | CK182: OV | CL182: OV | CM182: OV | CN182: FU | CO182: ER/UC | CP182: FU | CQ182: OV | CR182: OV | CS182: OV | CT182: OV | CU182: FU | CV182: OV | CW182: OV
A183: 6 | B183: =IF(B235<=$G$45,$A$45,IF(B235<=$G$46,$A$46,IF(B235<=$G$47,$A$47,IF(B235<=$G$48,$A$48,IF(B235<=$G$49,$A$49,$A$50))))) -> OV | C183: OV | D183: OV | E183: FU | F183: ER/UC | G183: PE | H183: OV | I183: OV | J183: PE | K183: OV | L183: OV | M183: ER/UC | N183: OV | O183: FU | P183: OV | Q183: NP | R183: PE | S183: PE | T183: OV | U183: OV | V183: ER/UC | W183: FU | X183: OV | Y183: OV | Z183: NP | AA183: PE | AB183: OV | AC183: NP | AD183: ER/UC | AE183: OV | AF183: OV | AG183: FU | AH183: =IF(AH235<=$G$45,$A$45,IF(AH235<=$G$46,$A$46,IF(AH235<=$G$47,$A$47,IF(AH235<=$G$48,$A$48,IF(AH235<=$G$49,$A$49,$A$50))))) -> OV | AI183: WCC | AJ183: FU | AK183: OV | AL183: OV | AM183: OV | AN183: OV | AO183: OV | AP183: OV | AQ183: OV | AR183: WCC | AS183: OV | AT183: OV | AU183: OV | AV183: OV | AW183: FU | AX183: OV | AY183: OV | AZ183: OV | BA183: OV | BB183: OV | BC183: OV | BD183: OV | BE183: OV | BF183: OV | BG183: OV | BH183: OV | BI183: OV | BJ183: OV | BK183: OV | BL183: OV | BM183: OV | BN183: =IF(BN235<=$G$45,$A$45,IF(BN235<=$G$46,$A$46,IF(BN235<=$G$47,$A$47,IF(BN235<=$G$48,$A$48,IF(BN235<=$G$49,$A$49,$A$50))))) -> OV | BO183: OV | BP183: FU | BQ183: OV | BR183: FU | BS183: OV | BT183: FU | BU183: WCC | BV183: OV | BW183: OV | BX183: FU | BY183: OV | BZ183: OV | CA183: NP | CB183: NP | CC183: PE | CD183: NP | CE183: OV | CF183: WCC | CG183: OV | CH183: NP | CI183: OV | CJ183: FU | CK183: ER/UC | CL183: WCC | CM183: FU | CN183: WCC | CO183: OV | CP183: ER/UC | CQ183: NP | CR183: OV | CS183: OV | CT183: OV | CU183: OV | CV183: OV | CW183: PE
A184: 7 | B184: =IF(B236<=$G$45,$A$45,IF(B236<=$G$46,$A$46,IF(B236<=$G$47,$A$47,IF(B236<=$G$48,$A$48,IF(B236<=$G$49,$A$49,$A$50))))) -> OV | C184: OV | D184: FU | E184: OV | F184: PE | G184: WCC | H184: OV | I184: FU | J184: OV | K184: OV | L184: FU | M184: OV | N184: OV | O184: FU | P184: WCC | Q184: FU | R184: PE | S184: FU | T184: OV | U184: OV | V184: NP | W184: OV | X184: OV | Y184: PE | Z184: OV | AA184: NP | AB184: NP | AC184: OV | AD184: OV | AE184: NP | AF184: ER/UC | AG184: WCC | AH184: =IF(AH236<=$G$45,$A$45,IF(AH236<=$G$46,$A$46,IF(AH236<=$G$47,$A$47,IF(AH236<=$G$48,$A$48,IF(AH236<=$G$49,$A$49,$A$50))))) -> OV | AI184: ER/UC | AJ184: OV | AK184: OV | AL184: PE | AM184: NP | AN184: ER/UC | AO184: FU | AP184: WCC | AQ184: OV | AR184: OV | AS184: NP | AT184: FU | AU184: FU | AV184: WCC | AW184: FU | AX184: NP | AY184: OV | AZ184: PE | BA184: FU | BB184: OV | BC184: FU | BD184: WCC | BE184: OV | BF184: OV | BG184: ER/UC | BH184: WCC | BI184: OV | BJ184: OV | BK184: OV | BL184: OV | BM184: WCC | BN184: =IF(BN236<=$G$45,$A$45,IF(BN236<=$G$46,$A$46,IF(BN236<=$G$47,$A$47,IF(BN236<=$G$48,$A$48,IF(BN236<=$G$49,$A$49,$A$50))))) -> OV | BO184: OV | BP184: WCC | BQ184: OV | BR184: OV | BS184: FU | BT184: FU | BU184: OV | BV184: FU | BW184: OV | BX184: OV | BY184: FU | BZ184: OV | CA184: OV | CB184: FU | CC184: ER/UC | CD184: OV | CE184: OV | CF184: PE | CG184: PE | CH184: NP | CI184: NP | CJ184: OV | CK184: ER/UC | CL184: NP | CM184: FU | CN184: WCC | CO184: OV | CP184: OV | CQ184: NP | CR184: OV | CS184: OV | CT184: FU | CU184: FU | CV184: PE | CW184: WCC
A185: 8 | B185: =IF(B237<=$G$45,$A$45,IF(B237<=$G$46,$A$46,IF(B237<=$G$47,$A$47,IF(B237<=$G$48,$A$48,IF(B237<=$G$49,$A$49,$A$50))))) -> OV | C185: FU | D185: NP | E185: OV | F185: FU | G185: ER/UC | H185: FU | I185: OV | J185: WCC | K185: PE | L185: FU | M185: FU | N185: OV | O185: NP | P185: OV | Q185: OV | R185: WCC | S185: OV | T185: OV | U185: OV | V185: FU | W185: WCC | X185: NP | Y185: OV | Z185: OV | AA185: OV | AB185: FU | AC185: OV | AD185: FU | AE185: WCC | AF185: FU | AG185: FU | AH185: =IF(AH237<=$G$45,$A$45,IF(AH237<=$G$46,$A$46,IF(AH237<=$G$47,$A$47,IF(AH237<=$G$48,$A$48,IF(AH237<=$G$49,$A$49,$A$50))))) -> OV | AI185: OV | AJ185: OV | AK185: OV | AL185: OV | AM185: ER/UC | AN185: FU | AO185: OV | AP185: WCC | AQ185: OV | AR185: NP | AS185: OV | AT185: NP | AU185: ER/UC | AV185: OV | AW185: OV | AX185: OV | AY185: WCC | AZ185: OV | BA185: FU | BB185: FU | BC185: OV | BD185: OV | BE185: OV | BF185: FU | BG185: NP | BH185: OV | BI185: FU | BJ185: PE | BK185: OV | BL185: NP | BM185: PE | BN185: =IF(BN237<=$G$45,$A$45,IF(BN237<=$G$46,$A$46,IF(BN237<=$G$47,$A$47,IF(BN237<=$G$48,$A$48,IF(BN237<=$G$49,$A$49,$A$50))))) -> WCC | BO185: ER/UC | BP185: OV | BQ185: OV | BR185: OV | BS185: OV | BT185: OV | BU185: OV | BV185: FU | BW185: WCC | BX185: FU | BY185: OV | BZ185: OV | CA185: OV | CB185: OV | CC185: OV | CD185: OV | CE185: FU | CF185: FU | CG185: PE | CH185: NP | CI185: OV | CJ185: NP | CK185: OV | CL185: OV | CM185: PE | CN185: FU | CO185: FU | CP185: WCC | CQ185: FU | CR185: OV | CS185: OV | CT185: ER/UC | CU185: OV | CV185: PE | CW185: OV
A186: 9 | B186: =IF(B238<=$G$45,$A$45,IF(B238<=$G$46,$A$46,IF(B238<=$G$47,$A$47,IF(B238<=$G$48,$A$48,IF(B238<=$G$49,$A$49,$A$50))))) -> OV | C186: OV | D186: ER/UC | E186: NP | F186: OV | G186: NP | H186: OV | I186: OV | J186: OV | K186: ER/UC | L186: FU | M186: OV | N186: OV | O186: PE | P186: WCC | Q186: OV | R186: OV | S186: FU | T186: OV | U186: NP | V186: FU | W186: OV | X186: PE | Y186: ER/UC | Z186: OV | AA186: OV | AB186: OV | AC186: WCC | AD186: FU | AE186: FU | AF186: NP | AG186: OV | AH186: =IF(AH238<=$G$45,$A$45,IF(AH238<=$G$46,$A$46,IF(AH238<=$G$47,$A$47,IF(AH238<=$G$48,$A$48,IF(AH238<=$G$49,$A$49,$A$50))))) -> FU | AI186: OV | AJ186: OV | AK186: ER/UC | AL186: OV | AM186: OV | AN186: OV | AO186: OV | AP186: OV | AQ186: OV | AR186: OV | AS186: OV | AT186: OV | AU186: OV | AV186: OV | AW186: OV | AX186: PE | AY186: OV | AZ186: ER/UC | BA186: PE | BB186: NP | BC186: NP | BD186: OV | BE186: OV | BF186: FU | BG186: ER/UC | BH186: NP | BI186: OV | BJ186: OV | BK186: OV | BL186: FU | BM186: OV | BN186: =IF(BN238<=$G$45,$A$45,IF(BN238<=$G$46,$A$46,IF(BN238<=$G$47,$A$47,IF(BN238<=$G$48,$A$48,IF(BN238<=$G$49,$A$49,$A$50))))) -> OV | BO186: OV | BP186: OV | BQ186: OV | BR186: PE | BS186: PE | BT186: OV | BU186: OV | BV186: OV | BW186: OV | BX186: OV | BY186: PE | BZ186: OV | CA186: OV | CB186: OV | CC186: NP | CD186: OV | CE186: FU | CF186: FU | CG186: FU | CH186: OV | CI186: OV | CJ186: ER/UC | CK186: FU | CL186: NP | CM186: OV | CN186: OV | CO186: OV | CP186: OV | CQ186: OV | CR186: NP | CS186: WCC | CT186: OV | CU186: NP | CV186: OV | CW186: OV
A187: 10 | B187: =IF(B239<=$G$45,$A$45,IF(B239<=$G$46,$A$46,IF(B239<=$G$47,$A$47,IF(B239<=$G$48,$A$48,IF(B239<=$G$49,$A$49,$A$50))))) -> ER/UC | C187: OV | D187: OV | E187: OV | F187: NP | G187: OV | H187: NP | I187: FU | J187: PE | K187: OV | L187: OV | M187: OV | N187: OV | O187: FU | P187: FU | Q187: OV | R187: OV | S187: OV | T187: NP | U187: OV | V187: OV | W187: NP | X187: FU | Y187: OV | Z187: WCC | AA187: OV | AB187: OV | AC187: OV | AD187: OV | AE187: OV | AF187: FU | AG187: OV | AH187: =IF(AH239<=$G$45,$A$45,IF(AH239<=$G$46,$A$46,IF(AH239<=$G$47,$A$47,IF(AH239<=$G$48,$A$48,IF(AH239<=$G$49,$A$49,$A$50))))) -> OV | AI187: OV | AJ187: OV | AK187: FU | AL187: OV | AM187: OV | AN187: PE | AO187: OV | AP187: WCC | AQ187: OV | AR187: ER/UC | AS187: OV | AT187: OV | AU187: PE | AV187: WCC | AW187: OV | AX187: NP | AY187: WCC | AZ187: OV | BA187: NP | BB187: OV | BC187: OV | BD187: NP | BE187: OV | BF187: OV | BG187: OV | BH187: OV | BI187: WCC | BJ187: NP | BK187: OV | BL187: PE | BM187: OV | BN187: =IF(BN239<=$G$45,$A$45,IF(BN239<=$G$46,$A$46,IF(BN239<=$G$47,$A$47,IF(BN239<=$G$48,$A$48,IF(BN239<=$G$49,$A$49,$A$50))))) -> OV | BO187: OV | BP187: FU | BQ187: OV | BR187: OV | BS187: FU | BT187: PE | BU187: NP | BV187: OV | BW187: OV | BX187: OV | BY187: WCC | BZ187: FU | CA187: OV | CB187: NP | CC187: OV | CD187: NP | CE187: FU | CF187: FU | CG187: PE | CH187: OV | CI187: OV | CJ187: WCC | CK187: FU | CL187: OV | CM187: FU | CN187: OV | CO187: OV | CP187: FU | CQ187: FU | CR187: OV | CS187: NP | CT187: OV | CU187: OV | CV187: OV | CW187: FU
A188: 11 | B188: =IF(B240<=$G$45,$A$45,IF(B240<=$G$46,$A$46,IF(B240<=$G$47,$A$47,IF(B240<=$G$48,$A$48,IF(B240<=$G$49,$A$49,$A$50))))) -> OV | C188: FU | D188: OV | E188: OV | F188: OV | G188: NP | H188: OV | I188: OV | J188: OV | K188: OV | L188: PE | M188: OV | N188: NP | O188: OV | P188: OV | Q188: PE | R188: OV | S188: ER/UC | T188: WCC | U188: OV | V188: OV | W188: OV | X188: ER/UC | Y188: OV | Z188: OV | AA188: OV | AB188: WCC | AC188: OV | AD188: PE | AE188: FU | AF188: OV | AG188: OV | AH188: =IF(AH240<=$G$45,$A$45,IF(AH240<=$G$46,$A$46,IF(AH240<=$G$47,$A$47,IF(AH240<=$G$48,$A$48,IF(AH240<=$G$49,$A$49,$A$50))))) -> OV | AI188: NP | AJ188: OV | AK188: PE | AL188: OV | AM188: OV | AN188: PE | AO188: WCC | AP188: FU | AQ188: OV | AR188: OV | AS188: PE | AT188: OV | AU188: OV | AV188: OV | AW188: FU | AX188: OV | AY188: FU | AZ188: FU | BA188: PE | BB188: OV | BC188: FU | BD188: NP | BE188: WCC | BF188: WCC | BG188: FU | BH188: FU | BI188: NP | BJ188: OV | BK188: OV | BL188: OV | BM188: NP | BN188: =IF(BN240<=$G$45,$A$45,IF(BN240<=$G$46,$A$46,IF(BN240<=$G$47,$A$47,IF(BN240<=$G$48,$A$48,IF(BN240<=$G$49,$A$49,$A$50))))) -> FU | BO188: FU | BP188: OV | BQ188: FU | BR188: FU | BS188: OV | BT188: OV | BU188: OV | BV188: OV | BW188: PE | BX188: OV | BY188: OV | BZ188: NP | CA188: WCC | CB188: FU | CC188: WCC | CD188: FU | CE188: OV | CF188: OV | CG188: OV | CH188: PE | CI188: ER/UC | CJ188: FU | CK188: PE | CL188: WCC | CM188: ER/UC | CN188: OV | CO188: OV | CP188: NP | CQ188: WCC | CR188: FU | CS188: OV | CT188: WCC | CU188: OV | CV188: OV | CW188: FU
A189: 12 | B189: =IF(B241<=$G$45,$A$45,IF(B241<=$G$46,$A$46,IF(B241<=$G$47,$A$47,IF(B241<=$G$48,$A$48,IF(B241<=$G$49,$A$49,$A$50))))) -> PE | C189: OV | D189: OV | E189: OV | F189: OV | G189: WCC | H189: OV | I189: OV | J189: PE | K189: OV | L189: OV | M189: WCC | N189: NP | O189: OV | P189: ER/UC | Q189: OV | R189: OV | S189: OV | T189: ER/UC | U189: OV | V189: OV | W189: OV | X189: FU | Y189: OV | Z189: PE | AA189: OV | AB189: OV | AC189: WCC | AD189: ER/UC | AE189: OV | AF189: FU | AG189: FU | AH189: =IF(AH241<=$G$45,$A$45,IF(AH241<=$G$46,$A$46,IF(AH241<=$G$47,$A$47,IF(AH241<=$G$48,$A$48,IF(AH241<=$G$49,$A$49,$A$50))))) -> OV | AI189: FU | AJ189: PE | AK189: OV | AL189: PE | AM189: WCC | AN189: OV | AO189: OV | AP189: OV | AQ189: OV | AR189: NP | AS189: OV | AT189: OV | AU189: OV | AV189: FU | AW189: OV | AX189: OV | AY189: NP | AZ189: OV | BA189: OV | BB189: WCC | BC189: OV | BD189: OV | BE189: OV | BF189: OV | BG189: OV | BH189: FU | BI189: PE | BJ189: OV | BK189: OV | BL189: ER/UC | BM189: FU | BN189: =IF(BN241<=$G$45,$A$45,IF(BN241<=$G$46,$A$46,IF(BN241<=$G$47,$A$47,IF(BN241<=$G$48,$A$48,IF(BN241<=$G$49,$A$49,$A$50))))) -> OV | BO189: OV | BP189: PE | BQ189: NP | BR189: OV | BS189: ER/UC | BT189: OV | BU189: FU | BV189: PE | BW189: WCC | BX189: OV | BY189: OV | BZ189: PE | CA189: OV | CB189: OV | CC189: OV | CD189: FU | CE189: FU | CF189: PE | CG189: ER/UC | CH189: WCC | CI189: PE | CJ189: OV | CK189: NP | CL189: FU | CM189: OV | CN189: FU | CO189: FU | CP189: OV | CQ189: FU | CR189: OV | CS189: PE | CT189: OV | CU189: OV | CV189: OV | CW189: OV
A190: 13 | B190: =IF(B242<=$G$45,$A$45,IF(B242<=$G$46,$A$46,IF(B242<=$G$47,$A$47,IF(B242<=$G$48,$A$48,IF(B242<=$G$49,$A$49,$A$50))))) -> OV | C190: FU | D190: FU | E190: NP | F190: PE | G190: OV | H190: OV | I190: WCC | J190: OV | K190: FU | L190: PE | M190: OV | N190: FU | O190: ER/UC | P190: OV | Q190: FU | R190: FU | S190: OV | T190: OV | U190: OV | V190: PE | W190: WCC | X190: WCC | Y190: OV | Z190: OV | AA190: OV | AB190: FU | AC190: OV | AD190: WCC | AE190: OV | AF190: OV | AG190: OV | AH190: =IF(AH242<=$G$45,$A$45,IF(AH242<=$G$46,$A$46,IF(AH242<=$G$47,$A$47,IF(AH242<=$G$48,$A$48,IF(AH242<=$G$49,$A$49,$A$50))))) -> NP | AI190: OV | AJ190: OV | AK190: PE | AL190: ER/UC | AM190: NP | AN190: OV | AO190: WCC | AP190: ER/UC | AQ190: OV | AR190: WCC | AS190: OV | AT190: OV | AU190: OV | AV190: OV | AW190: FU | AX190: FU | AY190: NP | AZ190: NP | BA190: PE | BB190: OV | BC190: ER/UC | BD190: OV | BE190: OV | BF190: OV | BG190: OV | BH190: FU | BI190: OV | BJ190: NP | BK190: NP | BL190: OV | BM190: OV | BN190: =IF(BN242<=$G$45,$A$45,IF(BN242<=$G$46,$A$46,IF(BN242<=$G$47,$A$47,IF(BN242<=$G$48,$A$48,IF(BN242<=$G$49,$A$49,$A$50))))) -> OV | BO190: WCC | BP190: NP | BQ190: OV | BR190: OV | BS190: OV | BT190: OV | BU190: OV | BV190: FU | BW190: OV | BX190: OV | BY190: OV | BZ190: OV | CA190: FU | CB190: OV | CC190: OV | CD190: OV | CE190: OV | CF190: OV | CG190: OV | CH190: OV | CI190: OV | CJ190: PE | CK190: OV | CL190: OV | CM190: FU | CN190: ER/UC | CO190: OV | CP190: ER/UC | CQ190: PE | CR190: OV | CS190: OV | CT190: OV | CU190: OV | CV190: ER/UC | CW190: PE
A191: 14 | B191: =IF(B243<=$G$45,$A$45,IF(B243<=$G$46,$A$46,IF(B243<=$G$47,$A$47,IF(B243<=$G$48,$A$48,IF(B243<=$G$49,$A$49,$A$50))))) -> NP | C191: FU | D191: WCC | E191: NP | F191: PE | G191: WCC | H191: OV | I191: FU | J191: OV | K191: OV | L191: OV | M191: FU | N191: OV | O191: OV | P191: OV | Q191: FU | R191: OV | S191: OV | T191: FU | U191: OV | V191: OV | W191: OV | X191: OV | Y191: OV | Z191: OV | AA191: FU | AB191: OV | AC191: ER/UC | AD191: OV | AE191: OV | AF191: FU | AG191: FU | AH191: =IF(AH243<=$G$45,$A$45,IF(AH243<=$G$46,$A$46,IF(AH243<=$G$47,$A$47,IF(AH243<=$G$48,$A$48,IF(AH243<=$G$49,$A$49,$A$50))))) -> FU | AI191: OV | AJ191: OV | AK191: OV | AL191: OV | AM191: OV | AN191: NP | AO191: OV | AP191: PE | AQ191: OV | AR191: OV | AS191: PE | AT191: OV | AU191: OV | AV191: OV | AW191: OV | AX191: OV | AY191: OV | AZ191: OV | BA191: PE | BB191: WCC | BC191: ER/UC | BD191: OV | BE191: OV | BF191: OV | BG191: NP | BH191: FU | BI191: PE | BJ191: OV | BK191: NP | BL191: OV | BM191: FU | BN191: =IF(BN243<=$G$45,$A$45,IF(BN243<=$G$46,$A$46,IF(BN243<=$G$47,$A$47,IF(BN243<=$G$48,$A$48,IF(BN243<=$G$49,$A$49,$A$50))))) -> WCC | BO191: NP | BP191: WCC | BQ191: OV | BR191: NP | BS191: WCC | BT191: OV | BU191: FU | BV191: OV | BW191: OV | BX191: OV | BY191: OV | BZ191: OV | CA191: OV | CB191: OV | CC191: OV | CD191: OV | CE191: FU | CF191: OV | CG191: OV | CH191: OV | CI191: OV | CJ191: OV | CK191: WCC | CL191: NP | CM191: FU | CN191: OV | CO191: OV | CP191: FU | CQ191: OV | CR191: WCC | CS191: OV | CT191: OV | CU191: NP | CV191: WCC | CW191: FU
A192: 15 | B192: =IF(B244<=$G$45,$A$45,IF(B244<=$G$46,$A$46,IF(B244<=$G$47,$A$47,IF(B244<=$G$48,$A$48,IF(B244<=$G$49,$A$49,$A$50))))) -> PE | C192: WCC | D192: OV | E192: WCC | F192: OV | G192: OV | H192: FU | I192: OV | J192: NP | K192: OV | L192: NP | M192: OV | N192: PE | O192: OV | P192: OV | Q192: FU | R192: OV | S192: WCC | T192: ER/UC | U192: PE | V192: OV | W192: NP | X192: NP | Y192: FU | Z192: OV | AA192: OV | AB192: OV | AC192: FU | AD192: FU | AE192: OV | AF192: OV | AG192: OV | AH192: =IF(AH244<=$G$45,$A$45,IF(AH244<=$G$46,$A$46,IF(AH244<=$G$47,$A$47,IF(AH244<=$G$48,$A$48,IF(AH244<=$G$49,$A$49,$A$50))))) -> OV | AI192: OV | AJ192: OV | AK192: OV | AL192: OV | AM192: OV | AN192: OV | AO192: WCC | AP192: NP | AQ192: FU | AR192: OV | AS192: ER/UC | AT192: OV | AU192: OV | AV192: OV | AW192: FU | AX192: NP | AY192: WCC | AZ192: PE | BA192: OV | BB192: OV | BC192: ER/UC | BD192: OV | BE192: OV | BF192: OV | BG192: OV | BH192: NP | BI192: FU | BJ192: PE | BK192: OV | BL192: OV | BM192: OV | BN192: =IF(BN244<=$G$45,$A$45,IF(BN244<=$G$46,$A$46,IF(BN244<=$G$47,$A$47,IF(BN244<=$G$48,$A$48,IF(BN244<=$G$49,$A$49,$A$50))))) -> OV | BO192: OV | BP192: NP | BQ192: FU | BR192: NP | BS192: OV | BT192: OV | BU192: OV | BV192: FU | BW192: NP | BX192: OV | BY192: OV | BZ192: OV | CA192: WCC | CB192: OV | CC192: PE | CD192: FU | CE192: OV | CF192: OV | CG192: OV | CH192: OV | CI192: OV | CJ192: OV | CK192: OV | CL192: OV | CM192: FU | CN192: FU | CO192: FU | CP192: OV | CQ192: PE | CR192: OV | CS192: OV | CT192: WCC | CU192: OV | CV192: WCC | CW192: FU
A193: 16 | B193: =IF(B245<=$G$45,$A$45,IF(B245<=$G$46,$A$46,IF(B245<=$G$47,$A$47,IF(B245<=$G$48,$A$48,IF(B245<=$G$49,$A$49,$A$50))))) -> OV | C193: OV | D193: NP | E193: OV | F193: WCC | G193: FU | H193: OV | I193: NP | J193: OV | K193: ER/UC | L193: OV | M193: ER/UC | N193: OV | O193: NP | P193: OV | Q193: OV | R193: OV | S193: OV | T193: OV | U193: OV | V193: OV | W193: NP | X193: OV | Y193: OV | Z193: OV | AA193: FU | AB193: ER/UC | AC193: OV | AD193: OV | AE193: OV | AF193: FU | AG193: OV | AH193: =IF(AH245<=$G$45,$A$45,IF(AH245<=$G$46,$A$46,IF(AH245<=$G$47,$A$47,IF(AH245<=$G$48,$A$48,IF(AH245<=$G$49,$A$49,$A$50))))) -> OV | AI193: OV | AJ193: OV | AK193: OV | AL193: OV | AM193: OV | AN193: OV | AO193: OV | AP193: NP | AQ193: FU | AR193: FU | AS193: OV | AT193: PE | AU193: OV | AV193: FU | AW193: OV | AX193: OV | AY193: FU | AZ193: OV | BA193: ER/UC | BB193: OV | BC193: NP | BD193: OV | BE193: FU | BF193: WCC | BG193: OV | BH193: OV | BI193: NP | BJ193: NP | BK193: FU | BL193: OV | BM193: FU | BN193: =IF(BN245<=$G$45,$A$45,IF(BN245<=$G$46,$A$46,IF(BN245<=$G$47,$A$47,IF(BN245<=$G$48,$A$48,IF(BN245<=$G$49,$A$49,$A$50))))) -> OV | BO193: WCC | BP193: OV | BQ193: OV | BR193: OV | BS193: OV | BT193: OV | BU193: OV | BV193: FU | BW193: OV | BX193: NP | BY193: OV | BZ193: OV | CA193: NP | CB193: WCC | CC193: PE | CD193: FU | CE193: OV | CF193: NP | CG193: ER/UC | CH193: OV | CI193: OV | CJ193: ER/UC | CK193: OV | CL193: OV | CM193: WCC | CN193: FU | CO193: OV | CP193: OV | CQ193: OV | CR193: OV | CS193: FU | CT193: OV | CU193: FU | CV193: FU | CW193: OV
A194: 17 | B194: =IF(B246<=$G$45,$A$45,IF(B246<=$G$46,$A$46,IF(B246<=$G$47,$A$47,IF(B246<=$G$48,$A$48,IF(B246<=$G$49,$A$49,$A$50))))) -> OV | C194: OV | D194: FU | E194: OV | F194: OV | G194: WCC | H194: FU | I194: NP | J194: FU | K194: NP | L194: FU | M194: NP | N194: WCC | O194: OV | P194: FU | Q194: FU | R194: OV | S194: FU | T194: OV | U194: ER/UC | V194: OV | W194: OV | X194: OV | Y194: OV | Z194: NP | AA194: PE | AB194: WCC | AC194: FU | AD194: OV | AE194: OV | AF194: ER/UC | AG194: OV | AH194: =IF(AH246<=$G$45,$A$45,IF(AH246<=$G$46,$A$46,IF(AH246<=$G$47,$A$47,IF(AH246<=$G$48,$A$48,IF(AH246<=$G$49,$A$49,$A$50))))) -> OV | AI194: OV | AJ194: OV | AK194: OV | AL194: PE | AM194: NP | AN194: OV | AO194: FU | AP194: NP | AQ194: OV | AR194: OV | AS194: FU | AT194: NP | AU194: OV | AV194: OV | AW194: OV | AX194: OV | AY194: OV | AZ194: FU | BA194: FU | BB194: ER/UC | BC194: OV | BD194: OV | BE194: NP | BF194: PE | BG194: OV | BH194: OV | BI194: WCC | BJ194: OV | BK194: OV | BL194: FU | BM194: PE | BN194: =IF(BN246<=$G$45,$A$45,IF(BN246<=$G$46,$A$46,IF(BN246<=$G$47,$A$47,IF(BN246<=$G$48,$A$48,IF(BN246<=$G$49,$A$49,$A$50))))) -> OV | BO194: OV | BP194: OV | BQ194: WCC | BR194: OV | BS194: OV | BT194: OV | BU194: OV | BV194: OV | BW194: NP | BX194: WCC | BY194: NP | BZ194: OV | CA194: OV | CB194: OV | CC194: FU | CD194: PE | CE194: NP | CF194: NP | CG194: OV | CH194: FU | CI194: OV | CJ194: FU | CK194: OV | CL194: OV | CM194: OV | CN194: OV | CO194: OV | CP194: OV | CQ194: NP | CR194: OV | CS194: OV | CT194: OV | CU194: PE | CV194: OV | CW194: PE
A195: 18 | B195: =IF(B247<=$G$45,$A$45,IF(B247<=$G$46,$A$46,IF(B247<=$G$47,$A$47,IF(B247<=$G$48,$A$48,IF(B247<=$G$49,$A$49,$A$50))))) -> OV | C195: OV | D195: OV | E195: OV | F195: WCC | G195: OV | H195: OV | I195: OV | J195: OV | K195: OV | L195: OV | M195: OV | N195: FU | O195: FU | P195: PE | Q195: OV | R195: OV | S195: FU | T195: OV | U195: OV | V195: OV | W195: OV | X195: ER/UC | Y195: ER/UC | Z195: OV | AA195: WCC | AB195: OV | AC195: OV | AD195: FU | AE195: OV | AF195: OV | AG195: OV | AH195: =IF(AH247<=$G$45,$A$45,IF(AH247<=$G$46,$A$46,IF(AH247<=$G$47,$A$47,IF(AH247<=$G$48,$A$48,IF(AH247<=$G$49,$A$49,$A$50))))) -> OV | AI195: OV | AJ195: ER/UC | AK195: OV | AL195: OV | AM195: OV | AN195: FU | AO195: OV | AP195: OV | AQ195: ER/UC | AR195: OV | AS195: WCC | AT195: FU | AU195: ER/UC | AV195: OV | AW195: OV | AX195: OV | AY195: FU | AZ195: OV | BA195: OV | BB195: FU | BC195: OV | BD195: WCC | BE195: OV | BF195: OV | BG195: FU | BH195: FU | BI195: OV | BJ195: OV | BK195: OV | BL195: OV | BM195: FU | BN195: =IF(BN247<=$G$45,$A$45,IF(BN247<=$G$46,$A$46,IF(BN247<=$G$47,$A$47,IF(BN247<=$G$48,$A$48,IF(BN247<=$G$49,$A$49,$A$50))))) -> OV | BO195: OV | BP195: OV | BQ195: OV | BR195: WCC | BS195: OV | BT195: PE | BU195: OV | BV195: OV | BW195: OV | BX195: OV | BY195: PE | BZ195: FU | CA195: FU | CB195: OV | CC195: FU | CD195: PE | CE195: WCC | CF195: ER/UC | CG195: OV | CH195: OV | CI195: OV | CJ195: OV | CK195: OV | CL195: WCC | CM195: OV | CN195: OV | CO195: FU | CP195: FU | CQ195: OV | CR195: OV | CS195: OV | CT195: OV | CU195: NP | CV195: OV | CW195: PE
A196: 19 | B196: =IF(B248<=$G$45,$A$45,IF(B248<=$G$46,$A$46,IF(B248<=$G$47,$A$47,IF(B248<=$G$48,$A$48,IF(B248<=$G$49,$A$49,$A$50))))) -> WCC | C196: NP | D196: OV | E196: OV | F196: OV | G196: NP | H196: OV | I196: OV | J196: OV | K196: WCC | L196: OV | M196: NP | N196: OV | O196: FU | P196: OV | Q196: WCC | R196: OV | S196: ER/UC | T196: OV | U196: FU | V196: OV | W196: OV | X196: FU | Y196: OV | Z196: OV | AA196: FU | AB196: WCC | AC196: FU | AD196: OV | AE196: WCC | AF196: NP | AG196: OV | AH196: =IF(AH248<=$G$45,$A$45,IF(AH248<=$G$46,$A$46,IF(AH248<=$G$47,$A$47,IF(AH248<=$G$48,$A$48,IF(AH248<=$G$49,$A$49,$A$50))))) -> PE | AI196: OV | AJ196: PE | AK196: OV | AL196: OV | AM196: OV | AN196: OV | AO196: PE | AP196: ER/UC | AQ196: ER/UC | AR196: OV | AS196: WCC | AT196: FU | AU196: OV | AV196: OV | AW196: WCC | AX196: OV | AY196: FU | AZ196: PE | BA196: OV | BB196: NP | BC196: WCC | BD196: OV | BE196: OV | BF196: PE | BG196: OV | BH196: FU | BI196: OV | BJ196: OV | BK196: OV | BL196: ER/UC | BM196: OV | BN196: =IF(BN248<=$G$45,$A$45,IF(BN248<=$G$46,$A$46,IF(BN248<=$G$47,$A$47,IF(BN248<=$G$48,$A$48,IF(BN248<=$G$49,$A$49,$A$50))))) -> OV | BO196: PE | BP196: NP | BQ196: OV | BR196: NP | BS196: NP | BT196: PE | BU196: OV | BV196: WCC | BW196: OV | BX196: OV | BY196: OV | BZ196: OV | CA196: FU | CB196: WCC | CC196: NP | CD196: OV | CE196: OV | CF196: FU | CG196: OV | CH196: WCC | CI196: OV | CJ196: FU | CK196: OV | CL196: OV | CM196: OV | CN196: PE | CO196: OV | CP196: OV | CQ196: OV | CR196: OV | CS196: WCC | CT196: OV | CU196: OV | CV196: OV | CW196: NP
A197: 20 | B197: =IF(B249<=$G$45,$A$45,IF(B249<=$G$46,$A$46,IF(B249<=$G$47,$A$47,IF(B249<=$G$48,$A$48,IF(B249<=$G$49,$A$49,$A$50))))) -> NP | C197: FU | D197: FU | E197: PE | F197: NP | G197: FU | H197: ER/UC | I197: OV | J197: PE | K197: OV | L197: OV | M197: OV | N197: PE | O197: OV | P197: NP | Q197: OV | R197: OV | S197: OV | T197: OV | U197: OV | V197: OV | W197: FU | X197: OV | Y197: FU | Z197: OV | AA197: OV | AB197: OV | AC197: OV | AD197: OV | AE197: FU | AF197: ER/UC | AG197: OV | AH197: =IF(AH249<=$G$45,$A$45,IF(AH249<=$G$46,$A$46,IF(AH249<=$G$47,$A$47,IF(AH249<=$G$48,$A$48,IF(AH249<=$G$49,$A$49,$A$50))))) -> OV | AI197: PE | AJ197: OV | AK197: OV | AL197: NP | AM197: NP | AN197: OV | AO197: OV | AP197: PE | AQ197: FU | AR197: OV | AS197: NP | AT197: FU | AU197: OV | AV197: OV | AW197: OV | AX197: OV | AY197: NP | AZ197: FU | BA197: OV | BB197: WCC | BC197: OV | BD197: FU | BE197: WCC | BF197: FU | BG197: PE | BH197: OV | BI197: OV | BJ197: OV | BK197: FU | BL197: OV | BM197: WCC | BN197: =IF(BN249<=$G$45,$A$45,IF(BN249<=$G$46,$A$46,IF(BN249<=$G$47,$A$47,IF(BN249<=$G$48,$A$48,IF(BN249<=$G$49,$A$49,$A$50))))) -> OV | BO197: OV | BP197: ER/UC | BQ197: FU | BR197: OV | BS197: OV | BT197: OV | BU197: PE | BV197: OV | BW197: ER/UC | BX197: OV | BY197: NP | BZ197: WCC | CA197: OV | CB197: NP | CC197: OV | CD197: NP | CE197: WCC | CF197: OV | CG197: FU | CH197: OV | CI197: FU | CJ197: OV | CK197: FU | CL197: WCC | CM197: OV | CN197: WCC | CO197: NP | CP197: OV | CQ197: WCC | CR197: FU | CS197: OV | CT197: OV | CU197: PE | CV197: WCC | CW197: PE
A198: 21 | B198: =IF(B250<=$G$45,$A$45,IF(B250<=$G$46,$A$46,IF(B250<=$G$47,$A$47,IF(B250<=$G$48,$A$48,IF(B250<=$G$49,$A$49,$A$50))))) -> NP | C198: OV | D198: OV | E198: OV | F198: WCC | G198: OV | H198: NP | I198: WCC | J198: OV | K198: ER/UC | L198: FU | M198: OV | N198: PE | O198: OV | P198: NP | Q198: OV | R198: NP | S198: WCC | T198: OV | U198: OV | V198: FU | W198: OV | X198: WCC | Y198: OV | Z198: FU | AA198: OV | AB198: ER/UC | AC198: OV | AD198: OV | AE198: OV | AF198: FU | AG198: OV | AH198: =IF(AH250<=$G$45,$A$45,IF(AH250<=$G$46,$A$46,IF(AH250<=$G$47,$A$47,IF(AH250<=$G$48,$A$48,IF(AH250<=$G$49,$A$49,$A$50))))) -> OV | AI198: PE | AJ198: OV | AK198: NP | AL198: OV | AM198: OV | AN198: FU | AO198: PE | AP198: OV | AQ198: OV | AR198: OV | AS198: OV | AT198: OV | AU198: PE | AV198: OV | AW198: NP | AX198: OV | AY198: PE | AZ198: OV | BA198: OV | BB198: WCC | BC198: NP | BD198: OV | BE198: ER/UC | BF198: OV | BG198: FU | BH198: FU | BI198: OV | BJ198: OV | BK198: OV | BL198: OV | BM198: OV | BN198: =IF(BN250<=$G$45,$A$45,IF(BN250<=$G$46,$A$46,IF(BN250<=$G$47,$A$47,IF(BN250<=$G$48,$A$48,IF(BN250<=$G$49,$A$49,$A$50))))) -> PE | BO198: OV | BP198: PE | BQ198: OV | BR198: WCC | BS198: OV | BT198: OV | BU198: FU | BV198: OV | BW198: OV | BX198: OV | BY198: OV | BZ198: FU | CA198: WCC | CB198: ER/UC | CC198: OV | CD198: NP | CE198: OV | CF198: WCC | CG198: PE | CH198: PE | CI198: NP | CJ198: OV | CK198: PE | CL198: FU | CM198: OV | CN198: FU | CO198: OV | CP198: FU | CQ198: WCC | CR198: FU | CS198: OV | CT198: FU | CU198: OV | CV198: OV | CW198: OV
A199: 22 | B199: =IF(B251<=$G$45,$A$45,IF(B251<=$G$46,$A$46,IF(B251<=$G$47,$A$47,IF(B251<=$G$48,$A$48,IF(B251<=$G$49,$A$49,$A$50))))) -> OV | C199: ER/UC | D199: OV | E199: PE | F199: FU | G199: OV | H199: OV | I199: WCC | J199: OV | K199: FU | L199: OV | M199: OV | N199: ER/UC | O199: FU | P199: NP | Q199: FU | R199: OV | S199: OV | T199: PE | U199: OV | V199: NP | W199: NP | X199: PE | Y199: WCC | Z199: OV | AA199: OV | AB199: OV | AC199: OV | AD199: OV | AE199: OV | AF199: PE | AG199: NP | AH199: =IF(AH251<=$G$45,$A$45,IF(AH251<=$G$46,$A$46,IF(AH251<=$G$47,$A$47,IF(AH251<=$G$48,$A$48,IF(AH251<=$G$49,$A$49,$A$50))))) -> WCC | AI199: NP | AJ199: OV | AK199: NP | AL199: OV | AM199: OV | AN199: OV | AO199: OV | AP199: OV | AQ199: OV | AR199: FU | AS199: OV | AT199: PE | AU199: FU | AV199: OV | AW199: OV | AX199: OV | AY199: OV | AZ199: FU | BA199: OV | BB199: NP | BC199: OV | BD199: OV | BE199: FU | BF199: FU | BG199: WCC | BH199: WCC | BI199: PE | BJ199: OV | BK199: OV | BL199: OV | BM199: ER/UC | BN199: =IF(BN251<=$G$45,$A$45,IF(BN251<=$G$46,$A$46,IF(BN251<=$G$47,$A$47,IF(BN251<=$G$48,$A$48,IF(BN251<=$G$49,$A$49,$A$50))))) -> NP | BO199: PE | BP199: OV | BQ199: FU | BR199: NP | BS199: ER/UC | BT199: OV | BU199: OV | BV199: OV | BW199: FU | BX199: OV | BY199: OV | BZ199: PE | CA199: OV | CB199: NP | CC199: OV | CD199: FU | CE199: OV | CF199: OV | CG199: OV | CH199: FU | CI199: PE | CJ199: OV | CK199: OV | CL199: OV | CM199: FU | CN199: ER/UC | CO199: OV | CP199: OV | CQ199: FU | CR199: OV | CS199: ER/UC | CT199: OV | CU199: OV | CV199: ER/UC | CW199: OV
A201: Count | B201: 1 | C201: 2 | D201: 3 | E201: 4 | F201: 5 | G201: 6 | H201: 7 | I201: 8 | J201: 9 | K201: 10 | L201: 11 | M201: 12 | N201: 13 | O201: 14 | P201: 15 | Q201: 16 | R201: 17 | S201: 18 | T201: 19 | U201: 20 | V201: 21 | W201: 22 | X201: 23 | Y201: 24 | Z201: 25 | AA201: 26 | AB201: 27 | AC201: 28 | AD201: 29 | AE201: 30 | AF201: 31 | AG201: 32 | AH201: 33 | AI201: 34 | AJ201: 35 | AK201: 36 | AL201: 37 | AM201: 38 | AN201: 39 | AO201: 40 | AP201: 41 | AQ201: 42 | AR201: 43 | AS201: 44 | AT201: 45 | AU201: 46 | AV201: 47 | AW201: 48 | AX201: 49 | AY201: 50 | AZ201: 51 | BA201: 52 | BB201: 53 | BC201: 54 | BD201: 55 | BE201: 56 | BF201: 57 | BG201: 58 | BH201: 59 | BI201: 60 | BJ201: 61 | BK201: 62 | BL201: 63 | BM201: 64 | BN201: 65 | BO201: 66 | BP201: 67 | BQ201: 68 | BR201: 69 | BS201: 70 | BT201: 71 | BU201: 72 | BV201: 73 | BW201: 74 | BX201: 75 | BY201: 76 | BZ201: 77 | CA201: 78 | CB201: 79 | CC201: 80 | CD201: 81 | CE201: 82 | CF201: 83 | CG201: 84 | CH201: 85 | CI201: 86 | CJ201: 87 | CK201: 88 | CL201: 89 | CM201: 90 | CN201: 91 | CO201: 92 | CP201: 93 | CQ201: 94 | CR201: 95 | CS201: 96 | CT201: 97 | CU201: 98 | CV201: 99 | CW201: 100
A202: WCC | B202: =COUNTIF(B$178:B$199,$A202) -> 1 | C202: =COUNTIF(C$178:C$199,$A202) -> 1 | D202: 1 | E202: 1 | F202: 4 | G202: 4 | H202: 0 | I202: 4 | J202: 1 | K202: 2 | L202: =COUNTIF(L$178:L$199,$A202) -> 0 | M202: 1 | N202: 1 | O202: 0 | P202: 3 | Q202: 1 | R202: 1 | S202: 2 | T202: 2 | U202: 0 | V202: =COUNTIF(V$178:V$199,$A202) -> 0 | W202: 3 | X202: 2 | Y202: 1 | Z202: 2 | AA202: 1 | AB202: 4 | AC202: 2 | AD202: 1 | AE202: 2 | AF202: =COUNTIF(AF$178:AF$199,$A202) -> 0 | AG202: 1 | AH202: 1 | AI202: 2 | AJ202: 1 | AK202: 0 | AL202: 2 | AM202: 2 | AN202: 0 | AO202: 4 | AP202: =COUNTIF(AP$178:AP$199,$A202) -> 3 | AQ202: 0 | AR202: 2 | AS202: 2 | AT202: 0 | AU202: 1 | AV202: 2 | AW202: 2 | AX202: 0 | AY202: 3 | AZ202: =COUNTIF(AZ$178:AZ$199,$A202) -> 0 | BA202: 1 | BB202: 5 | BC202: 2 | BD202: 2 | BE202: 4 | BF202: 3 | BG202: 1 | BH202: 2 | BI202: 2 | BJ202: =COUNTIF(BJ$178:BJ$199,$A202) -> 0 | BK202: 1 | BL202: 0 | BM202: 2 | BN202: 2 | BO202: 3 | BP202: 2 | BQ202: 1 | BR202: 2 | BS202: 1 | BT202: =COUNTIF(BT$178:BT$199,$A202) -> 0 | BU202: 1 | BV202: 2 | BW202: 2 | BX202: 1 | BY202: 1 | BZ202: 1 | CA202: 3 | CB202: 3 | CC202: 1 | CD202: =COUNTIF(CD$178:CD$199,$A202) -> 0 | CE202: 2 | CF202: 3 | CG202: 0 | CH202: 3 | CI202: 1 | CJ202: 2 | CK202: 1 | CL202: 4 | CM202: 1 | CN202: =COUNTIF(CN$178:CN$199,$A202) -> 3 | CO202: 0 | CP202: 1 | CQ202: 3 | CR202: 1 | CS202: 2 | CT202: 2 | CU202: 0 | CV202: 3 | CW202: 1
A203: OV | B203: 12 | C203: 12 | D203: 13 | E203: 13 | F203: 7 | G203: 10 | H203: 15 | I203: 12 | J203: 13 | K203: 11 | L203: 13 | M203: 15 | N203: 11 | O203: 11 | P203: 9 | Q203: 13 | R203: 17 | S203: 11 | T203: 13 | U203: 15 | V203: 11 | W203: 13 | X203: 9 | Y203: 16 | Z203: 14 | AA203: 13 | AB203: 13 | AC203: 13 | AD203: 11 | AE203: 13 | AF203: 9 | AG203: 12 | AH203: 14 | AI203: 12 | AJ203: 14 | AK203: 15 | AL203: 14 | AM203: 14 | AN203: 13 | AO203: 11 | AP203: 10 | AQ203: 14 | AR203: 11 | AS203: 13 | AT203: 11 | AU203: 15 | AV203: 15 | AW203: 14 | AX203: 16 | AY203: 7 | AZ203: 12 | BA203: 10 | BB203: 8 | BC203: 11 | BD203: 15 | BE203: 13 | BF203: 12 | BG203: 11 | BH203: 8 | BI203: 10 | BJ203: 16 | BK203: 15 | BL203: 16 | BM203: 9 | BN203: 16 | BO203: 13 | BP203: 9 | BQ203: 12 | BR203: 11 | BS203: 14 | BT203: 14 | BU203: 14 | BV203: 13 | BW203: 12 | BX203: 15 | BY203: 14 | BZ203: 13 | CA203: 11 | CB203: 11 | CC203: 12 | CD203: 8 | CE203: 11 | CF203: 8 | CG203: 14 | CH203: 10 | CI203: 13 | CJ203: 9 | CK203: 11 | CL203: 13 | CM203: 11 | CN203: 9 | CO203: 15 | CP203: 12 | CQ203: 10 | CR203: 16 | CS203: 15 | CT203: 15 | CU203: 14 | CV203: 13 | CW203: 10
A204: FU | B204: 0 | C204: 6 | D204: 5 | E204: 1 | F204: 5 | G204: 2 | H204: 3 | I204: 3 | J204: 2 | K204: 3 | L204: 5 | M204: 2 | N204: 2 | O204: 6 | P204: 2 | Q204: 6 | R204: 1 | S204: 5 | T204: 2 | U204: 1 | V204: 3 | W204: 2 | X204: 5 | Y204: 2 | Z204: 1 | AA204: 5 | AB204: 2 | AC204: 3 | AD204: 5 | AE204: 4 | AF204: 6 | AG204: 7 | AH204: 5 | AI204: 2 | AJ204: 2 | AK204: 1 | AL204: 0 | AM204: 0 | AN204: 5 | AO204: 4 | AP204: 1 | AQ204: 4 | AR204: 5 | AS204: 2 | AT204: 7 | AU204: 2 | AV204: 3 | AW204: 5 | AX204: 1 | AY204: 5 | AZ204: 4 | BA204: 4 | BB204: 2 | BC204: 2 | BD204: 2 | BE204: 2 | BF204: 4 | BG204: 4 | BH204: 8 | BI204: 3 | BJ204: 1 | BK204: 2 | BL204: 2 | BM204: 6 | BN204: 1 | BO204: 2 | BP204: 4 | BQ204: 7 | BR204: 3 | BS204: 3 | BT204: 4 | BU204: 4 | BV204: 6 | BW204: 1 | BX204: 4 | BY204: 1 | BZ204: 3 | CA204: 4 | CB204: 2 | CC204: 3 | CD204: 7 | CE204: 8 | CF204: 5 | CG204: 2 | CH204: 3 | CI204: 1 | CJ204: 5 | CK204: 4 | CL204: 2 | CM204: 7 | CN204: 7 | CO204: 5 | CP204: 5 | CQ204: 4 | CR204: 3 | CS204: 1 | CT204: 3 | CU204: 3 | CV204: 1 | CW204: 4
A205: ER/UC | B205: 1 | C205: 2 | D205: 1 | E205: 0 | F205: 1 | G205: 2 | H205: 1 | I205: 0 | J205: 0 | K205: 3 | L205: 0 | M205: 2 | N205: 1 | O205: 1 | P205: 2 | Q205: 0 | R205: 0 | S205: 2 | T205: 3 | U205: 2 | V205: 3 | W205: 0 | X205: 2 | Y205: 2 | Z205: 0 | AA205: 0 | AB205: 2 | AC205: 1 | AD205: 3 | AE205: 0 | AF205: 4 | AG205: 0 | AH205: 0 | AI205: 1 | AJ205: 1 | AK205: 2 | AL205: 1 | AM205: 1 | AN205: 1 | AO205: 0 | AP205: 2 | AQ205: 2 | AR205: 1 | AS205: 1 | AT205: 0 | AU205: 2 | AV205: 0 | AW205: 0 | AX205: 0 | AY205: 0 | AZ205: 1 | BA205: 1 | BB205: 2 | BC205: 3 | BD205: 0 | BE205: 2 | BF205: 0 | BG205: 3 | BH205: 0 | BI205: 0 | BJ205: 0 | BK205: 1 | BL205: 2 | BM205: 1 | BN205: 1 | BO205: 1 | BP205: 2 | BQ205: 0 | BR205: 0 | BS205: 2 | BT205: 1 | BU205: 0 | BV205: 0 | BW205: 3 | BX205: 1 | BY205: 1 | BZ205: 1 | CA205: 0 | CB205: 1 | CC205: 1 | CD205: 0 | CE205: 0 | CF205: 1 | CG205: 2 | CH205: 0 | CI205: 2 | CJ205: 2 | CK205: 2 | CL205: 0 | CM205: 1 | CN205: 2 | CO205: 1 | CP205: 3 | CQ205: 0 | CR205: 0 | CS205: 1 | CT205: 1 | CU205: 0 | CV205: 2 | CW205: 0
A206: PE | B206: 4 | C206: 0 | D206: 0 | E206: 3 | F206: 3 | G206: 1 | H206: 0 | I206: 1 | J206: 4 | K206: 1 | L206: 2 | M206: 0 | N206: 3 | O206: 2 | P206: 2 | Q206: 1 | R206: 2 | S206: 2 | T206: 1 | U206: 1 | V206: 2 | W206: 0 | X206: 2 | Y206: 1 | Z206: 3 | AA206: 2 | AB206: 0 | AC206: 0 | AD206: 1 | AE206: 2 | AF206: 1 | AG206: 0 | AH206: 1 | AI206: 2 | AJ206: 3 | AK206: 2 | AL206: 3 | AM206: 1 | AN206: 2 | AO206: 2 | AP206: 3 | AQ206: 2 | AR206: 1 | AS206: 2 | AT206: 2 | AU206: 2 | AV206: 0 | AW206: 0 | AX206: 1 | AY206: 2 | AZ206: 3 | BA206: 4 | BB206: 2 | BC206: 0 | BD206: 0 | BE206: 0 | BF206: 3 | BG206: 1 | BH206: 0 | BI206: 3 | BJ206: 2 | BK206: 0 | BL206: 1 | BM206: 2 | BN206: 1 | BO206: 2 | BP206: 2 | BQ206: 0 | BR206: 1 | BS206: 1 | BT206: 3 | BU206: 1 | BV206: 1 | BW206: 2 | BX206: 0 | BY206: 2 | BZ206: 3 | CA206: 1 | CB206: 1 | CC206: 3 | CD206: 3 | CE206: 0 | CF206: 3 | CG206: 4 | CH206: 2 | CI206: 2 | CJ206: 1 | CK206: 2 | CL206: 0 | CM206: 2 | CN206: 1 | CO206: 0 | CP206: 0 | CQ206: 2 | CR206: 0 | CS206: 1 | CT206: 0 | CU206: 2 | CV206: 2 | CW206: 5
... 88 more rows
